{"text_format":"1","workbook":"xlsx","n_sheets":14,"sheets":["Main","bullPen","Net-Net","Valuations","Financials","Financials2","FCF","Summary","Fundamentals","IE","CFS","BS","Financials 10Y Summary","Assumptions"],"not_rendered":{"charts":4,"images":1,"macros":1,"external_links":0,"defined_names":105,"comments":0,"pivot_tables":0},"unopened":[],"bounds":{"document_bytes":16777216,"sheet_cells":100000,"rows_first":2000,"rows_last":500,"rows_between":2000,"halvings":0,"cell_chars":16384,"cell_head_chars":4096},"cells_cut":0,"cells_raw":0,"read":"whole","date_system":"1900"}

{"sheet":"Main","index":0,"n_rows":36,"n_cols":22,"rows_kept":36,"cut":false,"hidden":false,"merged":[[33,11,33,12],[34,11,34,12],[33,8,33,9],[34,8,34,9],[6,17,6,19]]}
[null,null,null,null,null,null,null,null,{"$f":"Summary!B92","v":"Target Corp (NYSE: TGT)"}]
[null,"Ticker:","tgt",null,null,"ROIC:",{"$f":"IF(coROIC5>=10,\"Go\",\"Stop\")","v":"Stop"},null,null,null,null,null,null,null,null,{"$f":"UPPER(C2)","v":"TGT"},"Company",null,"Industry",null,"S&P 500"]
[null,"PE (ttm):",12.36,null,null,"ROE:",{"$f":"IF(coROE5>=10,\"Go\",\"Stop\")","v":"Go"},null,null,null,null,null,null,null,null,null,5,1,5,1,5,1]
[null,"Sticker Price:",{"$f":"PV(discountRate,9,,(-FV(C15,9,,-currentEPS*C16)))","v":69.857775129315868},null,null,"ROA:",{"$f":"IF(coROA5>=10,\"Go\",\"Stop\")","v":"Stop"},null,null,null,null,null,null,null,null,"ROE",17.7,19.8,19,21.8,23.9,26.4]
[null,"At 50% off:",{"$f":"stickerPrice/2","v":34.928887564657934},null,null,"Rule # 1:",{"$f":"IF(halfOff>=C6,\"Go\",\"Stop\")","v":"Stop"},null,null,null,null,null,null,null,null,"ROA",6.3,6.4,8,8.4,8.1,9]
[null,"Last Price:",{"$f":"lastPrice","v":53.47},null,null,"Payback Time:",{"$f":"V24","v":">10"},null,null,null,null,null,null,null,null,"ROIC",8.5,8.8000000000000007,12.3,13,11,11.9]
[null,null,null,null,null,"FACs",null,null,null,null,null,null,null,null,null,null,null,"Years"]
[null,"DDM (PE):","x.xx",null,null,null,null,null,null,null,null,null,null,null,null,null,10,7,5,3,1]
[null,"DDM (PB):","x.xx",null,null,"Volume>150%:",{"$f":"IF(Volume/ADV>=1.5,\"Go\",\"Stop\")","v":"Stop"},null,null,null,null,null,null,null,null,"Equity Growth Rate:",0.10886354586885587,7.035964239482366E-2,4.8835070030241387E-2,9.8846815947369882E-2,6.7442988840368687E-2]
[null,"FcFF:",{"$f":"FCF!D5","v":147.15681489984712},null,null,null,null,null,null,null,null,null,null,null,null,"EPS Growth Rate:",7.4135639485062368E-2,2.6706856508336013E-2,-4.3365137115442001E-2,0.49443411809732107,4.3613707165109011E-2]
[null,"FcFE:","x.xx",null,null,null,"Current Assets",null,null,null,null,"Non Current Assets",null,null,null,"Sales Growth Rate:",4.6679728339898405E-2,-4.096117893552925E-3,-1.5258903847168931E-2,0.30151146891434816,6.5221045553874521E-2]
[null,"Acq. /Break Up:",{"$f":"'Net-Net'!D47","v":{"$error":"#N/A"}},null,null,null,null,null,null,null,null,null,null,null,null,"Cash Growth Rate:",3.9584723620492743E-2,1.6931119486095277E-3,4.8265320482213632E-3,0.24821550945324297,0.19303882195448474]
[null,null,null,null,null,null,null,null,null,null,null,null,null,null,null,"FcF Growth Rate:"]
[null,"EPS (Current):",{"$f":"currentEPS","v":4.28},null,null,null,null,null,null,null,null,null,null,null,null,"NCAV Growth Rate:"]
[null,"Future EPS Growth Rate:",{"$f":"IF(MIN(estimateEPSGrowthRate)=0,EPSGrowthRate,MIN(estimateEPSGrowthRate))","v":7.4135639485062368E-2},null,null,null,null,null,null,null,null,null,null,null,null,"NAV Growth Rate:"]
[null,"Future PE:",{"$f":"IF(futurePE<>\"\",futurePE,historicalPE)","v":12.36}]
[null,"Discount Rate:",{"$f":"WACC","v":0.15}]
[]
[null,null,"Estimate",null,"Adjustment"]
[null,"Equity Growth Rate:",{"$f":"IF(E20=\"\",Q9,E20)","v":0.10886354586885587}]
[null,"EPS Growth Rate:",{"$f":"IF(E21=\"\",Q10,E21)","v":7.4135639485062368E-2}]
[null,"Sales Growth Rate:",{"$f":"IF(E22=\"\",Q11,E22)","v":4.6679728339898405E-2}]
[null,"Cash Growth Rate:",3.9584723620492743E-2]
[null,"EPS (Current):",4.28,null,null,null,null,null,null,null,null,null,null,null,null,"Year","Cumulative",null,"Payback Price",null,"Payback Time",">10"]
[null,"Last Price:",53.47,null,null,null,null,null,null,"Dividend Yield",null,2.2400000000000002,null,null,null,null,"Earnings",null,null,null,"Est. Market Cap:",{"$f":"'Net-Net'!E35","v":35899.758000000002}]
[null,"Analysts' Estimate EPS Growth Rate: ",null,null,null,null,null,null,null,"Net Profit Margin",null,4.3099999999999999E-2,null,null,null,1,{"$f":"earnings+(futureGrowth*earnings)","v":3136.4760672963821},{"$f":"Q26/sharesOutstanding","v":4.6701549542828795},null,null,"Shares Outstanding:",{"$f":"FCF!D4","v":671.6}]
[null,"Analysts' Estimate Future PE: ",12.36,null,null,null,null,null,null,"Earnings Yield",null,{"$f":"1/PEttm","v":8.0906148867313926E-2},null,null,null,2,{"$f":"Q26+(futureGrowth*Q26)","v":3369.0007262749928},5.0163798783129732,null,null,"Earnings:",{"$f":"Financials2!F30","v":2920}]
[null,"Historical PE: ",null,null,null,null,null,null,null,"Shiller PE",null,{"$f":"C6/(AVERAGE(Financials2!B22:F22))","v":2.0165183285563434E-2},null,null,null,3,3618.763749543029,5.3882724084917051]
[null,"Debt:",{"$f":"'Net-Net'!E33/Financials2!F14","v":6.7397107897664075},null,null,null,null,null,null,null,null,null,null,null,null,4,3887.0431142607636,5.7877354292149548,null,null,"Volume>150%:",{"$f":"Volume/ADV","v":0.59759759759759756}]
[null,"Terminal Value",null,null,null,null,null,null,null,null,null,null,null,null,null,5,4175.2115412424937,6.2168128964301568,null,null,"Volume",3.98]
[null,"PE:",{"$f":"IF(futurePE=\"\",,futurePE)","v":12.36},null,null,null,null,null,null,null,null,null,null,null,null,6,4484.7435188379186,6.6777002960659892,null,null,"Avg Daily Volume",6.66]
[null,"PB:",{"$f":"C6/'Net-Net'!E37","v":{"$error":"#N/A"}},null,null,null,null,null,null,null,null,null,null,null,null,7,4817.2228475334568,7.1727558778044322]
[null,"Margins",null,null,null,null,null,null,null,null,null,null,null,null,null,8,5174.3507438774031,7.7045127216757043]
[null,"Gross Margin",{"$f":"AVERAGE(Financials2!B136:F136)","v":0.30510588993919774},null,null,null,null,null,"Shares($10,000)",null,"Price","10-Y Price",null,"10-Y ROI",null,9,5557.9545451947624,8.2756916992179299]
[null,"Operating Margin",{"$f":"AVERAGE(Financials2!B137:F137)","v":6.5793748980207734E-2},null,null,null,null,null,{"$f":"10000/K35","v":187.02075930428279},null,{"$f":"C6","v":53.47},{"$f":"FV(C15,9,,-currentEPS*C16)","v":100.69186363165716},null,{"$f":"((L35/K35)^(1/10)-1)","v":6.534045586085413E-2},null,10,5969.9970596316853,8.8892153955206741]
[null,"Net Margin",{"$f":"AVERAGE(Financials2!B138:F138)","v":4.1459008707203891E-2},null,null,null,null,null,null,null,null,null,null,null,null,">10",6412.5866093714221,9.5482230633880611]

{"sheet":"bullPen","index":1,"n_rows":16,"n_cols":16,"rows_kept":16,"cut":false,"hidden":false,"merged":[[0,4,0,6],[0,8,0,10]]}
[null,"NCAV","NAV",null,"Net Current Asset Value",null,null,null,"Net Asset Value"]
[null,"Current","Current",null,"Low","Base","High",null,"Low","Base","High"]
["AIRT",0.22337914757739852,0.43940024989587667,null,-0.39169790365125645,-0.19361377203942809,0.11392475357489951,null,-0.3376926280716368,-9.6404275996112898E-2,0.25433847008191046,null,null,null,null,"AIRT"]
["BBW",-0.68580387744684401,0.22317022776440876,null,-1.0006945095547151,-0.89133703506925999,-0.73389171901532424,null,-0.77345098325190209,-0.48229868772419637,-0.14305855062800998,null,null,null,null,"BTN"]
["FLXS",1.0414246175370301,1.7780650263085858,null,-0.23996066384825188,0.17663757008019298,0.81733021077283396,null,-5.5800561655362735E-2,0.50812575402739357,1.296146476474346,null,null,null,null,"BBW"]
["GTSI",2.3219205037386725E-2,0.33861809186484493,null,-0.40828976218586621,-0.21005509641873243,5.6993871928938677E-3,null,-0.32944004047900166,-6.8125597346376021E-2,0.21070866363074203,null,null,null,null,"FLXS"]
["IMN",0.48266238725184896,1.991015340435192,null,-0.42094168241533525,-8.6225281628429684E-2,0.36557675320516259,null,-4.3853444119499652E-2,0.5925335473040747,1.3460061727743358,null,null,null,null,"GTSI"]
["KBALB",-0.3594449700409964,0.47320809118349327,null,-0.86969049871604265,-0.69084831283506798,-0.43572554849754486,null,-0.66152723340992026,-0.31615443528404752,0.10549894129837356,null,null,null,null,"IMN"]
["MEAD",0.19774405488691227,0.34310134310134321,null,-0.36438165009593582,-0.18867376010233139,9.2389092389092431E-2,null,-0.32804232804232814,-0.12326298040583739,0.18687132972847276,null,null,null,null,"KBALB"]
["MLNK",-0.42799392691809734,-0.19006945544077958,null,-0.6932348475675072,-0.59652194972009798,-0.46390148939539322,null,-0.63375372969817767,-0.48945593755530514,-0.30925058293513685,null,null,null,null,"MEAD"]
["NVLT",-0.97058282772568483,-0.96920389777532634,null,-0.97223754366611503,-0.97141018569589999,-0.97058282772568483,null,-0.97189281117852544,-0.97078966721823867,-0.96968652325795179,null,null,null,null,"MLNK"]
["SRT",-0.61415537343546323,-0.16858606959844291,null,-0.76485082221865119,-0.68950309782705732,-0.61415537343546323,null,-0.65345849625939612,-0.48899691110039811,-0.3245353259414,null,null,null,null,"NVLT"]
["TSRI",-0.16548797736916532,-0.14056711793628318,null,-0.29319054354415031,-0.22933926045665787,-0.16548797736916532,null,-0.28696032868592969,-0.21812487371186096,-0.149289418737792,null,null,null,null,"SRT"]
["TMNG",-0.59606441446635139,-0.39678696337291974,null,-0.66547522963987848,-0.63076982205311483,-0.59606441446635139,null,-0.61565586686652063,-0.54109496906107069,-0.46653407125562085,null,null,null,null,"TSRI"]
["BBW",-0.40771122063087795,-0.15173107909521755,null,-1.0006867298899185,-0.82911451220914389,-0.53262675757962363,null,-0.93669169450600331,-0.71392344851809664,-0.36623966558144427,null,null,null,null,"TMNG"]
[null,null,null,null,null,null,null,null,null,null,null,null,null,null,null,"TUES"]

{"sheet":"Net-Net","index":2,"n_rows":53,"n_cols":18,"rows_kept":53,"cut":false,"hidden":false,"merged":[[0,1,0,12],[3,6,3,8],[3,10,3,12],[42,6,42,8],[42,10,42,12]]}
[null,{"$f":"Main!I1","v":"Target Corp (NYSE: TGT)"}]
[null,null,null,null,null,null,null,null,null,null,null,null,null,null,"Current Assets"]
[]
[null,null,null,null,null,null,"Recover (%)",null,null,null,"Recover ($)"]
[null,"Assets",null,null,null,null,"Low","Base","High",null,"Low","Base","High"]
[null,null,"Cash and Short Term Investments",null,{"$f":"VLOOKUP(R6,interimBS,3,)","v":821},null,1,1,1,null,{"$f":"$E6*G6","v":821},{"$f":"$E6*H6","v":821},821,null,null,null,null,"Cash and Short Term Investments"]
[null,null,"Cash & Equivalents",null,null,null,null,null,null,null,{"$f":"$E7*G7","v":0},0,0,null,null,null,null,"Cash & Equivalents"]
[null,null,"Total Receivables, Net",null,5713,null,0.8,0.9,1,null,{"$f":"$E8*G8","v":4570.4000000000005},5141.7,5713,null,null,null,null,"Total Receivables, Net"]
[null,null,"Accounts Receivable - Trade, Net",null,null,null,null,null,null,null,0,0,0,null,null,null,null,"Accounts Receivable - Trade, Net"]
[null,null,"Total Inventory",null,{"$f":"VLOOKUP(R10,interimBS,3,)","v":{"$error":"#N/A"}},null,0.4,0.6,0.95,null,{"$error":"#N/A"},{"$error":"#N/A"},{"$error":"#N/A"},null,null,null,null,"Total Inventory"]
[null,null,"Prepaid Expenses",null,0,null,0.8,0.9,1,null,0,0,0,null,null,null,null,"Prepaid Expenses"]
[null,null,"Other Current Assets, Total",null,1948,null,0,0.5,1,null,0,974,1948,null,null,null,null,"Other Current Assets, Total"]
[null,null,null,null,null,null,0,0,0,null,0,0,0]
[null,null,"Current Assets",null,{"$f":"SUM(E6,E8,E10:E12)","v":{"$error":"#N/A"}},null,{"$f":"K14/E14","v":{"$error":"#N/A"}},{"$f":"L14/E14","v":{"$error":"#N/A"}},{"$f":"M14/E14","v":{"$error":"#N/A"}},null,{"$f":"SUM(K6:K13)","v":{"$error":"#N/A"}},{"$f":"SUM(L6:L13)","v":{"$error":"#N/A"}},{"$f":"SUM(M6:M13)","v":{"$error":"#N/A"}}]
[null,null,null,null,{"$f":"E12/E14","v":{"$error":"#N/A"}}]
[null,null,"PPE",null,{"$f":"VLOOKUP(R16,interimBS,3,)","v":29040},null,0.25,0.45,0.65,null,7260,13068,18876,null,"Non-Current Assets",null,null,"Property/Plant/Equipment, Total - Net"]
[null,null,"Goodwill, Net",null,0,null,0.25,0.45,0.65,null,0,0,0,null,null,null,null,"Goodwill, Net"]
[null,null,"Intangibles, Net",null,0,null,0.25,0.45,0.65,null,0,{"$f":"$E18*H18","v":0},0,null,null,null,null,"Intangibles, Net"]
[null,null,"Long Term Investments",null,0,null,0.25,0.45,0.65,null,0,0,0,null,null,null,null,"Long Term Investments"]
[null,null,"Note Receivable - Long Term",null,0,null,0.25,0.45,0.65,null,0,0,0,null,null,null,null,"Note Receivable - Long Term"]
[null,null,"Other Long Term Assets, Total",null,1035,null,0.25,0.45,0.65,null,258.75,465.75,672.75,null,null,null,null,"Other Long Term Assets, Total"]
[null,null,"Other Assets, Total",null,0,null,0.25,0.45,0.65,null,0,0,0,null,null,null,null,"Other Assets, Total"]
[null,null,"Total Assets",null,{"$f":"E14+SUM(E16:E22)","v":{"$error":"#N/A"}},null,{"$f":"K23/$E$23","v":{"$error":"#N/A"}},{"$f":"L23/$E$23","v":{"$error":"#N/A"}},{"$f":"M23/$E$23","v":{"$error":"#N/A"}},null,{"$f":"K14+SUM(K16:K22)","v":{"$error":"#N/A"}},{"$f":"L14+SUM(L16:L22)","v":{"$error":"#N/A"}},{"$f":"M14+SUM(M16:M22)","v":{"$error":"#N/A"}},null,null,null,null,"Total Assets"]
[null,null,null,null,{"$f":"E21/E23","v":{"$error":"#N/A"}}]
[null,"Liabilities"]
[null,null,"Current Liabilities",null,{"$f":"VLOOKUP(R26,interimBS,3,)","v":14139},null,1,1,1,null,{"$f":"$E26*G26","v":14139},{"$f":"$E26*H26","v":14139},{"$f":"$E26*I26","v":14139},null,null,null,null,"Total Current Liabilities"]
[null,null,"Current Liabilities",null,{"$f":"SUM(E26:E26)","v":14139},null,{"$f":"K27/$E$27","v":1},{"$f":"L27/$E$27","v":1},{"$f":"M27/$E$27","v":1},null,{"$f":"SUM(K26:K26)","v":14139},{"$f":"SUM(L26:L26)","v":14139},{"$f":"SUM(M26:M26)","v":14139}]
[]
[]
[null,null,"Long-Term Liabilities",null,{"$f":"VLOOKUP(R30,interimBS,3,)","v":16156},null,1,1,1,null,{"$f":"$E30*G30","v":16156},{"$f":"$E30*H30","v":16156},{"$f":"$E30*I30","v":16156},null,null,null,null,"Total Long Term Debt"]
[null,null,"Long-Term Liabilities",null,{"$f":"SUM(E30:E30)","v":16156},null,{"$f":"IF(E31=0,0,K31/$E$31)","v":1},{"$f":"IF(F31=0,0,L31/$E$31)","v":0},{"$f":"IF(G31=0,0,M31/$E$31)","v":1},null,{"$f":"SUM(K30:K30)","v":16156},{"$f":"SUM(L30:L30)","v":16156},{"$f":"SUM(M30:M30)","v":16156}]
[]
[null,null,"Total Liabilities",null,{"$f":"E31+E27","v":30295},null,{"$f":"K33/$E$33","v":1},{"$f":"L33/$E$33","v":1},{"$f":"M33/$E$33","v":1},null,{"$f":"K31+K27","v":30295},{"$f":"L31+L27","v":30295},{"$f":"M31+M27","v":30295}]
[]
[null,"Market Cap",null,null,{"$f":"E39*D45","v":35899.758000000002},null,null,null,null,null,{"$f":"$E$35","v":35899.758000000002},{"$f":"$E$35","v":35899.758000000002},{"$f":"$E$35","v":35899.758000000002}]
[null,"Net Current Asset Value",null,null,{"$f":"E14-E33","v":{"$error":"#N/A"}},null,null,null,null,null,{"$f":"K14-K33","v":{"$error":"#N/A"}},{"$f":"L14-L33","v":{"$error":"#N/A"}},{"$f":"M14-M33","v":{"$error":"#N/A"}}]
[null,"Equity (Net Asset Value)",null,null,{"$f":"E23-E33","v":{"$error":"#N/A"}},null,null,null,null,null,{"$f":"K23-K33","v":{"$error":"#N/A"}},{"$f":"L23-L33","v":{"$error":"#N/A"}},{"$f":"M23-M33","v":{"$error":"#N/A"}}]
[]
[null,"Shares Outstanding",null,null,{"$f":"VLOOKUP(R39,interimBS,3,0)","v":671.4},null,null,null,null,null,null,null,null,null,null,null,null,"Total Common Shares Outstanding"]
[]
[null,"Price as a % of NCAV & NAV ",null,{"$f":"E35/E36","v":{"$error":"#N/A"}},{"$f":"E35/E37","v":{"$error":"#N/A"}},null,{"$f":"K35/K36","v":{"$error":"#N/A"}},{"$f":"L35/L36","v":{"$error":"#N/A"}},{"$f":"M35/M36","v":{"$error":"#N/A"}},null,{"$f":"K35/K37","v":{"$error":"#N/A"}},{"$f":"L35/L37","v":{"$error":"#N/A"}},{"$f":"M35/M37","v":{"$error":"#N/A"}}]
[]
[null,null,null,null,null,null,"Net Current Asset Value",null,null,null,"Net Asset Value"]
[null,null,null,"NCAV","NAV",null,"Low","Base","High",null,"Low","Base","High"]
[null,null,"Current Price",{"$f":"Main!C6","v":53.47},{"$f":"D45","v":53.47},null,{"$f":"$D$45","v":53.47},{"$f":"$D$45","v":53.47},{"$f":"$D$45","v":53.47},null,{"$f":"$D$45","v":53.47},{"$f":"$D$45","v":53.47},{"$f":"$D$45","v":53.47}]
[]
[null,null,"NCAV Price",{"$f":"D45/D41","v":{"$error":"#N/A"}},{"$f":"E45/E41","v":{"$error":"#N/A"}},null,{"$f":"G45/G41","v":{"$error":"#N/A"}},{"$f":"H45/H41","v":{"$error":"#N/A"}},{"$f":"I45/I41","v":{"$error":"#N/A"}},null,{"$f":"K37/$E$39","v":{"$error":"#N/A"}},{"$f":"L37/$E$39","v":{"$error":"#N/A"}},{"$f":"M37/$E$39","v":{"$error":"#N/A"}}]
[]
[null,null,"Upside (Downside)",{"$f":"D47/D45-1","v":{"$error":"#N/A"}},{"$f":"E47/E45-1","v":{"$error":"#N/A"}},null,{"$f":"G47/G45-1","v":{"$error":"#N/A"}},{"$f":"H47/H45-1","v":{"$error":"#N/A"}},{"$f":"I47/I45-1","v":{"$error":"#N/A"}},null,{"$f":"K47/K45-1","v":{"$error":"#N/A"}},{"$f":"L47/L45-1","v":{"$error":"#N/A"}},{"$f":"M47/M45-1","v":{"$error":"#N/A"}}]
[null,null,null,{"$f":"IF(D49<-0.1,\"Sell\",IF(D49>0.1,\"Buy\",\"Hold\"))","v":{"$error":"#N/A"}},{"$f":"IF(E49<-0.1,\"Sell\",IF(E49>0.1,\"Buy\",\"Hold\"))","v":{"$error":"#N/A"}},null,{"$f":"IF(G49<-0.1,\"Sell\",IF(G49>0.1,\"Buy\",\"Hold\"))","v":{"$error":"#N/A"}},{"$f":"IF(H49<-0.1,\"Sell\",IF(H49>0.1,\"Buy\",\"Hold\"))","v":{"$error":"#N/A"}},{"$f":"IF(I49<-0.1,\"Sell\",IF(I49>0.1,\"Buy\",\"Hold\"))","v":{"$error":"#N/A"}},null,{"$f":"IF(K49<-0.1,\"Sell\",IF(K49>0.1,\"Buy\",\"Hold\"))","v":{"$error":"#N/A"}},{"$f":"IF(L49<-0.1,\"Sell\",IF(L49>0.1,\"Buy\",\"Hold\"))","v":{"$error":"#N/A"}},{"$f":"IF(M49<-0.1,\"Sell\",IF(M49>0.1,\"Buy\",\"Hold\"))","v":{"$error":"#N/A"}}]
[]
[]
[null,"Assumptions"]

{"sheet":"Valuations","index":3,"n_rows":0,"n_cols":0,"rows_kept":0,"cut":false,"hidden":false,"merged":[]}

{"sheet":"Financials","index":4,"n_rows":71,"n_cols":16,"rows_kept":71,"cut":false,"hidden":false,"merged":[]}
[]
[null,null,null,null,null,null,null,null,null,"Annual","Interim"]
[null,null,null,null,null,null,null,null,null,null,null,"2012 Q3","2012 Q2","2012 Q1","2011 Q4","2011 Q3"]
[null,null,null,null,null,null,null,null,null,"Period End Date",null,40845,40754,40663,40572,40481]
[]
[null,null,null,null,null,null,null,null,null,"Stmt Source",null,"10-Q","10-Q","10-Q","10-K","10-Q"]
[null,null,null,null,null,null,null,null,null,"Stmt Source Date",null,40870,40780,40689,40613,40515]
[null,null,null,null,null,null,null,null,null,"Stmt Update Type",null,"Updated","Updated","Updated","Updated","Updated"]
[]
[null,null,null,null,null,null,null,null,null,"Assets"]
[null,null,null,null,null,null,null,null,null,"Cash and Short Term Investments",null,821,890,1424,1712,936]
[null,null,null,null,null,null,null,null,null,"Cash & Equivalents",755,774,552,583,587]
[null,null,null,null,null,null,null,null,null,"Short Term Investments",66,116,872,1129,349]
[null,null,null,null,null,null,null,null,null,"Total Receivables, Net",null,5713,5722,5721,6153,5955]
[null,null,null,null,null,null,null,null,null,"Accounts Receivable - Trade, Net",5713,5722,5721,6153,5955]
[null,null,null,null,null,null,null,null,null,"Accounts Receivable - Trade, Gross",6144,6202,6286,6843,6730]
[null,null,null,null,null,null,null,null,null,"Provision for Doubtful Accounts",-431,-480,-565,-690,-775]
[null,null,null,null,null,null,null,null,null,null,null,null,null,7696,7596,9550]
[null,null,null,null,null,null,null,null,null,"Prepaid Expenses",null,0,0,0,0,0]
[null,null,null,null,null,null,null,null,null,"Other Current Assets, Total",null,1948,1521,1527,1752,1905]
[null,null,null,null,null,null,null,null,null,"Total Current Assets",null,18372,16059,16368,17213,18346]
[]
[null,null,null,null,null,null,null,null,null,"Property/Plant/Equipment, Total - Net",null,29040,28373,25648,25493,25590]
[null,null,null,null,null,null,null,null,null,"Goodwill, Net",null,0,0,0,0,0]
[null,null,null,null,null,null,null,null,null,"Intangibles, Net",null,0,0,0,0,0]
[null,null,null,null,null,null,null,null,null,"Long Term Investments",null,0,0,0,0,0]
[null,null,null,null,null,null,null,null,null,"Note Receivable - Long Term",null,0,0,0,0,0]
[null,null,null,null,null,null,null,null,null,"Other Long Term Assets, Total",null,1035,1067,980,999,1013]
[null,null,null,null,null,null,null,null,null,"Other Assets, Total",null,0,0,0,0,0]
[null,null,null,null,null,null,null,null,null,"Total Assets",null,48447,45499,42996,43705,44949]
[]
[null,null,null,null,null,null,null,null,null,"Liabilities and Shareholders' Equity"]
[null,null,null,null,null,null,null,null,null,"Accounts Payable",null,8053,6519,6296,6625,7761]
[null,null,null,null,null,null,null,null,null,"Payable/Accrued",null,0,0,0,0,0]
[null,null,null,null,null,null,null,null,null,"Accrued Expenses",null,3273,3721,3229,3326,3179]
[null,null,null,null,null,null,null,null,null,"Notes Payable/Short Term Debt",null,0,0,0,0,0]
[null,null,null,null,null,null,null,null,null,"Current Port. of LT Debt/Capital Leases",null,2813,1380,1313,119,850]
[null,null,null,null,null,null,null,null,null,"Other Current Liabilities, Total",null,0,0,0,0,0]
[null,null,null,null,null,null,null,null,null,"Total Current Liabilities",null,14139,11620,10838,10070,11790]
[]
[null,null,null,null,null,null,null,null,null,"Total Long Term Debt",null,16156,16160,14416,15607,15680]
[null,null,null,null,null,null,null,null,null,"Long Term Debt",16156,16160,14416,15607,15680]
[null,null,null,null,null,null,null,null,null,"Deferred Income Tax",null,1199,969,916,934,814]
[null,null,null,null,null,null,null,null,null,"Minority Interest",null,0,0,0,0,0]
[null,null,null,null,null,null,null,null,null,"Other Liabilities, Total",null,1689,1644,1596,1607,1786]
[null,null,null,null,null,null,null,null,null,"Total Liabilities",null,33183,30393,27766,28218,30070]
[]
[null,null,null,null,null,null,null,null,null,"Redeemable Preferred Stock",null,0,0,0,0,0]
[null,null,null,null,null,null,null,null,null,"Preferred Stock - Non Redeemable, Net",null,0,0,0,0,0]
[null,null,null,null,null,null,null,null,null,"Common Stock",null,56,56,57,59,59]
[null,null,null,null,null,null,null,null,null,"Additional Paid-In Capital",null,3431,3385,3345,3311,3128]
[null,null,null,null,null,null,null,null,null,"Retained Earnings (Accumulated Deficit)",null,12340,12213,12398,12698,12254]
[null,null,null,null,null,null,null,null,null,"Other Equity, Total",null,-563,-548,-570,-581,-562]
[null,null,null,null,null,null,null,null,null,"Total Equity",null,15264,15106,15230,15487,14879]
[]
[null,null,null,null,null,null,null,null,null,"Total Liabilities & Shareholdersâ€™ Equity",null,48447,45499,42996,43705,44949]
[]
[]
[null,null,null,null,null,null,null,null,null,"Total Common Shares Outstanding",null,671.4,675.2,689,704.04,707.9]
[null,null,null,null,null,null,null,null,null,"Total Preferred Shares Outstanding",null,0,0,0,0,0]
[]
[null,null,null,null,null,null,null,null,null,"Financial data in U.S. Dollars"]
[null,null,null,null,null,null,null,null,null,"Values in Millions (Except for per share items)"]
[]
[null,null,null,null,null,null,null,null,null,"Business Type: Industry"]
[]
[null,null,null,null,null,null,null,null,null,"Financial statements are prepared in this standard format to allow direct comparisons of all companies and industries across multiple time frames."]
[]
[null,null,null,null,null,null,null,null,null,"See 10K and 10Q SEC Filings for as reported statements"]
[]
[null,null,null,null,null,null,null,null,null,"DATA PROVIDERS"]

{"sheet":"Financials2","index":5,"n_rows":138,"n_cols":6,"rows_kept":138,"cut":false,"hidden":false,"merged":[]}
[null,2006,2007,2008,2009,2010]
["Revenue"]
["Total Revenue",{"$f":"VLOOKUP($A3,incomeExpenseAnnual2,B$120,FALSE)","v":59490},{"$f":"VLOOKUP($A3,incomeExpenseAnnual2,C$120,FALSE)","v":63367},{"$f":"VLOOKUP($A3,incomeExpenseAnnual2,D$120,FALSE)","v":64948},{"$f":"VLOOKUP($A3,incomeExpenseAnnual2,E$120,FALSE)","v":65357},{"$f":"VLOOKUP($A3,incomeExpenseAnnual2,F$120,FALSE)","v":67390}]
[]
["Cost of Revenue, Total",{"$f":"VLOOKUP($A5,incomeExpenseAnnual2,B$120,FALSE)","v":41073},43766,45766,45583,46585]
["Gross Profit",18417,19601,19182,19774,20805]
[]
["Selling/General/Administrative Expenses, Total",{"$f":"VLOOKUP($A8,incomeExpenseAnnual2,B$120,FALSE)","v":11852},12670,12954,13078,13469]
["Research & Development",0,0,0,0,0]
["Depreciation/Amortization",1496,1659,1826,2023,2084]
["Interest Expense (Income), Net Operating",0,0,0,0,0]
["Unusual Expense (Income)",0,0,0,0,0]
["Other Operating Expenses, Total",0,0,0,0,0]
["Operating Income",4497,4625,3536,3872,4495]
[]
["Interest Income (Expense), Net Non-Operating",{"$f":"VLOOKUP($A16,incomeExpenseAnnual2,B$120,FALSE)","v":0},0,0,0,0]
["Gain (Loss) on Sale of Assets",0,0,0,0,0]
["Other, Net",0,0,0,0,0]
["Income Before Tax",4497,4625,3536,3872,4495]
[]
["Income Tax - Total",{"$f":"VLOOKUP($A21,incomeExpenseAnnual2,B$120,FALSE)","v":1710},1776,1322,1384,1575]
["Income After Tax",2787,2849,2214,2488,2920]
[]
["Minority Interest",{"$f":"VLOOKUP($A24,incomeExpenseAnnual2,B$120,FALSE)","v":0},0,0,0,0]
["Equity In Affiliates",0,0,0,0,0]
["U.S. GAAP Adjustment",0,0,0,0,0]
["Net Income Before Extra. Items",2787,2849,2214,2488,2920]
[]
["Total Extraordinary Items",{"$f":"VLOOKUP($A29,incomeExpenseAnnual2,B$120,FALSE)","v":0},0,0,0,0]
["Net Income",2787,2849,2214,2488,2920]
[]
[]
[]
[]
[]
[]
[]
[]
[]
[]
[]
[]
[]
[]
[]
[]
[]
[]
[]
[]
[]
[]
[]
[]
[]
[]
[]
[]
[]
["Assets"]
["Cash and Short Term Investments",{"$f":"VLOOKUP($A61,annualBalance3,B$120,FALSE)","v":813},2450,864,2200,1712]
["Cash & Equivalents",0,813,599,562,583]
["Short Term Investments",0,0,1851,302,1617]
["Total Receivables, Net",6757,8651,8753,7882,7075]
["Accounts Receivable - Trade, Net",0,6194,8054,8084,6966]
["Total Inventory",6254,6780,6705,7179,7596]
["Prepaid Expenses",0,0,0,0,0]
["Other Current Assets, Total",882,1025,1166,1163,830]
["Total Current Assets",14706,18906,17488,18424,17213]
[]
["Property/Plant/Equipment, Total - Net",{"$f":"VLOOKUP($A71,annualBalance3,B$120,FALSE)","v":21431},24095,25756,25280,25493]
["Goodwill, Net",60,60,60,59,59]
["Intangibles, Net",152,148,171,180,164]
["Long Term Investments",0,0,0,0,0]
["Note Receivable - Long Term",0,0,0,0,0]
["Other Long Term Assets, Total",1000,1351,631,590,776]
["Other Assets, Total",0,0,0,0,0]
["Total Assets",37349,44560,44106,44533,43705]
[]
["Liabilities and Shareholders' Equity"]
["Accounts Payable",{"$f":"VLOOKUP($A81,annualBalance3,B$120,FALSE)","v":6575},6721,6337,6511,6625]
["Payable/Accrued",0,0,0,0,0]
["Accrued Expenses",2004,2109,2100,2405,2481]
["Notes Payable/Short Term Debt",0,0,0,0,0]
["Current Port. of LT Debt/Capital Leases",1362,1964,1262,1696,119]
["Other Current Liabilities, Total",1176,988,813,715,845]
["Total Current Liabilities",11117,11782,10512,11327,10070]
[]
["Total Long Term Debt",{"$f":"VLOOKUP($A89,annualBalance3,B$120,FALSE)","v":8675},15126,17490,15118,15607]
["Long Term Debt",0,8528,15126,17490,15118]
["Deferred Income Tax",577,470,455,835,934]
["Minority Interest",0,0,0,0,0]
["Other Liabilities, Total",1347,1875,1937,1906,1607]
["Total Liabilities",21716,29253,30394,29186,28218]
[]
["Redeemable Preferred Stock",{"$f":"VLOOKUP($A96,annualBalance3,B$120,FALSE)","v":0},0,0,0,0]
["Preferred Stock - Non Redeemable, Net",0,0,0,0,0]
["Common Stock",72,68,63,62,59]
["Additional Paid-In Capital",2387,2656,2762,2919,3311]
["Retained Earnings (Accumulated Deficit)",13417,12761,11443,12947,12698]
["Treasury Stock - Common",{"$error":"#N/A"},{"$error":"#N/A"},{"$error":"#N/A"},{"$error":"#N/A"},{"$error":"#N/A"}]
["Other Equity, Total",-243,-178,-556,-581,-581]
["Total Equity",15633,15307,13712,15347,15487]
[]
["Total Liabilities & Shareholdersâ€™ Equity",{"$f":"VLOOKUP($A105,annualBalance3,B$120,FALSE)","v":37349},{"$f":"VLOOKUP($A105,annualBalance3,C$120,FALSE)","v":44560},{"$f":"VLOOKUP($A105,annualBalance3,D$120,FALSE)","v":44106},{"$f":"VLOOKUP($A105,annualBalance3,E$120,FALSE)","v":44533},{"$f":"VLOOKUP($A105,annualBalance3,F$120,FALSE)","v":43705}]
[]
[]
["Total Common Shares Outstanding",{"$f":"VLOOKUP($A108,annualBalance3,B$120,FALSE)","v":859.77},818.74,752.71,744.64,704.04]
["Total Preferred Shares Outstanding",0,0,0,0,0]
[]
[]
[]
[]
[]
[]
[]
[]
[]
[null,2,3,4,5,6]
[null,7,6,5,4,3]
["net Working Capital Calculation"]
["Current Assets",{"$f":"VLOOKUP(\"Total Current Assets\",blanceSheet2,B$119,FALSE)","v":14706},{"$f":"VLOOKUP(\"Total Current Assets\",blanceSheet2,C$119,FALSE)","v":18906},{"$f":"VLOOKUP(\"Total Current Assets\",blanceSheet2,D$119,FALSE)","v":17488},{"$f":"VLOOKUP(\"Total Current Assets\",blanceSheet2,E$119,FALSE)","v":18424},{"$f":"VLOOKUP(\"Total Current Assets\",blanceSheet2,F$119,FALSE)","v":17213}]
["Current Liabilities",{"$f":"VLOOKUP(\"Total Current Liabilities\",blanceSheet2,B$119,FALSE)","v":11117},{"$f":"VLOOKUP(\"Total Current Liabilities\",blanceSheet2,C$119,FALSE)","v":11782},{"$f":"VLOOKUP(\"Total Current Liabilities\",blanceSheet2,D$119,FALSE)","v":10512},{"$f":"VLOOKUP(\"Total Current Liabilities\",blanceSheet2,E$119,FALSE)","v":11327},{"$f":"VLOOKUP(\"Total Current Liabilities\",blanceSheet2,F$119,FALSE)","v":10070}]
["Total Working Capital",{"$f":"B122-B123","v":3589},{"$f":"C122-C123","v":7124},6976,7097,7143]
["net working capital",null,{"$f":"C124-B124","v":3535},{"$f":"D124-C124","v":-148},121,46]
[]
["Principle Debt Repayment Calculation"]
["Total Long Term Debt",{"$f":"VLOOKUP(\"Total Long Term Debt\",blanceSheet2,B119,FALSE)","v":8675},{"$f":"VLOOKUP(\"Total Long Term Debt\",blanceSheet2,C119,FALSE)","v":15126},{"$f":"VLOOKUP(\"Total Long Term Debt\",blanceSheet2,D119,FALSE)","v":17490},{"$f":"VLOOKUP(\"Total Long Term Debt\",blanceSheet2,E119,FALSE)","v":15118},{"$f":"VLOOKUP(\"Total Long Term Debt\",blanceSheet2,F119,FALSE)","v":15607}]
["Principle Debt Repayment",null,{"$f":"C128-B128","v":6451},{"$f":"D128-C128","v":2364},-2372,489]
[]
["Book Value",{"$f":"B78-B67-B72-B73","v":37137},{"$f":"C78-C67-C72-C73","v":44352},43875,44294,43482]
[null,{"$f":"RATE(9,,-B131,F131,0,0)","v":1.7680400326561683E-2},{"$f":"RATE(6,,-C131,F131,0)","v":-3.2963457854105513E-3},{"$f":"RATE(4,,-D131,F131,0)","v":-2.2468775907808006E-3},{"$f":"RATE(9,,-E131,F131,0)","v":-2.0536847802307182E-3}]
[null,9,6,4,2,1]
[]
["Margins"]
["Gross Margin",{"$f":"B6/B3","v":0.30958144225920325},{"$f":"C6/C3","v":0.30932504300345603},0.29534396748167763,0.30255366678397111,0.30872533016768067]
["Operating Margin",{"$f":"B14/B3","v":7.5592536560766518E-2},{"$f":"C14/C3","v":7.2987517161929708E-2},5.44435548438751E-2,5.9243845341738453E-2,6.6701290992728896E-2]
["Net Margin",{"$f":"B30/B3","v":4.6848209783156833E-2},{"$f":"C30/C3","v":4.49603105717487E-2},3.4088809509145779E-2,3.8067842771241027E-2,4.332987090072711E-2]

{"sheet":"FCF","index":6,"n_rows":41,"n_cols":14,"rows_kept":41,"cut":false,"hidden":false,"merged":[]}
[]
[null,"FCFF Valuation"]
[null,null,"Value of Equity",{"$f":"D11","v":98830.516886737329}]
[null,null,"Shares Outstanding",{"$f":"VLOOKUP(\"Shares Outstanding \",quote,2,FALSE)","v":671.6}]
[null,null,"Valuation:",{"$f":"D3/D4","v":147.15681489984712}]
[]
[null,"Value of Equity Calculation",null,null,null,2011,2012,2013,2014,2015]
[null,null,"Net Present Value of the Firm",{"$f":"NPV(WACC,F8:J8)","v":112725.51688673733},null,{"$f":"I18","v":10590.1},{"$f":"J18","v":12082.4},13574.7,15067,{"$f":"SUM(M18:N18)","v":154553.71666666665}]
[null,null,"Debt",{"$f":"longTermDebt2","v":15607}]
[null,null,"Cash",{"$f":"cash2","v":1712}]
[null,null,"Value of Equity",{"$f":"D8-D9+D10","v":98830.516886737329}]
[]
[]
[]
[null,"Forcast Estimates",null,{"$f":"Financials!B1","v":0},{"$f":"Financials!C1","v":0},{"$f":"Financials!D1","v":0},{"$f":"Financials!E1","v":0},{"$f":"Financials!F1","v":0},2011,2012,2013,2014,2015,"Future"]
[null,null,null,2,3,4,5,6]
[]
[null,null,"Free Cash Flow to the Firm",4283,3102,5917,7937,9327,10590.1,12082.4,13574.7,15067,16559.3,{"$f":"(M18*1+GGR)/(WACC-GGR)","v":137994.41666666666}]
[null,null,"Free Cash Flow to Equity",null,null,null,null,null,null,null,null,null,null,{"$f":"(M19*1+GGR)/(WACC-GGR)","v":0.25}]
[]
[null,"Present Value of Free Cash Flows"]
[null,"Free Cash Flow to the Firm"]
[null,null,"EBIT ",{"$f":"VLOOKUP(\"Operating Income\",financials2,D16,FALSE)","v":4497},{"$f":"VLOOKUP(\"Operating Income\",financials2,E16,FALSE)","v":4625},{"$f":"VLOOKUP(\"Operating Income\",financials2,F16,FALSE)","v":3536},{"$f":"VLOOKUP(\"Operating Income\",financials2,G16,FALSE)","v":3872},{"$f":"VLOOKUP(\"Operating Income\",financials2,H16,FALSE)","v":4495}]
[null,null,"- Taxes",{"$f":"VLOOKUP(\"Income Tax - Total\",financials2,D16,FALSE)","v":1710},{"$f":"VLOOKUP(\"Income Tax - Total\",financials2,E16,FALSE)","v":1776},{"$f":"VLOOKUP(\"Income Tax - Total\",financials2,F16,FALSE)","v":1322},{"$f":"VLOOKUP(\"Income Tax - Total\",financials2,G16,FALSE)","v":1384},{"$f":"VLOOKUP(\"Income Tax - Total\",financials2,H16,FALSE)","v":1575}]
[null,null,"EBIT after tax",{"$f":"D23-D24","v":2787},{"$f":"E23-E24","v":2849},2214,2488,2920]
[null,null,"+ Depreciation Expense",{"$f":"VLOOKUP(\"Depreciation/Amortization\",financials2,D16,FALSE)","v":1496},{"$f":"VLOOKUP(\"Depreciation/Amortization\",financials2,E16,FALSE)","v":1659},{"$f":"VLOOKUP(\"Depreciation/Amortization\",financials2,F16,FALSE)","v":1826},{"$f":"VLOOKUP(\"Depreciation/Amortization\",financials2,G16,FALSE)","v":2023},{"$f":"VLOOKUP(\"Depreciation/Amortization\",financials2,H16,FALSE)","v":2084}]
[null,null,"- Capital Expenditures ",{"$f":"VLOOKUP(\"Capital Expenditures\",cashFlow2,D$16,FALSE)","v":0},{"$f":"VLOOKUP(\"Capital Expenditures\",cashFlow2,E$16,FALSE)","v":-2129},{"$f":"VLOOKUP(\"Capital Expenditures\",cashFlow2,F$16,FALSE)","v":-1729},{"$f":"VLOOKUP(\"Capital Expenditures\",cashFlow2,G$16,FALSE)","v":-3547},{"$f":"VLOOKUP(\"Capital Expenditures\",cashFlow2,H$16,FALSE)","v":-4369}]
[null,null,"- Change in Net Working Capital",{"$f":"VLOOKUP(\"net working capital\",netWorkingCapial3,D16,FALSE)","v":0},{"$f":"VLOOKUP(\"net working capital\",netWorkingCapial3,E16,FALSE)","v":3535},{"$f":"VLOOKUP(\"net working capital\",netWorkingCapial3,F16,FALSE)","v":-148},{"$f":"VLOOKUP(\"net working capital\",netWorkingCapial3,G16,FALSE)","v":121},{"$f":"VLOOKUP(\"net working capital\",netWorkingCapial3,H16,FALSE)","v":46}]
[null,null,"Operating Free Cash Flow (after tax)",{"$f":"D25+D26-D27-D28","v":4283},{"$f":"E25+E26-E27-E28","v":3102},5917,7937,9327]
[]
[null,"Free Cash Flow to Equity"]
[null,null,"EBIT",{"$f":"D23","v":4497},{"$f":"E23","v":4625},3536,3872,4495]
[null,null,"- Interest Expense",{"$f":"VLOOKUP(\"Interest Expense (Income), Net Operating\",financials2,D16,FALSE)","v":0},{"$f":"VLOOKUP(\"Interest Expense (Income), Net Operating\",financials2,E16,FALSE)","v":0},{"$f":"VLOOKUP(\"Interest Expense (Income), Net Operating\",financials2,F16,FALSE)","v":0},{"$f":"VLOOKUP(\"Interest Expense (Income), Net Operating\",financials2,G16,FALSE)","v":0},{"$f":"VLOOKUP(\"Interest Expense (Income), Net Operating\",financials2,H16,FALSE)","v":0}]
[null,null,"EBT before tax",{"$f":"D32-D33","v":4497},{"$f":"E32-E33","v":4625},3536,3872,4495]
[null,null,"- Taxes",{"$f":"D24","v":1710},{"$f":"E24","v":1776},1322,1384,1575]
[null,null,"Profit After Tax",{"$f":"D34-D35","v":2787},{"$f":"E34-E35","v":2849},2214,2488,2920]
[null,null,"+ Depreciation Expense",{"$f":"D26","v":1496},{"$f":"E26","v":1659},1826,2023,2084]
[null,null,"- Capital Expenditures",{"$f":"D27","v":0},{"$f":"E27","v":-2129},-1729,-3547,-4369]
[null,null,"- Change in Net Working Capital",{"$f":"D28","v":0},{"$f":"E28","v":3535},-148,121,46]
[null,null,"- Principal Debt Repayments (LTD-PrevLTD)",{"$f":"VLOOKUP(\"Principle Debt Repayment\",debtRepayment2,D16,FALSE)","v":0},{"$f":"VLOOKUP(\"Principle Debt Repayment\",debtRepayment2,E16,FALSE)","v":6451},{"$f":"VLOOKUP(\"Principle Debt Repayment\",debtRepayment2,F16,FALSE)","v":2364},{"$f":"VLOOKUP(\"Principle Debt Repayment\",debtRepayment2,G16,FALSE)","v":-2372},{"$f":"VLOOKUP(\"Principle Debt Repayment\",debtRepayment2,H16,FALSE)","v":489}]
[null,null,"Free Cash Flow to Equity",{"$f":"D36+D37-D38-D39-D40","v":4283},{"$f":"E36+E37-E38-E39-E40","v":-3349},3553,10309,8838]

{"sheet":"Summary","index":7,"n_rows":268,"n_cols":10,"rows_kept":268,"cut":false,"hidden":false,"merged":[]}
[null,"Quote",null,null,"Historical Prices"]
[null,"More",null,null,"More"]
[]
[null,"Autos",null,null,"Autos"]
[null,"Careers & Jobs",null,null,"Entertainment"]
[null,"Celebrities",null,null,"Lifestyle"]
[null,"Delish",null,null,"Online dating"]
[null,"Entertainment",null,null,"Video"]
[]
[null,"Games",null,null,"Careers & Jobs"]
[null,"Glo",null,null,"Games"]
[null,"Health, Diet & Fitness",null,null,"Local Edition"]
[null,"Lifestyle",null,null,"Real Estate & Rentals"]
[null,"Local Edition",null,null,"Weather"]
[]
[null,"Money",null,null,"Celebrities"]
[null,"News",null,null,"Glo"]
[null,"Online dating",null,null,"Money"]
[null,"Real Estate & Rentals",null,null,"Sports"]
[null,"Sports",null,null,"White Pages"]
[]
[null,"Travel",null,null,"Delish"]
[null,"Video",null,null,"Health, Diet & Fitness"]
[null,"Weather",null,null,"News"]
[null,"White Pages",null,null,"Travel"]
[null,"Full MSN Index",null,null,"Full MSN Index"]
[null,"Hotmail",null,null,"Hotmail"]
[]
[null,"Inbox",null,null,"Inbox"]
[null,"Calendar",null,null,"Calendar"]
[null,"Contacts",null,null,"Contacts"]
[null,"Send e-mail",null,null,"Send e-mail"]
[null,"Messenger",null,null,"Messenger"]
[null,"Bing",null,null,"Bing"]
[null,"Make MSN your homepage Make Bing your decision engine",null,null,"Make MSN your homepage Make Bing your decision engine"]
[null,"Welcome",null,null,"Welcome"]
[null,"Money",null,null,"Money"]
[null,"Bing Search:",null,null,"Bing Search:"]
[null,"Money",null,null,"Money"]
[null,"|",null,null,"|"]
[null,"Web",null,null,"Web"]
[null,"Bing search:",null,null,"Bing search:"]
[null,"Page options",null,null,"Page options"]
[]
[null,"Make text larger",null,null,"Make text larger"]
[null,"enabledShow search suggestions",null,null,"enabledShow search suggestions"]
[null,"Help",null,null,"Help"]
[null,"|",null,null,"|"]
[null,"Sign in",null,null,"Sign in"]
[null,"Follow",null,null,"Home"]
[null,"Home"]
[null,null,null,null,"News"]
[null,"Home"]
[null,"News",null,null,"Headlines"]
[null,"Investing",null,null,"Video"]
[null,"Personal Finance",null,null,"Investing"]
[null,"My Money"]
[null,"Taxes",null,null,"portfolio manager"]
[null,"Real Estate",null,null,"markets"]
[null,"Careers",null,null,"stocks"]
[null,"Autos",null,null,"mutual funds"]
[null,"News",null,null,"etfs"]
[null,null,null,null,"broker center"]
[null,"headlines",null,null,"investor pro"]
[null,"Video",null,null,"Personal Finance"]
[null,"Investing"]
[null,null,null,null,"Saving & Budgeting"]
[null,"Portfolio Manager",null,null,"Credit & Debt"]
[null,"Markets",null,null,"Loans"]
[null,"Stocks",null,null,"Retirement"]
[null,"Mutual Funds",null,null,"Insurance"]
[null,"ETFS",null,null,"Taxes"]
[null,"Broker Center",null,null,"Your Money"]
[null,"Investor Pro",null,null,"My Money"]
[null,"Personal Finance"]
[null,null,null,null,"Real Estate"]
[null,"Saving & Budgeting"]
[null,"Credit & Debt",null,null,"Careers"]
[null,"Loans"]
[null,"Retirement",null,null,"Autos"]
[null,"Insurance"]
[null,"Taxes",null,null,"Target Corp (NYSE : TGT)"]
[null,"your money",null,null,"Trade now"]
[null,"My Money",null,null,"Add to Watchlist"]
[null,null,null,null,"Get chart"]
[null,"Real Estate",null,null,"Print report"]
[null,null,null,null,"Find prices for: 53.50Up+0.03+0.06%Delayed "]
[null,"Careers",null,null,"MORE ABOUT TGT"]
[null,null,null,null,"SUMMARY"]
[null,"Autos",null,null,"Quote"]
[null,null,null,null,"Options"]
[null,"Target Corp (NYSE: TGT)",null,null,"Historical Prices"]
[null,"Trade now",null,null,"CHARTS"]
[null,"Add to Watchlist",null,null,"Basic"]
[null,"Get Chart",null,null,"NEWS"]
[null,"Print report",null,null,"Headlines"]
[null,"53.50Up+0.03 +0.06% ",null,null,"Key Developments"]
[null,"MORE ON TGT",null,null,"FUNDAMENTALS"]
[null,"SUMMARY",null,null,"Financial Highlights"]
[null,"Quote",null,null,"Profile"]
[null,"Options",null,null,"Key Ratios"]
[null,"Historical Prices",null,null,"10-Year Summary"]
[null,"CHARTS",null,null,"Earnings"]
[null,"Interactive Chart",null,null,"SEC Filings"]
[null,"NEWS",null,null,"RATINGS/ANALYSIS"]
[null,"Headlines",null,null,"StockScouter Report"]
[null,"Key Developments",null,null,"Analyst Ratings"]
[null,"FUNDAMENTALS",null,null,"INSIDER ACTION"]
[null,"Financial Highlights",null,null,"Insider Trades"]
[null,"Profile",null,null,"Ownership"]
[null,"Key Ratios",null,null,"FINANCIALS"]
[null,"10-Year Summary",null,null,"Income Statement"]
[null,"Earnings",null,null,"Balance Sheet"]
[null,"SEC Filings",null,null,"Cash Flow"]
[null,"RATINGS/ANALYSIS",null,null,"10-Year Summary"]
[null,"StockScouter Report"]
[null,"Analyst Ratings",null,null,"Ad Choice"]
[null,"INSIDER ACTION"]
[null,"Insider Trades",null,null,"Feedback"]
[null,"Ownership"]
[null,"FINANCIALS",null,null,"TARGET CORPDownload file"]
[null,"Income Statement",null,null,"Date","High","Low","Open","Close","Volume"]
[null,"Balance Sheet",null,null,"2011-12-09",54.3,52.865000000000002,53.2,53.5,26020100]
[null,"Cash Flow",null,null,"2011-12-02",53.35,51.35,52.411999999999999,52.88,35958700]
[null,"10-Year Summary",null,null,"2011-11-25",53.01,51.21,52.05,51.21,18856400]
[null,null,null,null,"2011-11-18",54.99,52.16,52.5,53,35934600]
[null,"DETAILS",null,null,"2011-11-11",53.14,51.53,52.28,53.07,23168900]
[null,"Symbol ","Value ($) ",null,"2011-11-04",55.4,51.12,54.73,52.17,48253100]
[null,"Previous Close ",53.47,null,"2011-10-28",56,54.11,54.41,55.24,27691600]
[null,"Open ",53.72,null,"2011-10-21",54.65,52.62,52.66,54.64,24440300]
[null,"Day's High ",53.9,null,"2011-10-14",53.59,51.84,52.07,52.95,26486500]
[null,"Day's Low ",53.29,null,"2011-10-07",52.42,47.62,48.68,51.56,45693600]
[null,"Volume ","3.98 Mil ",null,"2011-09-30",51.75,49.01,49.52,49.04,37855600]
[null,"Avg Daily Vol (13 Wks) ","6.66 Mil ",null,"2011-09-23",53.13,48.62,51.92,49.14,36937100]
[null,"Bid ",52.19,null,"2011-09-16",53.39,49.08,49.43,52.66,34832500]
[null,"Bid Size ",200,null,"2011-09-09",51.41,48.36,48.77,50.02,28688900]
[null,"Ask ",53.8,null,"2011-09-02",52.24,49.71,51.3,49.71,32908700]
[null,"Ask Size ",1000,null,"2011-08-26",51.43,48.84,50.63,50.83,26574700]
[null,"52-Wk High ",60.97,null,"2011-08-19",52.26,47.82,48.68,49.92,59381800]
[null,"52-Wk Low ",45.28,null,"2011-08-12",49,45.28,47.6,48.48,56134400]
[null,"Dividend Rate ",1.2,null,"2011-08-05",51.68,47.3,51.67,48.65,50793400]
[null,"Yield ",2.2400000000000002,null,"2011-07-29",51.83,50.25,51.39,51.49,28420000]
[null,"Quotes delayed 15 min",null,null,"2011-07-22",52,50.35,50.91,51.81,29085800]
[null,"Last trade 12/9/2011 4:00 PM ET",null,null,"2011-07-15",51.46,50.39,50.68,51.09,32421800]
[null,"STOCKSCOUTER",null,null,"2011-07-08",52.13,47.45,47.96,51.14,44476000]
[null,6,null,null,"2011-07-01",47.97,45.65,45.93,47.93,32648800]
[null,"Rating: 6 out of 10 ",null,null,"2011-06-24",47.78,46.32,46.49,46.33,36206500]
[null,"How StockScouter Works",null,null,"2011-06-17",47.490099999999998,46.15,46.73,46.53,33145400]
[null,null,null,null,"2011-06-10",47.96,46.51,47.32,46.7,33392300]
[null,"Analyst Recommendation: Moderate Buy",null,null,"2011-06-03",49.77,47.33,49.6,47.4,30123100]
[null,"FINANCIAL HIGHLIGHTS",null,null,"2011-05-27",49.83,48.935000000000002,49.37,49.37,26406100]
[null,"Symbol ","Value ($) ",null,"2011-05-20",51.56,48.8,51.33,49.69,48908800]
[null,"Sales* ","69.24 Bil ",null,"2011-05-16","0.250 Ex-dividend"]
[null,"Income* ","2.98 Bil ",null,"2011-05-13",52.12,49.81,50.47,51.52,31133300]
[null,"Sales Growth* ",3.1E-2,null,"2011-05-06",50.91,48.51,49.34,50.51,48304000]
[null,"Income Growth* ",0.17399999999999999,null,"2011-04-29",50.85,49.02,49.87,49.1,29240700]
[null,"Net Profit Margin ",4.3099999999999999E-2,null,"2011-04-21",50.79,49.46,49.94,49.9,20801200]
[null,"Debt/Equity Ratio ",1.24,null,"2011-04-15",50.64,49.13,49.53,50.24,30693500]
[null,"Beta ",0.89,null,"2011-04-08",51.13,49.1,50.5,49.53,38342100]
[null,"EPS ",4.28,null,"2011-04-01",50.58,49.03,50.17,50.36,35500900]
[null,"Forward P/E ",12.36,null,"2011-03-25",51.05,49.89,50.99,49.95,33547500]
[null,"P/E ",12.53,null,"2011-03-18",51.35,49.45,51.35,49.99,37040200]
[null,"Market Cap ","35.93 Bil ",null,"2011-03-11",52.155000000000001,50.9,51.82,51.53,32370600]
[null,"Shares Outstanding ",671.6,null,"2011-03-04",52.98,51.25,52.3,51.65,50364700]
[null,"More",null,null,"2011-02-25",52.71,50,51.54,52.36,59370800]
[null,"* last 12 months",null,null,"2011-02-18",54.49,51.75,54.19,51.9,47627400]
[null,"TOP FUNDS HOLDING",null,null,"2011-02-14","0.250 Ex-dividend"]
[null,"NAME ","% OWN ",null,"2011-02-11",55.53,54.15,54.42,54.39,25002900]
[null,"Vanguard Total Stock Market Index Fund ",1.0999999999999999E-2,null,"2011-02-04",55.04,53.06,54.91,54.27,38582100]
[null,"Vanguard Wellington Fund, Inc. ",1.0999999999999999E-2,null,"2011-01-28",56.24,54.27,55.58,54.35,31589800]
[null,"CREF Stock Account ",1.0999999999999999E-2,null,"2011-01-21",56.44,53.86,55.1,55.73,31989400]
[null,"More",null,null,"2011-01-14",56.398099999999999,54.99,55.3,55.07,40837700]
[null,"INTRADAY CHART Full-page chart",null,null,"2011-01-07",60.97,54.29,60.26,55.05,57914500]
[null,"1D 5D 10D 1M 3M 1Y 3Y 10Y",null,null,"2010-12-31",60.51,59.73,60.06,60.13,10266600]
[null,"NEWS",null,null,"2010-12-23",60.65,58.34,58.84,60.26,17195600]
[null,"TOP",null,null,"2010-12-17",59.61,58.43,59.23,58.52,23007300]
[null,"1 Stock Making Money the Right Way",null,null,"2010-12-10",60,58.634999999999998,59,58.95,20011300]
[null,"Motley Fool | 12/9/2011"]
[null,"Amazon Stocked on Toys Rivals Don’t Have",null,null,"Page generated 12/10/2011 6:39 PM Eastern Standard Time"]
[null,"Bloomberg | 12/9/2011"]
[null,"6 Big Turnaround Hopes for 2012",null,null,"DATA PROVIDERS"]
[null,"InvestorPlace | 12/9/2011"]
[null,"A Look at Wal-Mart's Bribery Probe",null,null,"Copyright © 2011 Microsoft. All rights reserved."]
[null,"Motley Fool | 12/9/2011"]
[null,"How to Profit From Lower Commodity Prices",null,null,"Quotes are real-time for NASDAQ, NYSE and AMEX. See delay times for other exchanges."]
[null,"InvestorPlace | 12/9/2011"]
[null,"Does Sears deserve a $6 price target?",null,null,"Fundamental company data and historical chart data provided by Thomson Reuters (click for restrictions). Real-time quotes provided by BATS Exchange. Real-time index quotes and delayed quotes supplied by Interactive Data Real-Time Services. Fund summary, fund performance and dividend data provided by Morningstar Inc. Analyst recommendations provided by Zacks Investment Research. StockScouter data provided by Verus Analytics. IPO data provided by Hoover's Inc. Index membership data provided by SIX Telekurs."]
[null,"Top Stocks | 12/9/2011"]
[null,"S&P 500 Analyst Estimate Revisions for Dec. 9",null,null,"Japanese stock price data provided by Nomura Research Institute Ltd.; quotes delayed 20 minutes. Canadian fund data provided by CANNEX Financial Exchanges Ltd."]
[null,"Bloomberg | 12/9/2011"]
[null,"Holiday Hiring Brings Joy to the Unemployed",null,null,"Privacy"]
[null,"TheStreet.com | 12/9/2011",null,null,"Legal"]
[null,"Cyber Monday Comes Twice as Sears Bargains Crimp Margins: Retail",null,null,"Advertise"]
[null,"Bloomberg | 12/9/2011",null,null,"MSN Worldwide"]
[null,"Amazon Is Tier 1",null,null,"Help"]
[null,"Motley Fool | 12/8/2011",null,null,"About our ads"]
[null,"View all news",null,null,"Feedback"]
[null,"PRESS REL",null,null,"Site map"]
[null,"Target Announces the Almost Last Minute Sale Featuring Three Days of Deep Discounts Beginning Dec. 8",null,null,"RSS"]
[null,"Business Wire | 12/6/2011",null,null,"© 2011 Microsoft "]
[null,"Target Announces Big Toy Event Featuring Buy One, Get One 50 Percent Off On Biggest Toy Brands"]
[null,"Business Wire | 12/1/2011"]
[null,"Target Reports November Sales Results"]
[null,"Business Wire | 12/1/2011"]
[null,"A Change in Tides - Featured Research on Target Corporation and Hansen Natural Corporation"]
[null,"Market Wire | 11/29/2011"]
[null,"Target to Award $5 Million to Schools in Need"]
[null,"Business Wire | 11/28/2011"]
[null,"Target Names Casey Carl President, Multichannel"]
[null,"Business Wire | 11/22/2011"]
[null,"Target Unveils Black Friday Doorbuster Deals"]
[null,"Business Wire | 11/21/2011"]
[null,"Target Corporation Announces Strong Third Quarter 2011 Earnings"]
[null,"Business Wire | 11/16/2011"]
[null,"Target Corp. to Webcast 3rd Quarter Earnings Conference Call"]
[null,"Business Wire | 11/15/2011"]
[null,"CityTarget Coming to Westwood"]
[null,"Business Wire | 11/14/2011"]
[null,"View all news"]
[null,"COMMENTARY"]
[null,"How Target is gaining on Wal-Mart"]
[null,"VIDEO ON MSN MONEY"]
[null,"DATA PROVIDERS"]
[]
[null,"Copyright © 2011 Microsoft. All rights reserved."]
[]
[null,"Quotes are real-time for NASDAQ, NYSE and AMEX. See delay times for other exchanges."]
[]
[null,"Fundamental company data and historical chart data provided by Thomson Reuters (click for restrictions). Real-time quotes provided by BATS Exchange. Real-time index quotes and delayed quotes supplied by Interactive Data Real-Time Services. Fund summary, fund performance and dividend data provided by Morningstar Inc. Analyst recommendations data provided by Zacks Investment Research. StockScouter data provided by Verus Analytics. IPO data provided by Hoover's Inc. Index membership data provided by SIX Telekurs."]
[]
[null,"Japanese stock price data provided by Nomura Research Institute Ltd.; quotes delayed 20 minutes. Canadian fund data provided by CANNEX Financial Exchanges Ltd."]
[]
[null,"Financial data in US dollars | Page generated 6:38 PM ET"]
[null,"Ad ChoiceFeedback"]
[null,"RECENT QUOTES"]
[null,"WATCHLIST"]
[null,"You're not signed in"]
[null,"You’re not signed in to MSN Money, so you’re seeing the Watchlist that is tied to your computer. For a more consistent Watchlist experience, sign in to MSN Money. Learn more"]
[null,"View full page"]
[null,"SYMBOL"]
[null,"LAST"]
[null,"CHANGE"]
[null,"SHARES"]
[null,"Where's my list? | Update quotes | Clear all lists "]
[null,"Quotes delayed at least 15 min "]
[null,"Sponsored by:"]
[null,"MARKET UPDATE"]
[null,"[BRIEFING.COM] Stocks closed out the week on a strong note, helping the broad market book another weekly gain. Europe remained the primary topic of trade. Traders took early cues from Europe, where the region's major bourses bounced because of the fo ... More"]
[null,"MORE MARKET NEWS"]
[null,"Stock Ticker"]
[null,"Story Stocks"]
[null,"In Play"]
[null,"Short Stories"]
[null,"Sponsored by:"]
[null,"INVESTING TIPS AND TOOLS"]
[null,"Stock screener on Bing"]
[null,"Message boards on Bundle"]
[null,"Ad ChoiceFeedback"]
[null,"Privacy"]
[null,"Legal"]
[null,"Advertise"]
[null,"MSN Worldwide"]
[null,"Help"]
[null,"About our ads"]
[null,"Feedback"]
[null,"Site map"]
[null,"RSS"]
[null,"© 2011 Microsoft "]

{"sheet":"Fundamentals","index":8,"n_rows":214,"n_cols":60,"rows_kept":214,"cut":false,"hidden":false,"merged":[]}
[null,"Profile",null,null,"Financial Highlights",null,null,null,null,"Key Ratios: Growth",null,null,null,null,"Key Ratios: Price Ratios",null,null,null,null,"Key Ratios: Profit Mgn",null,null,null,null,"Key Ratios: Financial Conditions",null,null,null,null,"Key Ratios: Inv Returns",null,null,null,null,"Key Ratios: Management Efficiency",null,null,null,null,"Key Ratios: 10 Year Summary",null,null,null,null,null,null,"10 Year Summary",null,null,null,null,null,null,null,"Earnings"]
[null,"More",null,null,"More",null,null,null,null,"More",null,null,null,null,"More",null,null,null,null,"More",null,null,null,null,"More",null,null,null,null,"More",null,null,null,null,"More",null,null,null,null,"More",null,null,null,null,null,null,"More",null,null,null,null,null,null,null,"More"]
[]
[null,"Autos",null,null,"Autos",null,null,null,null,"Autos",null,null,null,null,"Autos",null,null,null,null,"Autos",null,null,null,null,"Autos",null,null,null,null,"Autos",null,null,null,null,"Autos",null,null,null,null,"Autos",null,null,null,null,null,null,"Autos",null,null,null,null,null,null,null,"Autos"]
[null,"Careers & Jobs",null,null,"Careers & Jobs",null,null,null,null,"Entertainment",null,null,null,null,"Entertainment",null,null,null,null,"Entertainment",null,null,null,null,"Entertainment",null,null,null,null,"Entertainment",null,null,null,null,"Entertainment",null,null,null,null,"Entertainment",null,null,null,null,null,null,"Careers & Jobs",null,null,null,null,null,null,null,"Careers & Jobs"]
[null,"Celebrities",null,null,"Celebrities",null,null,null,null,"Lifestyle",null,null,null,null,"Lifestyle",null,null,null,null,"Lifestyle",null,null,null,null,"Lifestyle",null,null,null,null,"Lifestyle",null,null,null,null,"Lifestyle",null,null,null,null,"Lifestyle",null,null,null,null,null,null,"Celebrities",null,null,null,null,null,null,null,"Celebrities"]
[null,"Delish",null,null,"Delish",null,null,null,null,"Online dating",null,null,null,null,"Online dating",null,null,null,null,"Online dating",null,null,null,null,"Online dating",null,null,null,null,"Online dating",null,null,null,null,"Online dating",null,null,null,null,"Online dating",null,null,null,null,null,null,"Delish",null,null,null,null,null,null,null,"Delish"]
[null,"Entertainment",null,null,"Entertainment",null,null,null,null,"Video",null,null,null,null,"Video",null,null,null,null,"Video",null,null,null,null,"Video",null,null,null,null,"Video",null,null,null,null,"Video",null,null,null,null,"Video",null,null,null,null,null,null,"Entertainment",null,null,null,null,null,null,null,"Entertainment"]
[]
[null,"Games",null,null,"Games",null,null,null,null,"Careers & Jobs",null,null,null,null,"Careers & Jobs",null,null,null,null,"Careers & Jobs",null,null,null,null,"Careers & Jobs",null,null,null,null,"Careers & Jobs",null,null,null,null,"Careers & Jobs",null,null,null,null,"Careers & Jobs",null,null,null,null,null,null,"Games",null,null,null,null,null,null,null,"Games"]
[null,"Glo",null,null,"Glo",null,null,null,null,"Games",null,null,null,null,"Games",null,null,null,null,"Games",null,null,null,null,"Games",null,null,null,null,"Games",null,null,null,null,"Games",null,null,null,null,"Games",null,null,null,null,null,null,"Glo",null,null,null,null,null,null,null,"Glo"]
[null,"Health, Diet & Fitness",null,null,"Health, Diet & Fitness",null,null,null,null,"Local Edition",null,null,null,null,"Local Edition",null,null,null,null,"Local Edition",null,null,null,null,"Local Edition",null,null,null,null,"Local Edition",null,null,null,null,"Local Edition",null,null,null,null,"Local Edition",null,null,null,null,null,null,"Health, Diet & Fitness",null,null,null,null,null,null,null,"Health, Diet & Fitness"]
[null,"Lifestyle",null,null,"Lifestyle",null,null,null,null,"Real Estate & Rentals",null,null,null,null,"Real Estate & Rentals",null,null,null,null,"Real Estate & Rentals",null,null,null,null,"Real Estate & Rentals",null,null,null,null,"Real Estate & Rentals",null,null,null,null,"Real Estate & Rentals",null,null,null,null,"Real Estate & Rentals",null,null,null,null,null,null,"Lifestyle",null,null,null,null,null,null,null,"Lifestyle"]
[null,"Local Edition",null,null,"Local Edition",null,null,null,null,"Weather",null,null,null,null,"Weather",null,null,null,null,"Weather",null,null,null,null,"Weather",null,null,null,null,"Weather",null,null,null,null,"Weather",null,null,null,null,"Weather",null,null,null,null,null,null,"Local Edition",null,null,null,null,null,null,null,"Local Edition"]
[]
[null,"Money",null,null,"Money",null,null,null,null,"Celebrities",null,null,null,null,"Celebrities",null,null,null,null,"Celebrities",null,null,null,null,"Celebrities",null,null,null,null,"Celebrities",null,null,null,null,"Celebrities",null,null,null,null,"Celebrities",null,null,null,null,null,null,"Money",null,null,null,null,null,null,null,"Money"]
[null,"News",null,null,"News",null,null,null,null,"Glo",null,null,null,null,"Glo",null,null,null,null,"Glo",null,null,null,null,"Glo",null,null,null,null,"Glo",null,null,null,null,"Glo",null,null,null,null,"Glo",null,null,null,null,null,null,"News",null,null,null,null,null,null,null,"News"]
[null,"Online dating",null,null,"Online dating",null,null,null,null,"Money",null,null,null,null,"Money",null,null,null,null,"Money",null,null,null,null,"Money",null,null,null,null,"Money",null,null,null,null,"Money",null,null,null,null,"Money",null,null,null,null,null,null,"Online dating",null,null,null,null,null,null,null,"Online dating"]
[null,"Real Estate & Rentals",null,null,"Real Estate & Rentals",null,null,null,null,"Sports",null,null,null,null,"Sports",null,null,null,null,"Sports",null,null,null,null,"Sports",null,null,null,null,"Sports",null,null,null,null,"Sports",null,null,null,null,"Sports",null,null,null,null,null,null,"Real Estate & Rentals",null,null,null,null,null,null,null,"Real Estate & Rentals"]
[null,"Sports",null,null,"Sports",null,null,null,null,"White Pages",null,null,null,null,"White Pages",null,null,null,null,"White Pages",null,null,null,null,"White Pages",null,null,null,null,"White Pages",null,null,null,null,"White Pages",null,null,null,null,"White Pages",null,null,null,null,null,null,"Sports",null,null,null,null,null,null,null,"Sports"]
[]
[null,"Travel",null,null,"Travel",null,null,null,null,"Delish",null,null,null,null,"Delish",null,null,null,null,"Delish",null,null,null,null,"Delish",null,null,null,null,"Delish",null,null,null,null,"Delish",null,null,null,null,"Delish",null,null,null,null,null,null,"Travel",null,null,null,null,null,null,null,"Travel"]
[null,"Video",null,null,"Video",null,null,null,null,"Health, Diet & Fitness",null,null,null,null,"Health, Diet & Fitness",null,null,null,null,"Health, Diet & Fitness",null,null,null,null,"Health, Diet & Fitness",null,null,null,null,"Health, Diet & Fitness",null,null,null,null,"Health, Diet & Fitness",null,null,null,null,"Health, Diet & Fitness",null,null,null,null,null,null,"Video",null,null,null,null,null,null,null,"Video"]
[null,"Weather",null,null,"Weather",null,null,null,null,"News",null,null,null,null,"News",null,null,null,null,"News",null,null,null,null,"News",null,null,null,null,"News",null,null,null,null,"News",null,null,null,null,"News",null,null,null,null,null,null,"Weather",null,null,null,null,null,null,null,"Weather"]
[null,"White Pages",null,null,"White Pages",null,null,null,null,"Travel",null,null,null,null,"Travel",null,null,null,null,"Travel",null,null,null,null,"Travel",null,null,null,null,"Travel",null,null,null,null,"Travel",null,null,null,null,"Travel",null,null,null,null,null,null,"White Pages",null,null,null,null,null,null,null,"White Pages"]
[null,"Full MSN Index",null,null,"Full MSN Index",null,null,null,null,"Full MSN Index",null,null,null,null,"Full MSN Index",null,null,null,null,"Full MSN Index",null,null,null,null,"Full MSN Index",null,null,null,null,"Full MSN Index",null,null,null,null,"Full MSN Index",null,null,null,null,"Full MSN Index",null,null,null,null,null,null,"Full MSN Index",null,null,null,null,null,null,null,"Full MSN Index"]
[null,"Hotmail",null,null,"Hotmail",null,null,null,null,"Hotmail",null,null,null,null,"Hotmail",null,null,null,null,"Hotmail",null,null,null,null,"Hotmail",null,null,null,null,"Hotmail",null,null,null,null,"Hotmail",null,null,null,null,"Hotmail",null,null,null,null,null,null,"Hotmail",null,null,null,null,null,null,null,"Hotmail"]
[]
[null,"Inbox",null,null,"Inbox",null,null,null,null,"Inbox",null,null,null,null,"Inbox",null,null,null,null,"Inbox",null,null,null,null,"Inbox",null,null,null,null,"Inbox",null,null,null,null,"Inbox",null,null,null,null,"Inbox",null,null,null,null,null,null,"Inbox",null,null,null,null,null,null,null,"Inbox"]
[null,"Calendar",null,null,"Calendar",null,null,null,null,"Calendar",null,null,null,null,"Calendar",null,null,null,null,"Calendar",null,null,null,null,"Calendar",null,null,null,null,"Calendar",null,null,null,null,"Calendar",null,null,null,null,"Calendar",null,null,null,null,null,null,"Calendar",null,null,null,null,null,null,null,"Calendar"]
[null,"Contacts",null,null,"Contacts",null,null,null,null,"Contacts",null,null,null,null,"Contacts",null,null,null,null,"Contacts",null,null,null,null,"Contacts",null,null,null,null,"Contacts",null,null,null,null,"Contacts",null,null,null,null,"Contacts",null,null,null,null,null,null,"Contacts",null,null,null,null,null,null,null,"Contacts"]
[null,"Send e-mail",null,null,"Send e-mail",null,null,null,null,"Send e-mail",null,null,null,null,"Send e-mail",null,null,null,null,"Send e-mail",null,null,null,null,"Send e-mail",null,null,null,null,"Send e-mail",null,null,null,null,"Send e-mail",null,null,null,null,"Send e-mail",null,null,null,null,null,null,"Send e-mail",null,null,null,null,null,null,null,"Send e-mail"]
[null,"Messenger",null,null,"Messenger",null,null,null,null,"Messenger",null,null,null,null,"Messenger",null,null,null,null,"Messenger",null,null,null,null,"Messenger",null,null,null,null,"Messenger",null,null,null,null,"Messenger",null,null,null,null,"Messenger",null,null,null,null,null,null,"Messenger",null,null,null,null,null,null,null,"Messenger"]
[null,"Bing",null,null,"Bing",null,null,null,null,"Bing",null,null,null,null,"Bing",null,null,null,null,"Bing",null,null,null,null,"Bing",null,null,null,null,"Bing",null,null,null,null,"Bing",null,null,null,null,"Bing",null,null,null,null,null,null,"Bing",null,null,null,null,null,null,null,"Bing"]
[null,"Make MSN your homepage Make Bing your decision engine",null,null,"Make MSN your homepage Make Bing your decision engine",null,null,null,null,"Make MSN your homepageMake Bing your decision engine",null,null,null,null,"Make MSN your homepageMake Bing your decision engine",null,null,null,null,"Make MSN your homepageMake Bing your decision engine",null,null,null,null,"Make MSN your homepageMake Bing your decision engine",null,null,null,null,"Make MSN your homepageMake Bing your decision engine",null,null,null,null,"Make MSN your homepageMake Bing your decision engine",null,null,null,null,"Make MSN your homepageMake Bing your decision engine",null,null,null,null,null,null,"Make MSN your homepage Make Bing your decision engine",null,null,null,null,null,null,null,"Make MSN your homepage Make Bing your decision engine"]
[null,"Welcome",null,null,"Welcome",null,null,null,null,"Welcome",null,null,null,null,"Welcome",null,null,null,null,"Welcome",null,null,null,null,"Welcome",null,null,null,null,"Welcome",null,null,null,null,"Welcome",null,null,null,null,"Welcome",null,null,null,null,null,null,"Welcome",null,null,null,null,null,null,null,"Welcome"]
[null,"Money",null,null,"Money",null,null,null,null,"Money",null,null,null,null,"Money",null,null,null,null,"Money",null,null,null,null,"Money",null,null,null,null,"Money",null,null,null,null,"Money",null,null,null,null,"Money",null,null,null,null,null,null,"Money",null,null,null,null,null,null,null,"Money"]
[null,"Bing Search:",null,null,"Bing Search:",null,null,null,null,"Bing Search:",null,null,null,null,"Bing Search:",null,null,null,null,"Bing Search:",null,null,null,null,"Bing Search:",null,null,null,null,"Bing Search:",null,null,null,null,"Bing Search:",null,null,null,null,"Bing Search:",null,null,null,null,null,null,"Bing Search:",null,null,null,null,null,null,null,"Bing Search:"]
[null,"Money",null,null,"Money",null,null,null,null,"Money",null,null,null,null,"Money",null,null,null,null,"Money",null,null,null,null,"Money",null,null,null,null,"Money",null,null,null,null,"Money",null,null,null,null,"Money",null,null,null,null,null,null,"Money",null,null,null,null,null,null,null,"Money"]
[null,"|",null,null,"|",null,null,null,null,"|",null,null,null,null,"|",null,null,null,null,"|",null,null,null,null,"|",null,null,null,null,"|",null,null,null,null,"|",null,null,null,null,"|",null,null,null,null,null,null,"|",null,null,null,null,null,null,null,"|"]
[null,"Web",null,null,"Web",null,null,null,null,"Web",null,null,null,null,"Web",null,null,null,null,"Web",null,null,null,null,"Web",null,null,null,null,"Web",null,null,null,null,"Web",null,null,null,null,"Web",null,null,null,null,null,null,"Web",null,null,null,null,null,null,null,"Web"]
[null,"Bing search:",null,null,"Bing search:",null,null,null,null,"Bing search:",null,null,null,null,"Bing search:",null,null,null,null,"Bing search:",null,null,null,null,"Bing search:",null,null,null,null,"Bing search:",null,null,null,null,"Bing search:",null,null,null,null,"Bing search:",null,null,null,null,null,null,"Bing search:",null,null,null,null,null,null,null,"Bing search:"]
[null,"Page options",null,null,"Page options",null,null,null,null,"Page options",null,null,null,null,"Page options",null,null,null,null,"Page options",null,null,null,null,"Page options",null,null,null,null,"Page options",null,null,null,null,"Page options",null,null,null,null,"Page options",null,null,null,null,null,null,"Page options",null,null,null,null,null,null,null,"Page options"]
[]
[null,"Make text larger",null,null,"Make text larger",null,null,null,null,"Make text larger",null,null,null,null,"Make text larger",null,null,null,null,"Make text larger",null,null,null,null,"Make text larger",null,null,null,null,"Make text larger",null,null,null,null,"Make text larger",null,null,null,null,"Make text larger",null,null,null,null,null,null,"Make text larger",null,null,null,null,null,null,null,"Make text larger"]
[null,"enabledShow search suggestions",null,null,"enabledShow search suggestions",null,null,null,null,"enabledShow search suggestions",null,null,null,null,"enabledShow search suggestions",null,null,null,null,"enabledShow search suggestions",null,null,null,null,"enabledShow search suggestions",null,null,null,null,"enabledShow search suggestions",null,null,null,null,"enabledShow search suggestions",null,null,null,null,"enabledShow search suggestions",null,null,null,null,null,null,"enabledShow search suggestions",null,null,null,null,null,null,null,"enabledShow search suggestions"]
[null,"Help",null,null,"Help",null,null,null,null,"Help",null,null,null,null,"Help",null,null,null,null,"Help",null,null,null,null,"Help",null,null,null,null,"Help",null,null,null,null,"Help",null,null,null,null,"Help",null,null,null,null,null,null,"Help",null,null,null,null,null,null,null,"Help"]
[null,"|",null,null,"|",null,null,null,null,"|",null,null,null,null,"|",null,null,null,null,"|",null,null,null,null,"|",null,null,null,null,"|",null,null,null,null,"|",null,null,null,null,"|",null,null,null,null,null,null,"|",null,null,null,null,null,null,null,"|"]
[null,"Sign in",null,null,"Sign in",null,null,null,null,"Sign in",null,null,null,null,"Sign in",null,null,null,null,"Sign in",null,null,null,null,"Sign in",null,null,null,null,"Sign in",null,null,null,null,"Sign in",null,null,null,null,"Sign in",null,null,null,null,null,null,"Sign in",null,null,null,null,null,null,null,"Sign in"]
[null,"Follow",null,null,"Follow",null,null,null,null,"Home",null,null,null,null,"Home",null,null,null,null,"Home",null,null,null,null,"Home",null,null,null,null,"Home",null,null,null,null,"Home",null,null,null,null,"Home",null,null,null,null,null,null,"Follow",null,null,null,null,null,null,null,"Follow"]
[null,"Home",null,null,"Home",null,null,null,null,null,null,null,null,null,null,null,null,null,null,null,null,null,null,null,null,null,null,null,null,null,null,null,null,null,null,null,null,null,null,null,null,null,null,null,null,null,"Home",null,null,null,null,null,null,null,"Home"]
[null,null,null,null,null,null,null,null,null,"News",null,null,null,null,"News",null,null,null,null,"News",null,null,null,null,"News",null,null,null,null,"News",null,null,null,null,"News",null,null,null,null,"News"]
[null,"Home",null,null,"Home",null,null,null,null,null,null,null,null,null,null,null,null,null,null,null,null,null,null,null,null,null,null,null,null,null,null,null,null,null,null,null,null,null,null,null,null,null,null,null,null,null,"Home",null,null,null,null,null,null,null,"Home"]
[null,"News",null,null,"News",null,null,null,null,"Headlines",null,null,null,null,"Headlines",null,null,null,null,"Headlines",null,null,null,null,"Headlines",null,null,null,null,"Headlines",null,null,null,null,"Headlines",null,null,null,null,"Headlines",null,null,null,null,null,null,"News",null,null,null,null,null,null,null,"News"]
[null,"Investing",null,null,"Investing",null,null,null,null,"Video",null,null,null,null,"Video",null,null,null,null,"Video",null,null,null,null,"Video",null,null,null,null,"Video",null,null,null,null,"Video",null,null,null,null,"Video",null,null,null,null,null,null,"Investing",null,null,null,null,null,null,null,"Investing"]
[null,"Personal Finance",null,null,"Personal Finance",null,null,null,null,"Investing",null,null,null,null,"Investing",null,null,null,null,"Investing",null,null,null,null,"Investing",null,null,null,null,"Investing",null,null,null,null,"Investing",null,null,null,null,"Investing",null,null,null,null,null,null,"Personal Finance",null,null,null,null,null,null,null,"Personal Finance"]
[null,"My Money",null,null,"My Money",null,null,null,null,null,null,null,null,null,null,null,null,null,null,null,null,null,null,null,null,null,null,null,null,null,null,null,null,null,null,null,null,null,null,null,null,null,null,null,null,null,"My Money",null,null,null,null,null,null,null,"My Money"]
[null,"Taxes",null,null,"Taxes",null,null,null,null,"portfolio manager",null,null,null,null,"portfolio manager",null,null,null,null,"portfolio manager",null,null,null,null,"portfolio manager",null,null,null,null,"portfolio manager",null,null,null,null,"portfolio manager",null,null,null,null,"portfolio manager",null,null,null,null,null,null,"Taxes",null,null,null,null,null,null,null,"Taxes"]
[null,"Real Estate",null,null,"Real Estate",null,null,null,null,"markets",null,null,null,null,"markets",null,null,null,null,"markets",null,null,null,null,"markets",null,null,null,null,"markets",null,null,null,null,"markets",null,null,null,null,"markets",null,null,null,null,null,null,"Real Estate",null,null,null,null,null,null,null,"Real Estate"]
[null,"Careers",null,null,"Careers",null,null,null,null,"stocks",null,null,null,null,"stocks",null,null,null,null,"stocks",null,null,null,null,"stocks",null,null,null,null,"stocks",null,null,null,null,"stocks",null,null,null,null,"stocks",null,null,null,null,null,null,"Careers",null,null,null,null,null,null,null,"Careers"]
[null,"Autos",null,null,"Autos",null,null,null,null,"mutual funds",null,null,null,null,"mutual funds",null,null,null,null,"mutual funds",null,null,null,null,"mutual funds",null,null,null,null,"mutual funds",null,null,null,null,"mutual funds",null,null,null,null,"mutual funds",null,null,null,null,null,null,"Autos",null,null,null,null,null,null,null,"Autos"]
[null,"News",null,null,"News",null,null,null,null,"etfs",null,null,null,null,"etfs",null,null,null,null,"etfs",null,null,null,null,"etfs",null,null,null,null,"etfs",null,null,null,null,"etfs",null,null,null,null,"etfs",null,null,null,null,null,null,"News",null,null,null,null,null,null,null,"News"]
[null,null,null,null,null,null,null,null,null,"broker center",null,null,null,null,"broker center",null,null,null,null,"broker center",null,null,null,null,"broker center",null,null,null,null,"broker center",null,null,null,null,"broker center",null,null,null,null,"broker center"]
[null,"headlines",null,null,"headlines",null,null,null,null,"investor pro",null,null,null,null,"investor pro",null,null,null,null,"investor pro",null,null,null,null,"investor pro",null,null,null,null,"investor pro",null,null,null,null,"investor pro",null,null,null,null,"investor pro",null,null,null,null,null,null,"headlines",null,null,null,null,null,null,null,"headlines"]
[null,"Video",null,null,"Video",null,null,null,null,"Personal Finance",null,null,null,null,"Personal Finance",null,null,null,null,"Personal Finance",null,null,null,null,"Personal Finance",null,null,null,null,"Personal Finance",null,null,null,null,"Personal Finance",null,null,null,null,"Personal Finance",null,null,null,null,null,null,"Video",null,null,null,null,null,null,null,"Video"]
[null,"Investing",null,null,"Investing",null,null,null,null,null,null,null,null,null,null,null,null,null,null,null,null,null,null,null,null,null,null,null,null,null,null,null,null,null,null,null,null,null,null,null,null,null,null,null,null,null,"Investing",null,null,null,null,null,null,null,"Investing"]
[null,null,null,null,null,null,null,null,null,"Saving & Budgeting",null,null,null,null,"Saving & Budgeting",null,null,null,null,"Saving & Budgeting",null,null,null,null,"Saving & Budgeting",null,null,null,null,"Saving & Budgeting",null,null,null,null,"Saving & Budgeting",null,null,null,null,"Saving & Budgeting"]
[null,"Portfolio Manager",null,null,"Portfolio Manager",null,null,null,null,"Credit & Debt",null,null,null,null,"Credit & Debt",null,null,null,null,"Credit & Debt",null,null,null,null,"Credit & Debt",null,null,null,null,"Credit & Debt",null,null,null,null,"Credit & Debt",null,null,null,null,"Credit & Debt",null,null,null,null,null,null,"Portfolio Manager",null,null,null,null,null,null,null,"Portfolio Manager"]
[null,"Markets",null,null,"Markets",null,null,null,null,"Loans",null,null,null,null,"Loans",null,null,null,null,"Loans",null,null,null,null,"Loans",null,null,null,null,"Loans",null,null,null,null,"Loans",null,null,null,null,"Loans",null,null,null,null,null,null,"Markets",null,null,null,null,null,null,null,"Markets"]
[null,"Stocks",null,null,"Stocks",null,null,null,null,"Retirement",null,null,null,null,"Retirement",null,null,null,null,"Retirement",null,null,null,null,"Retirement",null,null,null,null,"Retirement",null,null,null,null,"Retirement",null,null,null,null,"Retirement",null,null,null,null,null,null,"Stocks",null,null,null,null,null,null,null,"Stocks"]
[null,"Mutual Funds",null,null,"Mutual Funds",null,null,null,null,"Insurance",null,null,null,null,"Insurance",null,null,null,null,"Insurance",null,null,null,null,"Insurance",null,null,null,null,"Insurance",null,null,null,null,"Insurance",null,null,null,null,"Insurance",null,null,null,null,null,null,"Mutual Funds",null,null,null,null,null,null,null,"Mutual Funds"]
[null,"ETFS",null,null,"ETFS",null,null,null,null,"Taxes",null,null,null,null,"Taxes",null,null,null,null,"Taxes",null,null,null,null,"Taxes",null,null,null,null,"Taxes",null,null,null,null,"Taxes",null,null,null,null,"Taxes",null,null,null,null,null,null,"ETFS",null,null,null,null,null,null,null,"ETFS"]
[null,"Broker Center",null,null,"Broker Center",null,null,null,null,"Your Money",null,null,null,null,"Your Money",null,null,null,null,"Your Money",null,null,null,null,"Your Money",null,null,null,null,"Your Money",null,null,null,null,"Your Money",null,null,null,null,"Your Money",null,null,null,null,null,null,"Broker Center",null,null,null,null,null,null,null,"Broker Center"]
[null,"Investor Pro",null,null,"Investor Pro",null,null,null,null,"My Money",null,null,null,null,"My Money",null,null,null,null,"My Money",null,null,null,null,"My Money",null,null,null,null,"My Money",null,null,null,null,"My Money",null,null,null,null,"My Money",null,null,null,null,null,null,"Investor Pro",null,null,null,null,null,null,null,"Investor Pro"]
[null,"Personal Finance",null,null,"Personal Finance",null,null,null,null,null,null,null,null,null,null,null,null,null,null,null,null,null,null,null,null,null,null,null,null,null,null,null,null,null,null,null,null,null,null,null,null,null,null,null,null,null,"Personal Finance",null,null,null,null,null,null,null,"Personal Finance"]
[null,null,null,null,null,null,null,null,null,"Real Estate",null,null,null,null,"Real Estate",null,null,null,null,"Real Estate",null,null,null,null,"Real Estate",null,null,null,null,"Real Estate",null,null,null,null,"Real Estate",null,null,null,null,"Real Estate"]
[null,"Saving & Budgeting",null,null,"Saving & Budgeting",null,null,null,null,null,null,null,null,null,null,null,null,null,null,null,null,null,null,null,null,null,null,null,null,null,null,null,null,null,null,null,null,null,null,null,null,null,null,null,null,null,"Saving & Budgeting",null,null,null,null,null,null,null,"Saving & Budgeting"]
[null,"Credit & Debt",null,null,"Credit & Debt",null,null,null,null,"Careers",null,null,null,null,"Careers",null,null,null,null,"Careers",null,null,null,null,"Careers",null,null,null,null,"Careers",null,null,null,null,"Careers",null,null,null,null,"Careers",null,null,null,null,null,null,"Credit & Debt",null,null,null,null,null,null,null,"Credit & Debt"]
[null,"Loans",null,null,"Loans",null,null,null,null,null,null,null,null,null,null,null,null,null,null,null,null,null,null,null,null,null,null,null,null,null,null,null,null,null,null,null,null,null,null,null,null,null,null,null,null,null,"Loans",null,null,null,null,null,null,null,"Loans"]
[null,"Retirement",null,null,"Retirement",null,null,null,null,"Autos",null,null,null,null,"Autos",null,null,null,null,"Autos",null,null,null,null,"Autos",null,null,null,null,"Autos",null,null,null,null,"Autos",null,null,null,null,"Autos",null,null,null,null,null,null,"Retirement",null,null,null,null,null,null,null,"Retirement"]
[null,"Insurance",null,null,"Insurance",null,null,null,null,null,null,null,null,null,null,null,null,null,null,null,null,null,null,null,null,null,null,null,null,null,null,null,null,null,null,null,null,null,null,null,null,null,null,null,null,null,"Insurance",null,null,null,null,null,null,null,"Insurance"]
[null,"Taxes",null,null,"Taxes",null,null,null,null,"Target Corp (NYSE : TGT)",null,null,null,null,"Target Corp (NYSE : TGT)",null,null,null,null,"Target Corp (NYSE : TGT)",null,null,null,null,"Target Corp (NYSE : TGT)",null,null,null,null,"Target Corp (NYSE : TGT)",null,null,null,null,"Target Corp (NYSE : TGT)",null,null,null,null,"Target Corp (NYSE : TGT)",null,null,null,null,null,null,"Taxes",null,null,null,null,null,null,null,"Taxes"]
[null,"your money",null,null,"your money",null,null,null,null,"Trade now",null,null,null,null,"Trade now",null,null,null,null,"Trade now",null,null,null,null,"Trade now",null,null,null,null,"Trade now",null,null,null,null,"Trade now",null,null,null,null,"Trade now",null,null,null,null,null,null,"your money",null,null,null,null,null,null,null,"your money"]
[null,"My Money",null,null,"My Money",null,null,null,null,"Add to Watchlist",null,null,null,null,"Add to Watchlist",null,null,null,null,"Add to Watchlist",null,null,null,null,"Add to Watchlist",null,null,null,null,"Add to Watchlist",null,null,null,null,"Add to Watchlist",null,null,null,null,"Add to Watchlist",null,null,null,null,null,null,"My Money",null,null,null,null,null,null,null,"My Money"]
[null,null,null,null,null,null,null,null,null,"Get chart",null,null,null,null,"Get chart",null,null,null,null,"Get chart",null,null,null,null,"Get chart",null,null,null,null,"Get chart",null,null,null,null,"Get chart",null,null,null,null,"Get chart"]
[null,"Real Estate",null,null,"Real Estate",null,null,null,null,"Print report",null,null,null,null,"Print report",null,null,null,null,"Print report",null,null,null,null,"Print report",null,null,null,null,"Print report",null,null,null,null,"Print report",null,null,null,null,"Print report",null,null,null,null,null,null,"Real Estate",null,null,null,null,null,null,null,"Real Estate"]
[null,null,null,null,null,null,null,null,null,"Find financial results for: 53.50Up+0.03+0.06%Delayed",null,null,null,null,"Find financial results for: 53.50Up+0.03+0.06%Delayed",null,null,null,null,"Find financial results for: 53.50Up+0.03+0.06%Delayed",null,null,null,null,"Find financial results for: 53.50Up+0.03+0.06%Delayed",null,null,null,null,"Find financial results for: 53.50Up+0.03+0.06%Delayed",null,null,null,null,"Find financial results for: 53.50Up+0.03+0.06%Delayed",null,null,null,null,"Find financial results for: 53.50Up+0.03+0.06%Delayed"]
[null,"Careers",null,null,"Careers",null,null,null,null,"GROWTH",null,null,null,null,"GROWTH",null,null,null,null,"GROWTH",null,null,null,null,"GROWTH",null,null,null,null,"GROWTH",null,null,null,null,"GROWTH",null,null,null,null,"GROWTH",null,null,null,null,null,null,"Careers",null,null,null,null,null,null,null,"Careers"]
[]
[null,"Autos",null,null,"Autos",null,null,null,null,"PRICE RATIOS",null,null,null,null,"PRICE RATIOS",null,null,null,null,"PRICE RATIOS",null,null,null,null,"PRICE RATIOS",null,null,null,null,"PRICE RATIOS",null,null,null,null,"PRICE RATIOS",null,null,null,null,"PRICE RATIOS",null,null,null,null,null,null,"Autos",null,null,null,null,null,null,null,"Autos"]
[null,null,null,null,null,null,null,null,null,"PROFIT MGN",null,null,null,null,null,null,null,null,null,"PROFIT MGN",null,null,null,null,"PROFIT MGN",null,null,null,null,"PROFIT MGN",null,null,null,null,"PROFIT MGN",null,null,null,null,"PROFIT MGN"]
[null,"Target Corp (NYSE: TGT)",null,null,"Target Corp (NYSE: TGT)",null,null,null,null,"FINANCIAL CONDITION",null,null,null,null,"PROFIT MGN",null,null,null,null,null,null,null,null,null,"FINANCIAL CONDITION",null,null,null,null,"FINANCIAL CONDITION",null,null,null,null,"FINANCIAL CONDITION",null,null,null,null,"FINANCIAL CONDITION",null,null,null,null,null,null,"Target Corp (NYSE: TGT)",null,null,null,null,null,null,null,"Target Corp (NYSE: TGT)"]
[null,"Trade now",null,null,"Trade now",null,null,null,null,"INV RETURNS",null,null,null,null,"FINANCIAL CONDITION",null,null,null,null,"FINANCIAL CONDITION",null,null,null,null,null,null,null,null,null,"INV RETURNS",null,null,null,null,"INV RETURNS",null,null,null,null,"INV RETURNS",null,null,null,null,null,null,"Trade now",null,null,null,null,null,null,null,"Trade now"]
[null,"Add to Watchlist",null,null,"Add to Watchlist",null,null,null,null,"MGMT EFFICIENCY",null,null,null,null,"INV RETURNS",null,null,null,null,"INV RETURNS",null,null,null,null,"INV RETURNS",null,null,null,null,null,null,null,null,null,"MGMT EFFICIENCY",null,null,null,null,"MGMT EFFICIENCY",null,null,null,null,null,null,"Add to Watchlist",null,null,null,null,null,null,null,"Add to Watchlist"]
[null,"Get Chart",null,null,"Get Chart",null,null,null,null,"10-YR SUMMARY",null,null,null,null,"MGMT EFFICIENCY",null,null,null,null,"MGMT EFFICIENCY",null,null,null,null,"MGMT EFFICIENCY",null,null,null,null,"MGMT EFFICIENCY",null,null,null,null,null,null,null,null,null,"10-YR SUMMARY",null,null,null,null,null,null,"Get Chart",null,null,null,null,null,null,null,"Get Chart"]
[null,"Print report",null,null,"Print report",null,null,null,null,null,null,null,null,null,"10-YR SUMMARY",null,null,null,null,"10-YR SUMMARY",null,null,null,null,"10-YR SUMMARY",null,null,null,null,"10-YR SUMMARY",null,null,null,null,"10-YR SUMMARY",null,null,null,null,null,null,null,null,null,null,null,"Print report",null,null,null,null,null,null,null,"Print report"]
[null,"53.50Up+0.03 +0.06% ",null,null,"53.50Up+0.03 +0.06% Find financial results for:",null,null,null,null,"MORE ABOUT TGT",null,null,null,null,null,null,null,null,null,null,null,null,null,null,null,null,null,null,null,null,null,null,null,null,null,null,null,null,null,"MORE ABOUT TGT",null,null,null,null,null,null,"53.50Up+0.03 +0.06% Name or symbol(s):",null,null,null,null,null,null,null,"53.50Up+0.03 +0.06% Find earnings estimate for:"]
[null,"MORE ON TGT",null,null,"MORE ON TGT",null,null,null,null,"SUMMARY",null,null,null,null,"MORE ABOUT TGT",null,null,null,null,"MORE ABOUT TGT",null,null,null,null,"MORE ABOUT TGT",null,null,null,null,"MORE ABOUT TGT",null,null,null,null,"MORE ABOUT TGT",null,null,null,null,"SUMMARY",null,null,null,null,null,null,"MORE ON TGT",null,null,null,null,null,null,null,"MORE ON TGT"]
[null,"SUMMARY",null,null,"SUMMARY",null,null,null,null,"Quote",null,null,null,null,"SUMMARY",null,null,null,null,"SUMMARY",null,null,null,null,"SUMMARY",null,null,null,null,"SUMMARY",null,null,null,null,"SUMMARY",null,null,null,null,"Quote",null,null,null,null,null,null,"SUMMARY",null,null,null,null,null,null,null,"SUMMARY"]
[null,"Quote",null,null,"Quote",null,null,null,null,"Options",null,null,null,null,"Quote",null,null,null,null,"Quote",null,null,null,null,"Quote",null,null,null,null,"Quote",null,null,null,null,"Quote",null,null,null,null,"Options",null,null,null,null,null,null,"Quote",null,null,null,null,null,null,null,"Quote"]
[null,"Options",null,null,"Options",null,null,null,null,"Historical Prices",null,null,null,null,"Options",null,null,null,null,"Options",null,null,null,null,"Options",null,null,null,null,"Options",null,null,null,null,"Options",null,null,null,null,"Historical Prices",null,null,null,null,null,null,"Options",null,null,null,null,null,null,null,"Options"]
[null,"Historical Prices",null,null,"Historical Prices",null,null,null,null,"CHARTS",null,null,null,null,"Historical Prices",null,null,null,null,"Historical Prices",null,null,null,null,"Historical Prices",null,null,null,null,"Historical Prices",null,null,null,null,"Historical Prices",null,null,null,null,"CHARTS",null,null,null,null,null,null,"Historical Prices",null,null,null,null,null,null,null,"Historical Prices"]
[null,"CHARTS",null,null,"CHARTS",null,null,null,null,"Basic",null,null,null,null,"CHARTS",null,null,null,null,"CHARTS",null,null,null,null,"CHARTS",null,null,null,null,"CHARTS",null,null,null,null,"CHARTS",null,null,null,null,"Basic",null,null,null,null,null,null,"CHARTS",null,null,null,null,null,null,null,"CHARTS"]
[null,"Interactive Chart",null,null,"Interactive Chart",null,null,null,null,"NEWS",null,null,null,null,"Basic",null,null,null,null,"Basic",null,null,null,null,"Basic",null,null,null,null,"Basic",null,null,null,null,"Basic",null,null,null,null,"NEWS",null,null,null,null,null,null,"Interactive Chart",null,null,null,null,null,null,null,"Interactive Chart"]
[null,"NEWS",null,null,"NEWS",null,null,null,null,"Headlines",null,null,null,null,"NEWS",null,null,null,null,"NEWS",null,null,null,null,"NEWS",null,null,null,null,"NEWS",null,null,null,null,"NEWS",null,null,null,null,"Headlines",null,null,null,null,null,null,"NEWS",null,null,null,null,null,null,null,"NEWS"]
[null,"Headlines",null,null,"Headlines",null,null,null,null,"Key Developments",null,null,null,null,"Headlines",null,null,null,null,"Headlines",null,null,null,null,"Headlines",null,null,null,null,"Headlines",null,null,null,null,"Headlines",null,null,null,null,"Key Developments",null,null,null,null,null,null,"Headlines",null,null,null,null,null,null,null,"Headlines"]
[null,"Key Developments",null,null,"Key Developments",null,null,null,null,"FUNDAMENTALS",null,null,null,null,"Key Developments",null,null,null,null,"Key Developments",null,null,null,null,"Key Developments",null,null,null,null,"Key Developments",null,null,null,null,"Key Developments",null,null,null,null,"FUNDAMENTALS",null,null,null,null,null,null,"Key Developments",null,null,null,null,null,null,null,"Key Developments"]
[null,"FUNDAMENTALS",null,null,"FUNDAMENTALS",null,null,null,null,"Financial Highlights",null,null,null,null,"FUNDAMENTALS",null,null,null,null,"FUNDAMENTALS",null,null,null,null,"FUNDAMENTALS",null,null,null,null,"FUNDAMENTALS",null,null,null,null,"FUNDAMENTALS",null,null,null,null,"Financial Highlights",null,null,null,null,null,null,"FUNDAMENTALS",null,null,null,null,null,null,null,"FUNDAMENTALS"]
[null,"Financial Highlights",null,null,"Financial Highlights",null,null,null,null,"Profile",null,null,null,null,"Financial Highlights",null,null,null,null,"Financial Highlights",null,null,null,null,"Financial Highlights",null,null,null,null,"Financial Highlights",null,null,null,null,"Financial Highlights",null,null,null,null,"Profile",null,null,null,null,null,null,"Financial Highlights",null,null,null,null,null,null,null,"Financial Highlights"]
[null,"Profile",null,null,"Profile",null,null,null,null,"Key Ratios",null,null,null,null,"Profile",null,null,null,null,"Profile",null,null,null,null,"Profile",null,null,null,null,"Profile",null,null,null,null,"Profile",null,null,null,null,"Key Ratios",null,null,null,null,null,null,"Profile",null,null,null,null,null,null,null,"Profile"]
[null,"Key Ratios",null,null,"Key Ratios",null,null,null,null,"10-Year Summary",null,null,null,null,"Key Ratios",null,null,null,null,"Key Ratios",null,null,null,null,"Key Ratios",null,null,null,null,"Key Ratios",null,null,null,null,"Key Ratios",null,null,null,null,"10-Year Summary",null,null,null,null,null,null,"Key Ratios",null,null,null,null,null,null,null,"Key Ratios"]
[null,"10-Year Summary",null,null,"10-Year Summary",null,null,null,null,"Earnings",null,null,null,null,"10-Year Summary",null,null,null,null,"10-Year Summary",null,null,null,null,"10-Year Summary",null,null,null,null,"10-Year Summary",null,null,null,null,"10-Year Summary",null,null,null,null,"Earnings",null,null,null,null,null,null,"10-Year Summary",null,null,null,null,null,null,null,"10-Year Summary"]
[null,"Earnings",null,null,"Earnings",null,null,null,null,"SEC Filings",null,null,null,null,"Earnings",null,null,null,null,"Earnings",null,null,null,null,"Earnings",null,null,null,null,"Earnings",null,null,null,null,"Earnings",null,null,null,null,"SEC Filings",null,null,null,null,null,null,"Earnings",null,null,null,null,null,null,null,"Earnings"]
[null,"SEC Filings",null,null,"SEC Filings",null,null,null,null,"RATINGS/ANALYSIS",null,null,null,null,"SEC Filings",null,null,null,null,"SEC Filings",null,null,null,null,"SEC Filings",null,null,null,null,"SEC Filings",null,null,null,null,"SEC Filings",null,null,null,null,"RATINGS/ANALYSIS",null,null,null,null,null,null,"SEC Filings",null,null,null,null,null,null,null,"SEC Filings"]
[null,"RATINGS/ANALYSIS",null,null,"RATINGS/ANALYSIS",null,null,null,null,"StockScouter Report",null,null,null,null,"RATINGS/ANALYSIS",null,null,null,null,"RATINGS/ANALYSIS",null,null,null,null,"RATINGS/ANALYSIS",null,null,null,null,"RATINGS/ANALYSIS",null,null,null,null,"RATINGS/ANALYSIS",null,null,null,null,"StockScouter Report",null,null,null,null,null,null,"RATINGS/ANALYSIS",null,null,null,null,null,null,null,"RATINGS/ANALYSIS"]
[null,"StockScouter Report",null,null,"StockScouter Report",null,null,null,null,"Analyst Ratings",null,null,null,null,"StockScouter Report",null,null,null,null,"StockScouter Report",null,null,null,null,"StockScouter Report",null,null,null,null,"StockScouter Report",null,null,null,null,"StockScouter Report",null,null,null,null,"Analyst Ratings",null,null,null,null,null,null,"StockScouter Report",null,null,null,null,null,null,null,"StockScouter Report"]
[null,"Analyst Ratings",null,null,"Analyst Ratings",null,null,null,null,"INSIDER ACTION",null,null,null,null,"Analyst Ratings",null,null,null,null,"Analyst Ratings",null,null,null,null,"Analyst Ratings",null,null,null,null,"Analyst Ratings",null,null,null,null,"Analyst Ratings",null,null,null,null,"INSIDER ACTION",null,null,null,null,null,null,"Analyst Ratings",null,null,null,null,null,null,null,"Analyst Ratings"]
[null,"INSIDER ACTION",null,null,"INSIDER ACTION",null,null,null,null,"Insider Trades",null,null,null,null,"INSIDER ACTION",null,null,null,null,"INSIDER ACTION",null,null,null,null,"INSIDER ACTION",null,null,null,null,"INSIDER ACTION",null,null,null,null,"INSIDER ACTION",null,null,null,null,"Insider Trades",null,null,null,null,null,null,"INSIDER ACTION",null,null,null,null,null,null,null,"INSIDER ACTION"]
[null,"Insider Trades",null,null,"Insider Trades",null,null,null,null,"Ownership",null,null,null,null,"Insider Trades",null,null,null,null,"Insider Trades",null,null,null,null,"Insider Trades",null,null,null,null,"Insider Trades",null,null,null,null,"Insider Trades",null,null,null,null,"Ownership",null,null,null,null,null,null,"Insider Trades",null,null,null,null,null,null,null,"Insider Trades"]
[null,"Ownership",null,null,"Ownership",null,null,null,null,"FINANCIALS",null,null,null,null,"Ownership",null,null,null,null,"Ownership",null,null,null,null,"Ownership",null,null,null,null,"Ownership",null,null,null,null,"Ownership",null,null,null,null,"FINANCIALS",null,null,null,null,null,null,"Ownership",null,null,null,null,null,null,null,"Ownership"]
[null,"FINANCIALS",null,null,"FINANCIALS",null,null,null,null,"Income Statement",null,null,null,null,"FINANCIALS",null,null,null,null,"FINANCIALS",null,null,null,null,"FINANCIALS",null,null,null,null,"FINANCIALS",null,null,null,null,"FINANCIALS",null,null,null,null,"Income Statement",null,null,null,null,null,null,"FINANCIALS",null,null,null,null,null,null,null,"FINANCIALS"]
[null,"Income Statement",null,null,"Income Statement",null,null,null,null,"Balance Sheet",null,null,null,null,"Income Statement",null,null,null,null,"Income Statement",null,null,null,null,"Income Statement",null,null,null,null,"Income Statement",null,null,null,null,"Income Statement",null,null,null,null,"Balance Sheet",null,null,null,null,null,null,"Income Statement",null,null,null,null,null,null,null,"Income Statement"]
[null,"Balance Sheet",null,null,"Balance Sheet",null,null,null,null,"Cash Flow",null,null,null,null,"Balance Sheet",null,null,null,null,"Balance Sheet",null,null,null,null,"Balance Sheet",null,null,null,null,"Balance Sheet",null,null,null,null,"Balance Sheet",null,null,null,null,"Cash Flow",null,null,null,null,null,null,"Balance Sheet",null,null,null,null,null,null,null,"Balance Sheet"]
[null,"Cash Flow",null,null,"Cash Flow",null,null,null,null,"10-Year Summary",null,null,null,null,"Cash Flow",null,null,null,null,"Cash Flow",null,null,null,null,"Cash Flow",null,null,null,null,"Cash Flow",null,null,null,null,"Cash Flow",null,null,null,null,"10-Year Summary",null,null,null,null,null,null,"Cash Flow",null,null,null,null,null,null,null,"Cash Flow"]
[null,"10-Year Summary",null,null,"10-Year Summary",null,null,null,null,null,null,null,null,null,"10-Year Summary",null,null,null,null,"10-Year Summary",null,null,null,null,"10-Year Summary",null,null,null,null,"10-Year Summary",null,null,null,null,"10-Year Summary",null,null,null,null,null,null,null,null,null,null,null,"10-Year Summary",null,null,null,null,null,null,null,"10-Year Summary"]
[]
[null,"COMPANY ADDRESS",null,null,"FINANCIAL HIGHLIGHTS",null,null,null,null,"Industry: Discount, Variety Stores",null,null,null,null,null,null,null,null,null,null,null,null,null,null,null,null,null,null,null,null,null,null,null,null,null,null,null,null,null,"Industry: Discount, Variety Stores",null,null,null,null,null,null,"INCOME STATEMENT: 10-YEAR SUMMARY",null,null,null,null,null,null,null,"EARNINGS ESTIMATES"]
[null,"Target Corp",null,null,"Name ","Value ","1 MONTH AGO ","2 MONTHS AGO ","3 MONTHS AGO ",null,null,null,null,null,"Industry: Discount, Variety Stores",null,null,null,null,"Industry: Discount, Variety Stores",null,null,null,null,"Industry: Discount, Variety Stores",null,null,null,null,"Industry: Discount, Variety Stores",null,null,null,null,"Industry: Discount, Variety Stores",null,null,null,null,null,null,null,null,null,null,null,"DATE ","SALES ","EBIT ","DEPRECIATION ","TOTAL NET","EPS ","TAX RATE",null,"DESCRIPTION ","QTR(1/12) ","QTR(4/12) ","FY(1/12) ","FY(1/13) "]
[null,"1000 Nicollet Mall",null,null,"Sales ","69.24 Bil ",null,null,null,"Growth Rates %","Company","Industry","S&P 500",null,null,null,null,null,null,null,null,null,null,null,null,null,null,null,null,null,null,null,null,null,null,null,null,null,null,null,"Avg P/E","Price/ Sales","Price/ Book","Net Profit Margin (%)",null,null,null,null,null,null,"INCOME ",null,"(%) ",null,"Average Estimate ",1.48,0.97,4.3099999999999996,4.33]
[null,"MINNEAPOLIS, MN 55403",null,null,"Income ","2.98 Bil ",null,null,null,"Sales (Qtr vs year ago qtr)",5.0999999999999996,9.1999999999999993,14.4,null,"Price Ratios","Company","Industry","S&P 500",null,"Profit Margins %","Company","Industry","S&P 500",null,"Financial Condition","Company","Industry","S&P 500",null,"Investment Returns %","Company","Industry","S&P 500",null,"Management Efficiency","Company","Industry","S&P 500",null,"2011-01-11",13.5,0.59,2.4700000000000002,4.3,null,null,"2011-02-08","63.37 Bil ","4.63 Bil ","1.66 Bil ","2.85 Bil ",3.35,38.4,null,"Number of Analysts ",18,7,22,20]
[null,"US - Map",null,null,"Net Profit Margin ",4.3099999999999999E-2,null,null,null,"Net Income (YTD vs YTD)","NA","NA","NA",null,"Current P/E Ratio",12.5,15.4,26.5,null,"Gross Margin",31,25.3,39.9,null,"Debt/Equity Ratio",1.24,0.78,1.05,null,"Return On Equity",19.8,21.8,26.4,null,"Income/Employee",8403,9953,130747,null,"2011-01-10",12.9,0.59,2.4900000000000002,3.8,null,null,"2011-02-07","59.49 Bil ","4.50 Bil ","1.50 Bil ","2.79 Bil ",3.21,38,null,"High Estimate ",1.57,1.1100000000000001,4.46,4.59]
[null,"Phone: 612-3046073",null,null,"Return on Equity ",0.19789999999999999,null,null,null,"Net Income (Qtr vs year ago qtr)",3.7,1.5,45.6,null,"P/E Ratio 5-Year High","NA",4.3,14.1,null,"Pre-Tax Margin",6.7,5.6,18.100000000000001,null,"Current Ratio",1.3,1.1000000000000001,1.4,null,"Return On Assets",6.4,8.4,9,null,"Revenue/Employee",195037,309063,"1 Mil",null,"2011-01-09",16.100000000000001,0.37,1.71,3.4,null,null,"2011-02-03","37.41 Bil ","2.23 Bil ","967.00 Mil ","1.38 Bil ",1.5,38.200000000000003,null,"Low Estimate ",1.41,0.85,4.18,4]
[null,"Fax: 612-7615555",null,null,"Debt/Equity Ratio ",1.24,null,null,null,"Sales (5-Year Annual Avg.)",5.07,6.59,8.26,null,"P/E Ratio 5-Year Low","NA",1.7,2.2999999999999998,null,"Net Profit Margin",4.3,3.7,13.2,null,"Quick Ratio",0.6,0.3,1,null,"Return On Capital",8.8000000000000007,13,11.9,null,"Receivable Turnover",11.9,134.30000000000001,15.9,null,"2011-02-08",18,0.77,3.05,4.5,null,null,"2011-02-02","39.83 Bil ","2.21 Bil ","1.08 Bil ","1.37 Bil ",1.5,38,null,"Year Ago EPS ",1.45,0.99,4,4.3099999999999996]
[null,"Website",null,null,"Name ","Value ","1 MONTH AGO ","2 MONTHS AGO ","3 MONTHS AGO ","Net Income (5-Year Annual Avg.)",3.93,7.4,8.51,null,"Price/Sales Ratio",0.52,0.53,2.06,null,"5Yr Gross Margin (5-Year Avg.)",30.5,24.9,39.799999999999997,null,"Interest Coverage",7.1,23.3,319.39999999999998,null,"Return On Equity (5-Year Avg.)",17.7,19,23.9,null,"Inventory Turnover",4.9000000000000004,7.6,12.5,null,"2011-02-07",16.7,0.91,3.41,4.7,null,null,"2011-01-11","67.39 Bil ","4.50 Bil ","2.08 Bil ","2.92 Bil ",4,35,null,"Growth Rate ",2.2200000000000001E-2,-2.3099999999999999E-2,7.6999999999999999E-2,4.7999999999999996E-3]
[null,"COMPANY INFORMATION",null,null,"Revenue/Share ",99.8,null,null,null,"Dividends (5-Year Annual Avg.)",19.34,13.74,5.94,null,"Price/Book Value",2.35,3.12,3.94,null,"5Yr PreTax Margin (5-Year Avg.)",6.6,5.2,16.2,null,"Leverage Ratio",3.2,2.8,3.6,null,"Return On Assets (5-Year Avg.)",6.3,8,8.1,null,"Asset Turnover",1.5,2.2999999999999998,0.8,null,"2011-01-06",19.7,0.92,3.33,4.5999999999999996,null,null,"2011-01-10","65.36 Bil ","3.87 Bil ","2.02 Bil ","2.49 Bil ",3.3,35.700000000000003,null,"EARNINGS SURPRISE"]
[null,"Exchange: ","NYSE ",null,"Earnings/Share ",4.28,null,null,null,null,null,null,null,null,"Price/Cash Flow Ratio",7.1,9.6999999999999993,11.4,null,"5Yr Net Profit Margin (5-Year Avg.)",4.0999999999999996,3.4,11.6,null,"Book Value/Share",22.73,19.96,26.53,null,"Return On Capital (5-Year Avg.)",8.5,12.3,11,null,null,null,null,null,null,"2011-01-05",22.2,0.96,3.38,4,null,null,"2011-01-09","64.95 Bil ","3.54 Bil ","1.83 Bil ","2.21 Bil ",2.86,37.4,null,"DESCRIPTION ","(10/10) ","(1/11) ","(4/11) ","(7/11) ","(10/11) "]
[null,"Stock: ","Target Corporation ",null,"Book Value/Share ",22.73,null,null,null,"Financial data in U.S. dollars",null,null,null,null,null,null,null,null,null,null,null,null,null,null,null,null,null,null,null,null,null,null,null,null,"Financial data in U.S. dollars",null,null,null,null,"2011-01-04",20.5,0.83,3.11,3.9,null,null,"2011-01-06","52.62 Bil ","3.86 Bil ","1.41 Bil ","2.41 Bil ",2.71,37.6,null,"Estimate ",0.68,1.4,0.94,0.97,0.74]
[null,"Industry: ","Discount, Variety Stores ",null,"Dividend Rate ",1.2,null,null,null,null,null,null,null,null,"Financial data in U.S. dollars",null,null,null,null,"Financial data in U.S. dollars",null,null,null,null,"Financial data in U.S. dollars",null,null,null,null,"Financial data in U.S. dollars",null,null,null,null,null,null,null,null,null,"2011-02-03",24.1,0.69,2.72,3.7,null,null,"2011-01-05","46.84 Bil ","3.03 Bil ","1.26 Bil ","1.89 Bil ",2.0699999999999998,37.799999999999997,null,"Actual ",0.74,1.45,0.99,1.03,0.82]
[null,"Employees: ",355000,null,"Dividend Yield ",2.2400000000000002,null,null,null,"Ad Choice",null,null,null,null,null,null,null,null,null,null,null,null,null,null,null,null,null,null,null,null,null,null,null,null,"Ad Choice",null,null,null,null,"2011-02-02",24.2,0.99,4.99,3.4,null,null,"2011-01-04","42.03 Bil ","2.60 Bil ","1.10 Bil ","1.62 Bil ",1.76,37.799999999999997,null,"Difference ",0.06,0.05,0.05,0.06,0.08]
[null,"DESCRIPTION",null,null,"Payout Ratio ",0.25,null,null,null,null,null,null,null,null,"Ad Choice",null,null,null,null,"Ad Choice",null,null,null,null,"Ad Choice",null,null,null,null,"Ad Choice",null,null,null,null,null,null,null,null,null,null,"Book Value/ Share","Debt/ Equity","Return on Equity (%)","Return on Assets (%)","Interest Coverage",null,"BALANCE SHEET: 10 YEAR SUMMARY",null,null,null,null,null,null,null,"% Change ",8.8200000000000001E-2,3.5700000000000003E-2,5.3199999999999997E-2,6.1899999999999997E-2,0.1081]
[null,"Target Corporation (Target) operates Target general merchandise stores with an assortment of general merchandise and food assortment. Its expanded food assortment includes some perishables and some additional dry, dairy and frozen items. In addition, it operates SuperTarget stores with general merchandise items and a full line of food items. Target.com offers an assortment of general merchandise, including many items found in its stores and a complementary assortment, such as extended sizes and colors, sold only online. It operates two segments: Retail and Credit Card. The Retail segment includes all of its merchandising operations, including its integrated online business. The Credit Card segment offers credit to qualified guests through its branded credit cards, the Target Visa and the Target Card. In addition, it offers a branded Target Debit Card (collectively REDcards). As of January 29, 2011, it had 1,750 stores in 49 states and the District of Columbia. ",null,null,"FUNDAMENTAL DATA",null,null,null,null,"Feedback",null,null,null,null,null,null,null,null,null,null,null,null,null,null,null,null,null,null,null,null,null,null,null,null,"Feedback",null,null,null,null,"2011-01-11",22,1.02,18.899999999999999,6.7,5.9,null,"DATE ","CURRENT","CURRENT","LONG TERM","SHARES",null,null,null,"CONSENSUS EPS TREND"]
[null,"DATA PROVIDERS",null,null,"Gross Margin ",0.30990000000000001,null,null,null,null,null,null,null,null,"Feedback",null,null,null,null,"Feedback",null,null,null,null,"Feedback",null,null,null,null,"Feedback",null,null,null,null,null,null,null,null,null,"2011-01-10",20.61,1.1000000000000001,16.2,5.6,4.8,null,null,"ASSETS ","LIABILITIES ","DEBT ","OUTSTANDING ",null,null,null,"DESCRIPTION ","QTR(1/12) ","QTR(4/12) ","FY(1/12) ","FY(1/13) "]
[null,null,null,null,"Shares Outstanding ","671.60 Mil ",null,null,null,"DATA PROVIDERS",null,null,null,null,null,null,null,null,null,null,null,null,null,null,null,null,null,null,null,null,null,null,null,null,"DATA PROVIDERS",null,null,null,null,"2011-01-09",18.22,1.37,16.100000000000001,5,4,null,"2011-02-08","44.56 Bil ","29.25 Bil ","15.13 Bil ","818.74 Mil ",null,null,null,"Current Estimate ",1.48,0.97,4.3099999999999996,4.33]
[null,"Copyright © 2011 Microsoft. All rights reserved.",null,null,"Market Cap ","35.91 Bil ",null,null,null,null,null,null,null,null,"DATA PROVIDERS",null,null,null,null,"DATA PROVIDERS",null,null,null,null,"DATA PROVIDERS",null,null,null,null,"DATA PROVIDERS",null,null,null,null,null,null,null,null,null,"2011-02-08",18.7,1.1200000000000001,18.600000000000001,6.4,6.9,null,"2011-02-07","37.35 Bil ","21.72 Bil ","8.68 Bil ","859.77 Mil ",null,null,null,"7 Days Ago ",1.48,0.97,4.3099999999999996,4.34]
[null,null,null,null,"Institutional Ownership ",0.83399999999999996,null,null,null,"Copyright © 2011 Microsoft. All rights reserved.",null,null,null,null,null,null,null,null,null,null,null,null,null,null,null,null,null,null,null,null,null,null,null,null,"Copyright © 2011 Microsoft. All rights reserved.",null,null,null,null,"2011-02-07",18.18,0.64,17.8,7.5,7.5,null,"2011-02-03","28.60 Bil ","19.16 Bil ","10.19 Bil ","909.80 Mil ",null,null,null,"30 Days Ago ",1.47,0.95,4.22,4.32]
[null,"Quotes are real-time for NASDAQ, NYSE and AMEX. See delay times for other exchanges.",null,null,"More",null,null,null,null,null,null,null,null,null,"Copyright © 2011 Microsoft. All rights reserved.",null,null,null,null,"Copyright © 2011 Microsoft. All rights reserved.",null,null,null,null,"Copyright © 2011 Microsoft. All rights reserved.",null,null,null,null,"Copyright © 2011 Microsoft. All rights reserved.",null,null,null,null,null,null,null,null,null,"2011-01-06",16.25,0.69,17,6.9,7.9,null,"2011-02-02","24.15 Bil ","16.29 Bil ","8.09 Bil ","905.16 Mil ",null,null,null,"60 Days Ago ",1.47,0.94,4.22,4.32]
[null,null,null,null,"REVENUE - QUARTERLY RESULTS (IN MILLIONS)",null,null,null,null,"Quotes are real-time for NASDAQ, NYSE and AMEX. See delay times for other exchanges.",null,null,null,null,null,null,null,null,null,null,null,null,null,null,null,null,null,null,null,null,null,null,null,null,"Quotes are real-time for NASDAQ, NYSE and AMEX. See delay times for other exchanges.",null,null,null,null,"2011-01-05",14.63,0.73,14.5,5.8,5.0999999999999996,null,"2011-01-11","43.71 Bil ","28.22 Bil ","15.61 Bil ","704.04 Mil ",null,null,null,"90 Days Ago ",1.47,0.91,4.21,4.33]
[null,"Fundamental company data and historical chart data provided by Thomson Reuters (click for restrictions). Real-time quotes provided by BATS Exchange. Real-time index quotes and delayed quotes supplied by Interactive Data Real-Time Services. Fund summary, fund performance and dividend data provided by Morningstar Inc. Analyst recommendations data provided by Zacks Investment Research. StockScouter data provided by Verus Analytics. IPO data provided by Hoover's Inc. Index membership data provided by SIX Telekurs.",null,null,null,"FY (01/11)","FY (01/10)","FY (01/09)",null,null,null,null,null,null,"Quotes are real-time for NASDAQ, NYSE and AMEX. See delay times for other exchanges.",null,null,null,null,"Quotes are real-time for NASDAQ, NYSE and AMEX. See delay times for other exchanges.",null,null,null,null,"Quotes are real-time for NASDAQ, NYSE and AMEX. See delay times for other exchanges.",null,null,null,null,"Quotes are real-time for NASDAQ, NYSE and AMEX. See delay times for other exchanges.",null,null,null,null,null,null,null,null,null,"2011-01-04",12.21,0.99,14.5,5.2,4.7,null,"2011-01-10","44.53 Bil ","29.19 Bil ","15.12 Bil ","744.64 Mil ",null,null,null,"EARNINGS GROWTH RATES - NEXT 5 YEARS"]
[null,null,null,null,"1st Qtr",15593,14833,14802,null,"Fundamental company data and historical chart data provided by Thomson Reuters (click for restrictions). Real-time quotes provided by BATS Exchange. Real-time index quotes and delayed quotes supplied by Interactive Data Real-Time Services. Fund summary, fund performance and dividend data provided by Morningstar Inc. Analyst recommendations provided by Zacks Investment Research. StockScouter data provided by Verus Analytics. IPO data provided by Hoover's Inc. Index membership data provided by SIX Telekurs.",null,null,null,null,null,null,null,null,null,null,null,null,null,null,null,null,null,null,null,null,null,null,null,null,"Fundamental company data and historical chart data provided by Thomson Reuters (click for restrictions). Real-time quotes provided by BATS Exchange. Real-time index quotes and delayed quotes supplied by Interactive Data Real-Time Services. Fund summary, fund performance and dividend data provided by Morningstar Inc. Analyst recommendations provided by Zacks Investment Research. StockScouter data provided by Verus Analytics. IPO data provided by Hoover's Inc. Index membership data provided by SIX Telekurs.",null,null,null,null,"2011-02-03",10.38,1.18,14.6,4.8,3.8,null,"2011-01-09","44.11 Bil ","30.39 Bil ","17.49 Bil ","752.71 Mil ",null,null,null,"DESCRIPTION ","LAST 5 YRS ","FY 2012 ","FY 2013 ","NEXT 5 YRS ","11 P/E "]
[null,"Japanese stock price data provided by Nomura Research Institute Ltd.; quotes delayed 20 minutes. Canadian fund data provided by CANNEX Financial Exchanges Ltd.",null,null,"2nd Qtr",15532,15067,15472,null,null,null,null,null,null,"Fundamental company data and historical chart data provided by Thomson Reuters (click for restrictions). Real-time quotes provided by BATS Exchange. Real-time index quotes and delayed quotes supplied by Interactive Data Real-Time Services. Fund summary, fund performance and dividend data provided by Morningstar Inc. Analyst recommendations provided by Zacks Investment Research. StockScouter data provided by Verus Analytics. IPO data provided by Hoover's Inc. Index membership data provided by SIX Telekurs.",null,null,null,null,"Fundamental company data and historical chart data provided by Thomson Reuters (click for restrictions). Real-time quotes provided by BATS Exchange. Real-time index quotes and delayed quotes supplied by Interactive Data Real-Time Services. Fund summary, fund performance and dividend data provided by Morningstar Inc. Analyst recommendations provided by Zacks Investment Research. StockScouter data provided by Verus Analytics. IPO data provided by Hoover's Inc. Index membership data provided by SIX Telekurs.",null,null,null,null,"Fundamental company data and historical chart data provided by Thomson Reuters (click for restrictions). Real-time quotes provided by BATS Exchange. Real-time index quotes and delayed quotes supplied by Interactive Data Real-Time Services. Fund summary, fund performance and dividend data provided by Morningstar Inc. Analyst recommendations provided by Zacks Investment Research. StockScouter data provided by Verus Analytics. IPO data provided by Hoover's Inc. Index membership data provided by SIX Telekurs.",null,null,null,null,"Fundamental company data and historical chart data provided by Thomson Reuters (click for restrictions). Real-time quotes provided by BATS Exchange. Real-time index quotes and delayed quotes supplied by Interactive Data Real-Time Services. Fund summary, fund performance and dividend data provided by Morningstar Inc. Analyst recommendations provided by Zacks Investment Research. StockScouter data provided by Verus Analytics. IPO data provided by Hoover's Inc. Index membership data provided by SIX Telekurs.",null,null,null,null,null,null,null,null,null,"2011-02-02",8.68,1.1399999999999999,17.399999999999999,5.7,4.7,null,"2011-01-06","35.00 Bil ","20.79 Bil ","9.12 Bil ","874.07 Mil ",null,null,null,"Company ",8.3000000000000004E-2,7.6999999999999999E-2,5.0000000000000001E-3,0.11799999999999999,12.4]
[null,null,null,null,"3rd Qtr",15605,15276,15114,null,"Japanese stock price data provided by Nomura Research Institute Ltd.; quotes delayed 20 minutes. Canadian fund data provided by CANNEX Financial Exchanges Ltd.",null,null,null,null,null,null,null,null,null,null,null,null,null,null,null,null,null,null,null,null,null,null,null,null,"Japanese stock price data provided by Nomura Research Institute Ltd.; quotes delayed 20 minutes. Canadian fund data provided by CANNEX Financial Exchanges Ltd.",null,null,null,null,null,null,null,null,null,null,null,"2011-01-05","32.29 Bil ","19.26 Bil ","9.03 Bil ","890.64 Mil ",null,null,null,"Industry ",0.224,0.13700000000000001,0.16,0.14199999999999999,18]
[null,"Financial data in US dollars | Page generated 6:39 PM ET",null,null,"4th Qtr",20661,20181,19560,null,null,null,null,null,null,"Japanese stock price data provided by Nomura Research Institute Ltd.; quotes delayed 20 minutes. Canadian fund data provided by CANNEX Financial Exchanges Ltd.",null,null,null,null,"Japanese stock price data provided by Nomura Research Institute Ltd.; quotes delayed 20 minutes. Canadian fund data provided by CANNEX Financial Exchanges Ltd.",null,null,null,null,"Japanese stock price data provided by Nomura Research Institute Ltd.; quotes delayed 20 minutes. Canadian fund data provided by CANNEX Financial Exchanges Ltd.",null,null,null,null,"Japanese stock price data provided by Nomura Research Institute Ltd.; quotes delayed 20 minutes. Canadian fund data provided by CANNEX Financial Exchanges Ltd.",null,null,null,null,null,null,null,null,null,"Financial data in U.S. dollars",null,null,null,null,null,null,"2011-01-04","31.42 Bil ","20.28 Bil ","10.16 Bil ","911.81 Mil ",null,null,null,"S&P 500 ","NA ","NA ",0.06,"NA ",13]
[null,"Ad ChoiceFeedback",null,null,"Total",67391,65357,64948,null,"Privacy",null,null,null,null,null,null,null,null,null,null,null,null,null,null,null,null,null,null,null,null,null,null,null,null,"Privacy",null,null,null,null,null,null,null,null,null,null,null,"Financial Data in US Dollar",null,null,null,null,null,null,null,"Financial Data in US Dollar"]
[null,"RECENT QUOTES",null,null,"QTR. OVER QTR. EPS GROWTH RATE",null,null,null,null,"Legal",null,null,null,null,"Privacy",null,null,null,null,"Privacy",null,null,null,null,"Privacy",null,null,null,null,"Privacy",null,null,null,null,"Legal",null,null,null,null,"Ad Choice",null,null,null,null,null,null,"Financial statements are prepared in this standard format to allow direct comparisons of all companies and industries across multiple time frames.",null,null,null,null,null,null,null,"Listen to earnings release conference calls"]
[null,"WATCHLIST",null,null,null,"FY (01/11)","FY (01/10)","FY (01/09)",null,"Advertise",null,null,null,null,"Legal",null,null,null,null,"Legal",null,null,null,null,"Legal",null,null,null,null,"Legal",null,null,null,null,"Advertise",null,null,null,null,null,null,null,null,null,null,null,"See 10K and 10Q SEC Filings for as reported statements",null,null,null,null,null,null,null,"Zacks Industry: "]
[null,"You're not signed in",null,null,"1st Qtr",-0.27,-0.15,-0.4,null,"MSN Worldwide",null,null,null,null,"Advertise",null,null,null,null,"Advertise",null,null,null,null,"Advertise",null,null,null,null,"Advertise",null,null,null,null,"MSN Worldwide",null,null,null,null,"Feedback",null,null,null,null,null,null,"DATA PROVIDERS",null,null,null,null,null,null,null,"Zacks data updated daily"]
[null,"You’re not signed in to MSN Money, so you’re seeing the Watchlist that is tied to your computer. For a more consistent Watchlist experience, sign in to MSN Money. Learn more",null,null,"2nd Qtr",0.02,0.14000000000000001,0.09,null,"Help",null,null,null,null,"MSN Worldwide",null,null,null,null,"MSN Worldwide",null,null,null,null,"MSN Worldwide",null,null,null,null,"MSN Worldwide",null,null,null,null,"Help",null,null,null,null,null,null,null,null,null,null,null,null,null,null,null,null,null,null,null,"DATA PROVIDERS"]
[null,"View full page",null,null,"3rd Qtr",-0.19,-0.27,-0.4,null,"About our ads",null,null,null,null,"Help",null,null,null,null,"Help",null,null,null,null,"Help",null,null,null,null,"Help",null,null,null,null,"About our ads",null,null,null,null,"DATA PROVIDERS",null,null,null,null,null,null,"Copyright © 2011 Microsoft. All rights reserved."]
[null,"SYMBOL",null,null,"4th Qtr",0.95,1.1599999999999999,0.65,null,"Feedback",null,null,null,null,"About our ads",null,null,null,null,"About our ads",null,null,null,null,"About our ads",null,null,null,null,"About our ads",null,null,null,null,"Feedback",null,null,null,null,null,null,null,null,null,null,null,null,null,null,null,null,null,null,null,"Copyright © 2011 Microsoft. All rights reserved."]
[null,"LAST",null,null,"Financial Data in US Dollar",null,null,null,null,"Site map",null,null,null,null,"Feedback",null,null,null,null,"Feedback",null,null,null,null,"Feedback",null,null,null,null,"Feedback",null,null,null,null,"Site map",null,null,null,null,"Copyright © 2011 Microsoft. All rights reserved.",null,null,null,null,null,null,"Quotes are real-time for NASDAQ, NYSE and AMEX. See delay times for other exchanges."]
[null,"CHANGE",null,null,"EARNINGS PER SHARE - QUARTERLY RESULTS",null,null,null,null,"RSS",null,null,null,null,"Site map",null,null,null,null,"Site map",null,null,null,null,"Site map",null,null,null,null,"Site map",null,null,null,null,"RSS",null,null,null,null,null,null,null,null,null,null,null,null,null,null,null,null,null,null,null,"Quotes are real-time for NASDAQ, NYSE and AMEX. See delay times for other exchanges."]
[null,"SHARES",null,null,null,"FY (01/11)","FY (01/10)","FY (01/09)",null,"© 2011 Microsoft ",null,null,null,null,"RSS",null,null,null,null,"RSS",null,null,null,null,"RSS",null,null,null,null,"RSS",null,null,null,null,"© 2011 Microsoft ",null,null,null,null,"Quotes are real-time for NASDAQ, NYSE and AMEX. See delay times for other exchanges.",null,null,null,null,null,null,"Fundamental company data and historical chart data provided by Thomson Reuters (click for restrictions). Real-time quotes provided by BATS Exchange. Real-time index quotes and delayed quotes supplied by Interactive Data Real-Time Services. Fund summary, fund performance and dividend data provided by Morningstar Inc. Analyst recommendations data provided by Zacks Investment Research. StockScouter data provided by Verus Analytics. IPO data provided by Hoover's Inc. Index membership data provided by SIX Telekurs."]
[null,"Where's my list? | Update quotes | Clear all lists ",null,null,"1st Qtr",0.91,0.69,0.75,null,null,null,null,null,null,"© 2011 Microsoft ",null,null,null,null,"© 2011 Microsoft ",null,null,null,null,"© 2011 Microsoft ",null,null,null,null,"© 2011 Microsoft ",null,null,null,null,null,null,null,null,null,null,null,null,null,null,null,null,null,null,null,null,null,null,null,null,"Fundamental company data and historical chart data provided by Thomson Reuters (click for restrictions). Real-time quotes provided by BATS Exchange. Real-time index quotes and delayed quotes supplied by Interactive Data Real-Time Services. Fund summary, fund performance and dividend data provided by Morningstar Inc. Analyst recommendations data provided by Zacks Investment Research. StockScouter data provided by Verus Analytics. IPO data provided by Hoover's Inc. Index membership data provided by SIX Telekurs."]
[null,"Quotes delayed at least 15 min ",null,null,"2nd Qtr",0.93,0.79,0.82,null,null,null,null,null,null,null,null,null,null,null,null,null,null,null,null,null,null,null,null,null,null,null,null,null,null,null,null,null,null,null,"Fundamental company data and historical chart data provided by Thomson Reuters (click for restrictions). Real-time quotes provided by BATS Exchange. Real-time index quotes and delayed quotes supplied by Interactive Data Real-Time Services. Fund summary, fund performance and dividend data provided by Morningstar Inc. Analyst recommendations provided by Zacks Investment Research. StockScouter data provided by Verus Analytics. IPO data provided by Hoover's Inc. Index membership data provided by SIX Telekurs.",null,null,null,null,null,null,"Japanese stock price data provided by Nomura Research Institute Ltd.; quotes delayed 20 minutes. Canadian fund data provided by CANNEX Financial Exchanges Ltd."]
[null,"Sponsored by:",null,null,"3rd Qtr",0.75,0.57999999999999996,0.49,null,null,null,null,null,null,null,null,null,null,null,null,null,null,null,null,null,null,null,null,null,null,null,null,null,null,null,null,null,null,null,null,null,null,null,null,null,null,null,null,null,null,null,null,null,null,"Japanese stock price data provided by Nomura Research Institute Ltd.; quotes delayed 20 minutes. Canadian fund data provided by CANNEX Financial Exchanges Ltd."]
[null,"MARKET UPDATE",null,null,"4th Qtr",1.46,1.25,0.81,null,null,null,null,null,null,null,null,null,null,null,null,null,null,null,null,null,null,null,null,null,null,null,null,null,null,null,null,null,null,null,"Japanese stock price data provided by Nomura Research Institute Ltd.; quotes delayed 20 minutes. Canadian fund data provided by CANNEX Financial Exchanges Ltd.",null,null,null,null,null,null,"Ad ChoiceFeedback"]
[null,"[BRIEFING.COM] Stocks closed out the week on a strong note, helping the broad market book another weekly gain. Europe remained the primary topic of trade. Traders took early cues from Europe, where the region's major bourses bounced because of the fo ... More",null,null,"Total",4.05,3.31,2.87,null,null,null,null,null,null,null,null,null,null,null,null,null,null,null,null,null,null,null,null,null,null,null,null,null,null,null,null,null,null,null,null,null,null,null,null,null,null,"RECENT QUOTES",null,null,null,null,null,null,null,"Ad ChoiceFeedback"]
[null,"MORE MARKET NEWS",null,null,"YR. OVER YR. EPS GROWTH RATE",null,null,null,null,null,null,null,null,null,null,null,null,null,null,null,null,null,null,null,null,null,null,null,null,null,null,null,null,null,null,null,null,null,null,"Privacy",null,null,null,null,null,null,"WATCHLIST",null,null,null,null,null,null,null,"QTR. OVER QTR. EPS GROWTH RATE"]
[null,"Stock Ticker",null,null,null,"FY (01/11)","FY (01/10)","FY (01/09)",null,null,null,null,null,null,null,null,null,null,null,null,null,null,null,null,null,null,null,null,null,null,null,null,null,null,null,null,null,null,null,"Legal",null,null,null,null,null,null,"You're not signed in",null,null,null,null,null,null,null,null,"FY (01/11)","FY (01/10)","FY (01/09)"]
[null,"Story Stocks",null,null,"1st Qtr",0.32,-0.08,-0.01,null,null,null,null,null,null,null,null,null,null,null,null,null,null,null,null,null,null,null,null,null,null,null,null,null,null,null,null,null,null,null,"Advertise",null,null,null,null,null,null,"You’re not signed in to MSN Money, so you’re seeing the Watchlist that is tied to your computer. For a more consistent Watchlist experience, sign in to MSN Money. Learn more",null,null,null,null,null,null,null,"1st Qtr",-0.27,-0.15,-0.4]
[null,"In Play",null,null,"2nd Qtr",0.18,-0.04,0.01,null,null,null,null,null,null,null,null,null,null,null,null,null,null,null,null,null,null,null,null,null,null,null,null,null,null,null,null,null,null,null,"MSN Worldwide",null,null,null,null,null,null,"View full page",null,null,null,null,null,null,null,"2nd Qtr",0.02,0.14000000000000001,0.09]
[null,"Short Stories",null,null,"3rd Qtr",0.28999999999999998,0.18,-0.14000000000000001,null,null,null,null,null,null,null,null,null,null,null,null,null,null,null,null,null,null,null,null,null,null,null,null,null,null,null,null,null,null,null,"Help",null,null,null,null,null,null,"SYMBOL",null,null,null,null,null,null,null,"3rd Qtr",-0.19,-0.27,-0.4]
[null,"Sponsored by:",null,null,"4th Qtr",0.17,0.54,-0.35,null,null,null,null,null,null,null,null,null,null,null,null,null,null,null,null,null,null,null,null,null,null,null,null,null,null,null,null,null,null,null,"About our ads",null,null,null,null,null,null,"LAST",null,null,null,null,null,null,null,"4th Qtr",0.95,1.1599999999999999,0.65]
[null,"Privacy",null,null,"DATA PROVIDERS",null,null,null,null,null,null,null,null,null,null,null,null,null,null,null,null,null,null,null,null,null,null,null,null,null,null,null,null,null,null,null,null,null,null,"Feedback",null,null,null,null,null,null,"CHANGE",null,null,null,null,null,null,null,"YR. OVER YR. EPS GROWTH RATE"]
[null,"Legal",null,null,null,null,null,null,null,null,null,null,null,null,null,null,null,null,null,null,null,null,null,null,null,null,null,null,null,null,null,null,null,null,null,null,null,null,null,"Site map",null,null,null,null,null,null,"SHARES",null,null,null,null,null,null,null,null,"FY (01/11)","FY (01/10)","FY (01/09)"]
[null,"Advertise",null,null,"Copyright © 2011 Microsoft. All rights reserved.",null,null,null,null,null,null,null,null,null,null,null,null,null,null,null,null,null,null,null,null,null,null,null,null,null,null,null,null,null,null,null,null,null,null,"RSS",null,null,null,null,null,null,"Where's my list? | Update quotes | Clear all lists ",null,null,null,null,null,null,null,"1st Qtr",0.32,-0.08,-0.01]
[null,"MSN Worldwide",null,null,null,null,null,null,null,null,null,null,null,null,null,null,null,null,null,null,null,null,null,null,null,null,null,null,null,null,null,null,null,null,null,null,null,null,null,"© 2011 Microsoft ",null,null,null,null,null,null,"Quotes delayed at least 15 min ",null,null,null,null,null,null,null,"2nd Qtr",0.18,-0.04,0.01]
[null,"Help",null,null,"Quotes are real-time for NASDAQ, NYSE and AMEX. See delay times for other exchanges.",null,null,null,null,null,null,null,null,null,null,null,null,null,null,null,null,null,null,null,null,null,null,null,null,null,null,null,null,null,null,null,null,null,null,null,null,null,null,null,null,null,"Sponsored by:",null,null,null,null,null,null,null,"3rd Qtr",0.28999999999999998,0.18,-0.14000000000000001]
[null,"About our ads",null,null,null,null,null,null,null,null,null,null,null,null,null,null,null,null,null,null,null,null,null,null,null,null,null,null,null,null,null,null,null,null,null,null,null,null,null,null,null,null,null,null,null,null,"MARKET UPDATE",null,null,null,null,null,null,null,"4th Qtr",0.17,0.54,-0.35]
[null,"Feedback",null,null,"Fundamental company data and historical chart data provided by Thomson Reuters (click for restrictions). Real-time quotes provided by BATS Exchange. Real-time index quotes and delayed quotes supplied by Interactive Data Real-Time Services. Fund summary, fund performance and dividend data provided by Morningstar Inc. Analyst recommendations data provided by Zacks Investment Research. StockScouter data provided by Verus Analytics. IPO data provided by Hoover's Inc. Index membership data provided by SIX Telekurs.",null,null,null,null,null,null,null,null,null,null,null,null,null,null,null,null,null,null,null,null,null,null,null,null,null,null,null,null,null,null,null,null,null,null,null,null,null,null,null,null,null,"[BRIEFING.COM] Stocks closed out the week on a strong note, helping the broad market book another weekly gain. Europe remained the primary topic of trade. Traders took early cues from Europe, where the region's major bourses bounced because of the fo ... More",null,null,null,null,null,null,null,"RECENT QUOTES"]
[null,"Site map",null,null,null,null,null,null,null,null,null,null,null,null,null,null,null,null,null,null,null,null,null,null,null,null,null,null,null,null,null,null,null,null,null,null,null,null,null,null,null,null,null,null,null,null,"MORE MARKET NEWS",null,null,null,null,null,null,null,"WATCHLIST"]
[null,"RSS",null,null,"Japanese stock price data provided by Nomura Research Institute Ltd.; quotes delayed 20 minutes. Canadian fund data provided by CANNEX Financial Exchanges Ltd.",null,null,null,null,null,null,null,null,null,null,null,null,null,null,null,null,null,null,null,null,null,null,null,null,null,null,null,null,null,null,null,null,null,null,null,null,null,null,null,null,null,"Stock Ticker",null,null,null,null,null,null,null,"You're not signed in"]
[null,"© 2011 Microsoft ",null,null,null,null,null,null,null,null,null,null,null,null,null,null,null,null,null,null,null,null,null,null,null,null,null,null,null,null,null,null,null,null,null,null,null,null,null,null,null,null,null,null,null,null,"Story Stocks",null,null,null,null,null,null,null,"You’re not signed in to MSN Money, so you’re seeing the Watchlist that is tied to your computer. For a more consistent Watchlist experience, sign in to MSN Money. Learn more"]
[null,null,null,null,"Ad ChoiceFeedback",null,null,null,null,null,null,null,null,null,null,null,null,null,null,null,null,null,null,null,null,null,null,null,null,null,null,null,null,null,null,null,null,null,null,null,null,null,null,null,null,null,"In Play",null,null,null,null,null,null,null,"View full page"]
[null,null,null,null,"RECENT QUOTES",null,null,null,null,null,null,null,null,null,null,null,null,null,null,null,null,null,null,null,null,null,null,null,null,null,null,null,null,null,null,null,null,null,null,null,null,null,null,null,null,null,"Short Stories",null,null,null,null,null,null,null,"SYMBOL"]
[null,null,null,null,"WATCHLIST",null,null,null,null,null,null,null,null,null,null,null,null,null,null,null,null,null,null,null,null,null,null,null,null,null,null,null,null,null,null,null,null,null,null,null,null,null,null,null,null,null,"Sponsored by:",null,null,null,null,null,null,null,"LAST"]
[null,null,null,null,"You're not signed in",null,null,null,null,null,null,null,null,null,null,null,null,null,null,null,null,null,null,null,null,null,null,null,null,null,null,null,null,null,null,null,null,null,null,null,null,null,null,null,null,null,"Privacy",null,null,null,null,null,null,null,"CHANGE"]
[null,null,null,null,"You’re not signed in to MSN Money, so you’re seeing the Watchlist that is tied to your computer. For a more consistent Watchlist experience, sign in to MSN Money. Learn more",null,null,null,null,null,null,null,null,null,null,null,null,null,null,null,null,null,null,null,null,null,null,null,null,null,null,null,null,null,null,null,null,null,null,null,null,null,null,null,null,null,"Legal",null,null,null,null,null,null,null,"SHARES"]
[null,null,null,null,"View full page",null,null,null,null,null,null,null,null,null,null,null,null,null,null,null,null,null,null,null,null,null,null,null,null,null,null,null,null,null,null,null,null,null,null,null,null,null,null,null,null,null,"Advertise",null,null,null,null,null,null,null,"Where's my list? | Update quotes | Clear all lists "]
[null,null,null,null,"SYMBOL",null,null,null,null,null,null,null,null,null,null,null,null,null,null,null,null,null,null,null,null,null,null,null,null,null,null,null,null,null,null,null,null,null,null,null,null,null,null,null,null,null,"MSN Worldwide",null,null,null,null,null,null,null,"Quotes delayed at least 15 min "]
[null,null,null,null,"LAST",null,null,null,null,null,null,null,null,null,null,null,null,null,null,null,null,null,null,null,null,null,null,null,null,null,null,null,null,null,null,null,null,null,null,null,null,null,null,null,null,null,"Help",null,null,null,null,null,null,null,"Sponsored by:"]
[null,null,null,null,"CHANGE",null,null,null,null,null,null,null,null,null,null,null,null,null,null,null,null,null,null,null,null,null,null,null,null,null,null,null,null,null,null,null,null,null,null,null,null,null,null,null,null,null,"About our ads",null,null,null,null,null,null,null,"Privacy"]
[null,null,null,null,"SHARES",null,null,null,null,null,null,null,null,null,null,null,null,null,null,null,null,null,null,null,null,null,null,null,null,null,null,null,null,null,null,null,null,null,null,null,null,null,null,null,null,null,"Feedback",null,null,null,null,null,null,null,"Legal"]
[null,null,null,null,"Where's my list? | Update quotes | Clear all lists ",null,null,null,null,null,null,null,null,null,null,null,null,null,null,null,null,null,null,null,null,null,null,null,null,null,null,null,null,null,null,null,null,null,null,null,null,null,null,null,null,null,"Site map",null,null,null,null,null,null,null,"Advertise"]
[null,null,null,null,"Quotes delayed at least 15 min ",null,null,null,null,null,null,null,null,null,null,null,null,null,null,null,null,null,null,null,null,null,null,null,null,null,null,null,null,null,null,null,null,null,null,null,null,null,null,null,null,null,"RSS",null,null,null,null,null,null,null,"MSN Worldwide"]
[null,null,null,null,"Sponsored by:",null,null,null,null,null,null,null,null,null,null,null,null,null,null,null,null,null,null,null,null,null,null,null,null,null,null,null,null,null,null,null,null,null,null,null,null,null,null,null,null,null,"© 2011 Microsoft ",null,null,null,null,null,null,null,"Help"]
[null,null,null,null,"MARKET UPDATE",null,null,null,null,null,null,null,null,null,null,null,null,null,null,null,null,null,null,null,null,null,null,null,null,null,null,null,null,null,null,null,null,null,null,null,null,null,null,null,null,null,null,null,null,null,null,null,null,null,"About our ads"]
[null,null,null,null,"[BRIEFING.COM] Stocks closed out the week on a strong note, helping the broad market book another weekly gain. Europe remained the primary topic of trade. Traders took early cues from Europe, where the region's major bourses bounced because of the fo ... More",null,null,null,null,null,null,null,null,null,null,null,null,null,null,null,null,null,null,null,null,null,null,null,null,null,null,null,null,null,null,null,null,null,null,null,null,null,null,null,null,null,null,null,null,null,null,null,null,null,"Feedback"]
[null,null,null,null,"MORE MARKET NEWS",null,null,null,null,null,null,null,null,null,null,null,null,null,null,null,null,null,null,null,null,null,null,null,null,null,null,null,null,null,null,null,null,null,null,null,null,null,null,null,null,null,null,null,null,null,null,null,null,null,"Site map"]
[null,null,null,null,"Stock Ticker",null,null,null,null,null,null,null,null,null,null,null,null,null,null,null,null,null,null,null,null,null,null,null,null,null,null,null,null,null,null,null,null,null,null,null,null,null,null,null,null,null,null,null,null,null,null,null,null,null,"RSS"]
[null,null,null,null,"Story Stocks",null,null,null,null,null,null,null,null,null,null,null,null,null,null,null,null,null,null,null,null,null,null,null,null,null,null,null,null,null,null,null,null,null,null,null,null,null,null,null,null,null,null,null,null,null,null,null,null,null,"© 2011 Microsoft "]
[null,null,null,null,"In Play"]
[null,null,null,null,"Short Stories"]
[null,null,null,null,"Sponsored by:"]
[null,null,null,null,"Privacy"]
[null,null,null,null,"Legal"]
[null,null,null,null,"Advertise"]
[null,null,null,null,"MSN Worldwide"]
[null,null,null,null,"Help"]
[null,null,null,null,"About our ads"]
[null,null,null,null,"Feedback"]
[null,null,null,null,"Site map"]
[null,null,null,null,"RSS"]
[null,null,null,null,"© 2011 Microsoft "]

{"sheet":"IE","index":9,"n_rows":216,"n_cols":17,"rows_kept":216,"cut":false,"hidden":false,"merged":[]}
[null,"Annual",null,null,null,null,null,null,null,null,"Interim"]
[null,"More",null,null,null,null,null,null,null,null,"More"]
[]
[null,"Autos",null,null,null,null,null,null,null,null,"Autos"]
[null,"Entertainment",null,null,null,null,null,null,null,null,"Entertainment"]
[null,"Lifestyle",null,null,null,null,null,null,null,null,"Lifestyle"]
[null,"Online dating",null,null,null,null,null,null,null,null,"Online dating"]
[null,"Video",null,null,null,null,null,null,null,null,"Video"]
[]
[null,"Careers & Jobs",null,null,null,null,null,null,null,null,"Careers & Jobs"]
[null,"Games",null,null,null,null,null,null,null,null,"Games"]
[null,"Local Edition",null,null,null,null,null,null,null,null,"Local Edition"]
[null,"Real Estate & Rentals",null,null,null,null,null,null,null,null,"Real Estate & Rentals"]
[null,"Weather",null,null,null,null,null,null,null,null,"Weather"]
[]
[null,"Celebrities",null,null,null,null,null,null,null,null,"Celebrities"]
[null,"Glo",null,null,null,null,null,null,null,null,"Glo"]
[null,"Money",null,null,null,null,null,null,null,null,"Money"]
[null,"Sports",null,null,null,null,null,null,null,null,"Sports"]
[null,"White Pages",null,null,null,null,null,null,null,null,"White Pages"]
[]
[null,"Delish",null,null,null,null,null,null,null,null,"Delish"]
[null,"Health, Diet & Fitness",null,null,null,null,null,null,null,null,"Health, Diet & Fitness"]
[null,"News",null,null,null,null,null,null,null,null,"News"]
[null,"Travel",null,null,null,null,null,null,null,null,"Travel"]
[null,"Full MSN Index",null,null,null,null,null,null,null,null,"Full MSN Index"]
[null,"Hotmail",null,null,null,null,null,null,null,null,"Hotmail"]
[]
[null,"Inbox",null,null,null,null,null,null,null,null,"Inbox"]
[null,"Calendar",null,null,null,null,null,null,null,null,"Calendar"]
[null,"Contacts",null,null,null,null,null,null,null,null,"Contacts"]
[null,"Send e-mail",null,null,null,null,null,null,null,null,"Send e-mail"]
[null,"Messenger",null,null,null,null,null,null,null,null,"Messenger"]
[null,"Bing",null,null,null,null,null,null,null,null,"Bing"]
[null,"Make MSN your homepage Make Bing your decision engine",null,null,null,null,null,null,null,null,"Make MSN your homepage Make Bing your decision engine"]
[null,"Welcome",null,null,null,null,null,null,null,null,"Welcome"]
[null,"Money",null,null,null,null,null,null,null,null,"Money"]
[null,"Bing Search:",null,null,null,null,null,null,null,null,"Bing Search:"]
[null,"Money",null,null,null,null,null,null,null,null,"Money"]
[null,"|",null,null,null,null,null,null,null,null,"|"]
[null,"Web",null,null,null,null,null,null,null,null,"Web"]
[null,"Bing search:",null,null,null,null,null,null,null,null,"Bing search:"]
[null,"Page options",null,null,null,null,null,null,null,null,"Page options"]
[]
[null,"Make text larger",null,null,null,null,null,null,null,null,"Make text larger"]
[null,"enabledShow search suggestions",null,null,null,null,null,null,null,null,"enabledShow search suggestions"]
[null,"Help",null,null,null,null,null,null,null,null,"Help"]
[null,"|",null,null,null,null,null,null,null,null,"|"]
[null,"Sign in",null,null,null,null,null,null,null,null,"Sign in"]
[null,"Home",null,null,null,null,null,null,null,null,"Home"]
[]
[null,"News",null,null,null,null,null,null,null,null,"News"]
[]
[null,"Headlines",null,null,null,null,null,null,null,null,"Headlines"]
[null,"Video",null,null,null,null,null,null,null,null,"Video"]
[null,"Investing",null,null,null,null,null,null,null,null,"Investing"]
[]
[null,"portfolio manager",null,null,null,null,null,null,null,null,"portfolio manager"]
[null,"markets",null,null,null,null,null,null,null,null,"markets"]
[null,"stocks",null,null,null,null,null,null,null,null,"stocks"]
[null,"mutual funds",null,null,null,null,null,null,null,null,"mutual funds"]
[null,"etfs",null,null,null,null,null,null,null,null,"etfs"]
[null,"broker center",null,null,null,null,null,null,null,null,"broker center"]
[null,"investor pro",null,null,null,null,null,null,null,null,"investor pro"]
[null,"Personal Finance",null,null,null,null,null,null,null,null,"Personal Finance"]
[]
[null,"Saving & Budgeting",null,null,null,null,null,null,null,null,"Saving & Budgeting"]
[null,"Credit & Debt",null,null,null,null,null,null,null,null,"Credit & Debt"]
[null,"Loans",null,null,null,null,null,null,null,null,"Loans"]
[null,"Retirement",null,null,null,null,null,null,null,null,"Retirement"]
[null,"Insurance",null,null,null,null,null,null,null,null,"Insurance"]
[null,"Taxes",null,null,null,null,null,null,null,null,"Taxes"]
[null,"Your Money",null,null,null,null,null,null,null,null,"Your Money"]
[null,"My Money",null,null,null,null,null,null,null,null,"My Money"]
[]
[null,"Real Estate",null,null,null,null,null,null,null,null,"Real Estate"]
[]
[null,"Careers",null,null,null,null,null,null,null,null,"Careers"]
[]
[null,"Autos",null,null,null,null,null,null,null,null,"Autos"]
[]
[null,"Target Corp (NYSE : TGT)",null,null,null,null,null,null,null,null,"Target Corp (NYSE : TGT)"]
[null,"Trade now",null,null,null,null,null,null,null,null,"Trade now"]
[null,"Add to Watchlist",null,null,null,null,null,null,null,null,"Add to Watchlist"]
[null,"Get chart",null,null,null,null,null,null,null,null,"Get chart"]
[null,"Print report",null,null,null,null,null,null,null,null,"Print report"]
[null,"Find financial results for: 53.50Up+0.03+0.06%Delayed ",null,null,null,null,null,null,null,null,"Find financial results for: 53.50Up+0.03+0.06%Delayed "]
[null,"MORE ABOUT TGT",null,null,null,null,null,null,null,null,"MORE ABOUT TGT"]
[null,"SUMMARY",null,null,null,null,null,null,null,null,"SUMMARY"]
[null,"Quote",null,null,null,null,null,null,null,null,"Quote"]
[null,"Options",null,null,null,null,null,null,null,null,"Options"]
[null,"Historical Prices",null,null,null,null,null,null,null,null,"Historical Prices"]
[null,"CHARTS",null,null,null,null,null,null,null,null,"CHARTS"]
[null,"Basic",null,null,null,null,null,null,null,null,"Basic"]
[null,"NEWS",null,null,null,null,null,null,null,null,"NEWS"]
[null,"Headlines",null,null,null,null,null,null,null,null,"Headlines"]
[null,"Key Developments",null,null,null,null,null,null,null,null,"Key Developments"]
[null,"FUNDAMENTALS",null,null,null,null,null,null,null,null,"FUNDAMENTALS"]
[null,"Financial Highlights",null,null,null,null,null,null,null,null,"Financial Highlights"]
[null,"Profile",null,null,null,null,null,null,null,null,"Profile"]
[null,"Key Ratios",null,null,null,null,null,null,null,null,"Key Ratios"]
[null,"10-Year Summary",null,null,null,null,null,null,null,null,"10-Year Summary"]
[null,"Earnings",null,null,null,null,null,null,null,null,"Earnings"]
[null,"SEC Filings",null,null,null,null,null,null,null,null,"SEC Filings"]
[null,"RATINGS/ANALYSIS",null,null,null,null,null,null,null,null,"RATINGS/ANALYSIS"]
[null,"StockScouter Report",null,null,null,null,null,null,null,null,"StockScouter Report"]
[null,"Analyst Ratings",null,null,null,null,null,null,null,null,"Analyst Ratings"]
[null,"INSIDER ACTION",null,null,null,null,null,null,null,null,"INSIDER ACTION"]
[null,"Insider Trades",null,null,null,null,null,null,null,null,"Insider Trades"]
[null,"Ownership",null,null,null,null,null,null,null,null,"Ownership"]
[null,"FINANCIALS",null,null,null,null,null,null,null,null,"FINANCIALS"]
[null,"Income Statement",null,null,null,null,null,null,null,null,"Income Statement"]
[null,"Balance Sheet",null,null,null,null,null,null,null,null,"Balance Sheet"]
[null,"Cash Flow",null,null,null,null,null,null,null,null,"Cash Flow"]
[null,"10-Year Summary",null,null,null,null,null,null,null,null,"10-Year Summary"]
[]
[]
[null,"You can't view information about this ticker symbol because JavaScript is not enabled for your web browser. To enable JavaScript, consult online Help for your browser.",null,null,null,null,null,null,null,null,"You can't view information about this ticker symbol because JavaScript is not enabled for your web browser. To enable JavaScript, consult online Help for your browser."]
[]
[]
[]
[null,"Annual","Interim",null,null,null,null,null,null,null,"Annual","Interim"]
[null,null,null,2011,2010,2009,2008,2007,null,null,null,null,"2012 Q3","2012 Q2","2012 Q1","2011 Q4","2011 Q3"]
[null,"Period End Date",null,"2011-01-29","2010-01-30","2009-01-31","2008-02-02","2007-02-03",null,null,"Period End Date",null,"2011-10-29","2011-07-30","2011-04-30","2011-01-29","2010-10-30"]
[null,"Period Length",null,"52 Weeks","52 Weeks","52 Weeks","52 Weeks","53 Weeks",null,null,"Period Length",null,"13 Weeks","13 Weeks","13 Weeks","13 Weeks","13 Weeks"]
[null,"Stmt Source",null,"10-K","10-K","10-K","10-K","10-K",null,null,"Stmt Source",null,"10-Q","10-Q","10-Q","10-K","10-Q"]
[null,"Stmt Source Date",null,"2011-03-11","2010-03-12","2009-03-13","2009-03-13","2009-03-13",null,null,"Stmt Source Date",null,"2011-11-23","2011-08-25","2011-05-26","2011-03-11","2010-12-03"]
[null,"Stmt Update Type",null,"Updated","Updated","Updated","Reclassified","Reclassified",null,null,"Stmt Update Type",null,"Updated","Updated","Updated","Updated","Updated"]
[]
[null,"Revenue",null,67390,65357,64948,63367,59490,null,null,"Revenue",null,16402,16240,15935,20661,15605]
[null,"Total Revenue",null,"2084-07-02","2078-12-08","2077-10-25","2073-06-27","2062-11-15",null,null,"Total Revenue",null,"1944-11-26","1944-06-17","1943-08-17","1956-07-25","1942-09-21"]
[]
[null,"Cost of Revenue, Total",null,46585,45583,45766,43766,41073,null,null,"Cost of Revenue, Total",null,11274,10958,10926,14625,10760]
[null,"Gross Profit",null,"1956-12-16","1954-02-19","1952-07-07","1953-08-30","1950-06-03",null,null,"Gross Profit",null,"1914-01-14","1914-06-17","1913-09-17","1916-07-10","1913-04-06"]
[]
[null,"Selling/General/Administrative Expenses, Total",null,13469,13078,12954,12670,11852,null,null,"Selling/General/Administrative Expenses, Total",null,3525,3473,3233,3720,3345]
[null,"Research & Development",null,0,0,0,0,0,null,null,"Research & Development",null,0,0,0,0,0]
[null,"Depreciation/Amortization",null,2084,2023,1826,1659,1496,null,null,"Depreciation/Amortization",null,546,509,512,538,533]
[null,"Interest Expense (Income), Net Operating",null,0,0,0,0,0,null,null,"Interest Expense (Income), Net Operating",null,0,0,0,0,0]
[null,"Unusual Expense (Income)",null,0,0,0,0,0,null,null,"Unusual Expense (Income)",null,0,0,0,0,0]
[null,"Other Operating Expenses, Total",null,0,0,0,0,0,null,null,"Other Operating Expenses, Total",null,0,0,0,0,0]
[null,"Operating Income",null,4495,3872,3536,4625,4497,null,null,"Operating Income",null,857,1109,1081,1588,773]
[]
[null,"Interest Income (Expense), Net Non-Operating",null,0,0,0,0,0,null,null,"Interest Income (Expense), Net Non-Operating",null,0,0,0,0,0]
[null,"Gain (Loss) on Sale of Assets",null,0,0,0,0,0,null,null,"Gain (Loss) on Sale of Assets",null,0,0,0,0,0]
[null,"Other, Net",null,0,0,0,0,0,null,null,"Other, Net",null,0,0,0,0,0]
[null,"Income Before Tax",null,4495,3872,3536,4625,4497,null,null,"Income Before Tax",null,857,1109,1081,1588,773]
[]
[null,"Income Tax - Total",null,1575,1384,1322,1776,1710,null,null,"Income Tax - Total",null,302,405,392,553,238]
[null,"Income After Tax",null,2920,2488,2214,2849,2787,null,null,"Income After Tax",null,555,704,689,1035,535]
[]
[null,"Minority Interest",null,0,0,0,0,0,null,null,"Minority Interest",null,0,0,0,0,0]
[null,"Equity In Affiliates",null,0,0,0,0,0,null,null,"Equity In Affiliates",null,0,0,0,0,0]
[null,"U.S. GAAP Adjustment",null,0,0,0,0,0,null,null,"U.S. GAAP Adjustment",null,0,0,0,0,0]
[null,"Net Income Before Extra. Items",null,2920,2488,2214,2849,2787,null,null,"Net Income Before Extra. Items",null,555,704,689,1035,535]
[]
[null,"Total Extraordinary Items",null,0,0,0,0,0,null,null,"Total Extraordinary Items",null,0,0,0,0,0]
[null,"Net Income",null,2920,2488,2214,2849,2787,null,null,"Net Income",null,555,704,689,1035,535]
[]
[]
[null,"Total Adjustments to Net Income",null,0,0,0,0,0,null,null,"Total Adjustments to Net Income",null,0,0,0,0,0]
[null,"Preferred Dividends",0,0,0,0,0,null,null,null,"Preferred Dividends",0,0,0,0,0]
[null,"General Partners' Distributions",0,0,0,0,0,null,null,null,"General Partners' Distributions",0,0,0,0,0]
[]
[null,"Basic Weighted Average Shares",null,723.6,752,770.4,845.4,861.9,null,null,"Basic Weighted Average Shares",null,673.2,680.8,692.6,708.1,715.4]
[null,"Basic EPS Excluding Extraordinary Items",null,4.04,3.31,2.87,3.37,3.23,null,null,"Basic EPS Excluding Extraordinary Items",null,0.82,1.03,0.99,1.46,0.75]
[null,"Basic EPS Including Extraordinary Items",null,4.04,3.31,2.87,3.37,3.23,null,null,"Basic EPS Including Extraordinary Items",null,0.82,1.03,0.99,1.46,0.75]
[]
[null,"Diluted Weighted Average Shares",null,729.4,754.8,773.6,850.8,868.6,null,null,"Diluted Weighted Average Shares",null,678.3,685.1,697.4,714.4,721]
[null,"Diluted EPS Excluding Extrordinary Items",null,4,3.3,2.86,3.35,3.21,null,null,"Diluted EPS Excluding Extrordinary Items",null,0.82,1.03,0.99,1.45,0.74]
[null,"Diluted EPS Including Extraordinary Items",null,4,3.3,2.86,3.35,3.21,null,null,"Diluted EPS Including Extraordinary Items",null,0.82,1.03,0.99,1.45,0.74]
[]
[null,"Dividends per Share - Common Stock Primary Issue",null,0.92,0.67,0.62,0.54,0.46,null,null,"Dividends per Share - Common Stock Primary Issue",null,0.3,0.3,0.25,0.25,0.25]
[null,"Gross Dividends - Common Stock",null,659,503,471,454,396,null,null,"Gross Dividends - Common Stock",null,202,202,172,176,177]
[null,"Interest Expense, Supplemental",null,760,804,894,668,597,null,null,"Interest Expense, Supplemental",null,202,192,183,191,195]
[null,"Depreciation, Supplemental",null,2060,1999,1804,1644,1509,null,null,"Depreciation, Supplemental",null,546,509,512,539,533]
[]
[null,"Normalized EBITDA",null,7336,6696,6227,6931,6565,null,null,"Normalized EBITDA",null,1603,1809,1776,2317,1500]
[null,"Normalized EBIT",null,5252,4673,4402,5272,5069,null,null,"Normalized EBIT",null,1057,1300,1264,1778,967]
[null,"Normalized Income Before Tax",null,4495,3872,3536,4625,4497,null,null,"Normalized Income Before Tax",null,857,1109,1081,1588,773]
[null,"Normalized Income After Taxes",null,2920,2488,2214,2849,2787,null,null,"Normalized Income After Taxes",null,555,704,689,1035,535]
[null,"Normalized Income Available to Common",null,2920,2488,2214,2849,2787,null,null,"Normalized Income Available to Common",null,555,704,689,1035,535]
[]
[null,"Basic Normalized EPS",null,4.04,3.31,2.87,3.37,3.23,null,null,"Basic Normalized EPS",null,0.82,1.03,0.99,1.46,0.75]
[null,"Diluted Normalized EPS",null,4,3.3,2.86,3.35,3.21,null,null,"Diluted Normalized EPS",null,0.82,1.03,0.99,1.45,0.74]
[null,"Amortization of Intangibles",null,24,24,21,15,-13]
[null,null,null,null,null,null,null,null,null,null,"Financial data in U.S. Dollars"]
[null,"Financial data in U.S. Dollars",null,null,null,null,null,null,null,null,"Values in Millions (Except for per share items)"]
[null,"Values in Millions (Except for per share items)"]
[null,null,null,null,null,null,null,null,null,null,"Business Type: Industry"]
[null,"Business Type: Industry"]
[null,null,null,null,null,null,null,null,null,null,"Financial statements are prepared in this standard format to allow direct comparisons of all companies and industries across multiple time frames."]
[null,"Financial statements are prepared in this standard format to allow direct comparisons of all companies and industries across multiple time frames."]
[null,null,null,null,null,null,null,null,null,null,"See 10K and 10Q SEC Filings for as reported statements"]
[null,"See 10K and 10Q SEC Filings for as reported statements"]
[null,null,null,null,null,null,null,null,null,null,"DATA PROVIDERS"]
[null,"DATA PROVIDERS"]
[null,null,null,null,null,null,null,null,null,null,"Copyright © 2011 Microsoft. All rights reserved."]
[null,"Copyright © 2011 Microsoft. All rights reserved."]
[null,null,null,null,null,null,null,null,null,null,"Quotes are real-time for NASDAQ, NYSE and AMEX. See delay times for other exchanges."]
[null,"Quotes are real-time for NASDAQ, NYSE and AMEX. See delay times for other exchanges."]
[null,null,null,null,null,null,null,null,null,null,"Fundamental company data and historical chart data provided by Thomson Reuters (click for restrictions). Real-time quotes provided by BATS Exchange. Real-time index quotes and delayed quotes supplied by Interactive Data Real-Time Services. Fund summary, fund performance and dividend data provided by Morningstar Inc. Analyst recommendations provided by Zacks Investment Research. StockScouter data provided by Verus Analytics. IPO data provided by Hoover's Inc. Index membership data provided by SIX Telekurs."]
[null,"Fundamental company data and historical chart data provided by Thomson Reuters (click for restrictions). Real-time quotes provided by BATS Exchange. Real-time index quotes and delayed quotes supplied by Interactive Data Real-Time Services. Fund summary, fund performance and dividend data provided by Morningstar Inc. Analyst recommendations provided by Zacks Investment Research. StockScouter data provided by Verus Analytics. IPO data provided by Hoover's Inc. Index membership data provided by SIX Telekurs."]
[null,null,null,null,null,null,null,null,null,null,"Japanese stock price data provided by Nomura Research Institute Ltd.; quotes delayed 20 minutes. Canadian fund data provided by CANNEX Financial Exchanges Ltd."]
[null,"Japanese stock price data provided by Nomura Research Institute Ltd.; quotes delayed 20 minutes. Canadian fund data provided by CANNEX Financial Exchanges Ltd."]
[null,null,null,null,null,null,null,null,null,null,"Privacy"]
[null,"Privacy",null,null,null,null,null,null,null,null,"Legal"]
[null,"Legal",null,null,null,null,null,null,null,null,"Advertise"]
[null,"Advertise",null,null,null,null,null,null,null,null,"MSN Worldwide"]
[null,"MSN Worldwide",null,null,null,null,null,null,null,null,"Help"]
[null,"Help",null,null,null,null,null,null,null,null,"About our ads"]
[null,"About our ads",null,null,null,null,null,null,null,null,"Feedback"]
[null,"Feedback",null,null,null,null,null,null,null,null,"Site map"]
[null,"Site map",null,null,null,null,null,null,null,null,"RSS"]
[null,"RSS",null,null,null,null,null,null,null,null,"© 2011 Microsoft "]
[null,"© 2011 Microsoft "]

{"sheet":"CFS","index":10,"n_rows":197,"n_cols":16,"rows_kept":197,"cut":false,"hidden":false,"merged":[]}
[null,"Annual",null,null,null,null,null,null,null,"Interim"]
[null,"More",null,null,null,null,null,null,null,"More"]
[]
[null,"Autos",null,null,null,null,null,null,null,"Autos"]
[null,"Entertainment",null,null,null,null,null,null,null,"Entertainment"]
[null,"Lifestyle",null,null,null,null,null,null,null,"Lifestyle"]
[null,"Online dating",null,null,null,null,null,null,null,"Online dating"]
[null,"Video",null,null,null,null,null,null,null,"Video"]
[]
[null,"Careers & Jobs",null,null,null,null,null,null,null,"Careers & Jobs"]
[null,"Games",null,null,null,null,null,null,null,"Games"]
[null,"Local Edition",null,null,null,null,null,null,null,"Local Edition"]
[null,"Real Estate & Rentals",null,null,null,null,null,null,null,"Real Estate & Rentals"]
[null,"Weather",null,null,null,null,null,null,null,"Weather"]
[]
[null,"Celebrities",null,null,null,null,null,null,null,"Celebrities"]
[null,"Glo",null,null,null,null,null,null,null,"Glo"]
[null,"Money",null,null,null,null,null,null,null,"Money"]
[null,"Sports",null,null,null,null,null,null,null,"Sports"]
[null,"White Pages",null,null,null,null,null,null,null,"White Pages"]
[]
[null,"Delish",null,null,null,null,null,null,null,"Delish"]
[null,"Health, Diet & Fitness",null,null,null,null,null,null,null,"Health, Diet & Fitness"]
[null,"News",null,null,null,null,null,null,null,"News"]
[null,"Travel",null,null,null,null,null,null,null,"Travel"]
[null,"Full MSN Index",null,null,null,null,null,null,null,"Full MSN Index"]
[null,"Hotmail",null,null,null,null,null,null,null,"Hotmail"]
[]
[null,"Inbox",null,null,null,null,null,null,null,"Inbox"]
[null,"Calendar",null,null,null,null,null,null,null,"Calendar"]
[null,"Contacts",null,null,null,null,null,null,null,"Contacts"]
[null,"Send e-mail",null,null,null,null,null,null,null,"Send e-mail"]
[null,"Messenger",null,null,null,null,null,null,null,"Messenger"]
[null,"Bing",null,null,null,null,null,null,null,"Bing"]
[null,"Make MSN your homepage Make Bing your decision engine",null,null,null,null,null,null,null,"Make MSN your homepage Make Bing your decision engine"]
[null,"Welcome",null,null,null,null,null,null,null,"Welcome"]
[null,"Money",null,null,null,null,null,null,null,"Money"]
[null,"Bing Search:",null,null,null,null,null,null,null,"Bing Search:"]
[null,"Money",null,null,null,null,null,null,null,"Money"]
[null,"|",null,null,null,null,null,null,null,"|"]
[null,"Web",null,null,null,null,null,null,null,"Web"]
[null,"Bing search:",null,null,null,null,null,null,null,"Bing search:"]
[null,"Page options",null,null,null,null,null,null,null,"Page options"]
[]
[null,"Make text larger",null,null,null,null,null,null,null,"Make text larger"]
[null,"enabledShow search suggestions",null,null,null,null,null,null,null,"enabledShow search suggestions"]
[null,"Help",null,null,null,null,null,null,null,"Help"]
[null,"|",null,null,null,null,null,null,null,"|"]
[null,"Sign in",null,null,null,null,null,null,null,"Sign in"]
[null,"Home",null,null,null,null,null,null,null,"Home"]
[]
[null,"News",null,null,null,null,null,null,null,"News"]
[]
[null,"Headlines",null,null,null,null,null,null,null,"Headlines"]
[null,"Video",null,null,null,null,null,null,null,"Video"]
[null,"Investing",null,null,null,null,null,null,null,"Investing"]
[]
[null,"portfolio manager",null,null,null,null,null,null,null,"portfolio manager"]
[null,"markets",null,null,null,null,null,null,null,"markets"]
[null,"stocks",null,null,null,null,null,null,null,"stocks"]
[null,"mutual funds",null,null,null,null,null,null,null,"mutual funds"]
[null,"etfs",null,null,null,null,null,null,null,"etfs"]
[null,"broker center",null,null,null,null,null,null,null,"broker center"]
[null,"investor pro",null,null,null,null,null,null,null,"investor pro"]
[null,"Personal Finance",null,null,null,null,null,null,null,"Personal Finance"]
[]
[null,"Saving & Budgeting",null,null,null,null,null,null,null,"Saving & Budgeting"]
[null,"Credit & Debt",null,null,null,null,null,null,null,"Credit & Debt"]
[null,"Loans",null,null,null,null,null,null,null,"Loans"]
[null,"Retirement",null,null,null,null,null,null,null,"Retirement"]
[null,"Insurance",null,null,null,null,null,null,null,"Insurance"]
[null,"Taxes",null,null,null,null,null,null,null,"Taxes"]
[null,"Your Money",null,null,null,null,null,null,null,"Your Money"]
[null,"My Money",null,null,null,null,null,null,null,"My Money"]
[]
[null,"Real Estate",null,null,null,null,null,null,null,"Real Estate"]
[]
[null,"Careers",null,null,null,null,null,null,null,"Careers"]
[]
[null,"Autos",null,null,null,null,null,null,null,"Autos"]
[]
[null,"Target Corp (NYSE : TGT)",null,null,null,null,null,null,null,"Target Corp (NYSE : TGT)"]
[null,"Trade now",null,null,null,null,null,null,null,"Trade now"]
[null,"Add to Watchlist",null,null,null,null,null,null,null,"Add to Watchlist"]
[null,"Get chart",null,null,null,null,null,null,null,"Get chart"]
[null,"Print report",null,null,null,null,null,null,null,"Print report"]
[null,"Find financial results for: 53.50Up+0.03+0.06%Delayed ",null,null,null,null,null,null,null,"Find financial results for: 53.50Up+0.03+0.06%Delayed "]
[null,"MORE ABOUT TGT",null,null,null,null,null,null,null,"MORE ABOUT TGT"]
[null,"SUMMARY",null,null,null,null,null,null,null,"SUMMARY"]
[null,"Quote",null,null,null,null,null,null,null,"Quote"]
[null,"Options",null,null,null,null,null,null,null,"Options"]
[null,"Historical Prices",null,null,null,null,null,null,null,"Historical Prices"]
[null,"CHARTS",null,null,null,null,null,null,null,"CHARTS"]
[null,"Basic",null,null,null,null,null,null,null,"Basic"]
[null,"NEWS",null,null,null,null,null,null,null,"NEWS"]
[null,"Headlines",null,null,null,null,null,null,null,"Headlines"]
[null,"Key Developments",null,null,null,null,null,null,null,"Key Developments"]
[null,"FUNDAMENTALS",null,null,null,null,null,null,null,"FUNDAMENTALS"]
[null,"Financial Highlights",null,null,null,null,null,null,null,"Financial Highlights"]
[null,"Profile",null,null,null,null,null,null,null,"Profile"]
[null,"Key Ratios",null,null,null,null,null,null,null,"Key Ratios"]
[null,"10-Year Summary",null,null,null,null,null,null,null,"10-Year Summary"]
[null,"Earnings",null,null,null,null,null,null,null,"Earnings"]
[null,"SEC Filings",null,null,null,null,null,null,null,"SEC Filings"]
[null,"RATINGS/ANALYSIS",null,null,null,null,null,null,null,"RATINGS/ANALYSIS"]
[null,"StockScouter Report",null,null,null,null,null,null,null,"StockScouter Report"]
[null,"Analyst Ratings",null,null,null,null,null,null,null,"Analyst Ratings"]
[null,"INSIDER ACTION",null,null,null,null,null,null,null,"INSIDER ACTION"]
[null,"Insider Trades",null,null,null,null,null,null,null,"Insider Trades"]
[null,"Ownership",null,null,null,null,null,null,null,"Ownership"]
[null,"FINANCIALS",null,null,null,null,null,null,null,"FINANCIALS"]
[null,"Income Statement",null,null,null,null,null,null,null,"Income Statement"]
[null,"Balance Sheet",null,null,null,null,null,null,null,"Balance Sheet"]
[null,"Cash Flow",null,null,null,null,null,null,null,"Cash Flow"]
[null,"10-Year Summary",null,null,null,null,null,null,null,"10-Year Summary"]
[]
[]
[null,"You can't view information about this ticker symbol because JavaScript is not enabled for your web browser. To enable JavaScript, consult online Help for your browser.",null,null,null,null,null,null,null,"You can't view information about this ticker symbol because JavaScript is not enabled for your web browser. To enable JavaScript, consult online Help for your browser."]
[]
[]
[]
[null,"Annual","Interim",null,null,null,null,null,null,"Annual","Interim"]
[null,null,null,2011,2010,2009,2008,2007,null,null,null,"2012 Q3","2012 Q2","2012 Q1","2011 Q4","2011 Q3"]
[null,"Period End Date",null,"2011-01-29","2010-01-30","2009-01-31","2008-02-02","2007-02-03",null,"Period End Date",null,"2011-10-29","2011-07-30","2011-04-30","2011-01-29","2010-10-30"]
[null,"Period Length",null,"52 Weeks","52 Weeks","52 Weeks","52 Weeks","53 Weeks",null,"Period Length",null,"39 Weeks","26 Weeks","13 Weeks","52 Weeks","39 Weeks"]
[null,"Stmt Source",null,"10-K","10-K","10-K","10-K","10-K",null,"Stmt Source",null,"10-Q","10-Q","10-Q","10-K","10-Q"]
[null,"Stmt Source Date",null,"2011-03-11","2010-03-12","2009-03-13","2008-03-13","2007-03-15",null,"Stmt Source Date",null,"2011-11-23","2011-08-25","2011-05-26","2011-03-11","2010-12-03"]
[null,"Stmt Update Type",null,"Updated","Updated","Updated","Updated","Updated",null,"Stmt Update Type",null,"Updated","Updated","Updated","Updated","Updated"]
[]
[null,"Net Income/Starting Line",null,2920,2488,2214,2849,2787,null,"Net Income/Starting Line",null,1948,1393,689,2920,1885]
[null,"Depreciation/Depletion",null,"1905-09-14","1905-07-15","1904-12-30","1904-07-16","1904-02-04",null,"Depreciation/Depletion",null,"1904-04-16","1902-10-18","1901-05-26","1905-09-14","1904-03-24"]
[null,"Amortization",null,"00:00:00","00:00:00","00:00:00","00:00:00","00:00:00",null,"Amortization",null,"00:00:00","00:00:00","00:00:00","00:00:00","00:00:00"]
[null,"Deferred Taxes",null,445,364,91,-70,-201,null,"Deferred Taxes",null,397,122,100,445,249]
[null,"Non-Cash Items",null,"1901-05-06","1904-01-27","1904-04-26","1901-09-25","1901-05-11",null,"Non-Cash Items",null,"1900-07-22","1900-05-12","1900-02-21","1901-05-06","1901-10-23"]
[null,"Unusual Items",0,"1900-04-06","1900-02-02","1900-01-28","1900-02-22",null,null,"Unusual Items",0,"00:00:00","00:00:00","00:00:00","1900-01-12"]
[null,"Other Non-Cash Items",492,1391,1545,606,444,null,null,"Other Non-Cash Items",204,133,52,492,650]
[null,"Changes in Working Capital",null,-670,-482,-1279,-947,283,null,"Changes in Working Capital",null,-1142,-334,-301,-670,-1489]
[null,"Accounts Receivable",-78,-57,-458,-602,-226,null,null,"Accounts Receivable",120,143,149,-78,241]
[null,"Inventories",-417,-474,77,-525,-431,null,null,"Inventories",-2294,-330,-99,-417,-2371]
[null,"Other Assets",-336,-407,-300,-38,-25,null,null,"Other Assets",-82,96,98,-336,-305]
[null,"Accounts Payable",115,174,-389,111,435,null,null,"Accounts Payable",1428,-119,-330,115,1250]
[null,"Accrued Expenses",149,257,-230,62,389,null,null,"Accrued Expenses",-360,-129,-103,149,-141]
[null,"Taxes Payable",0,0,0,0,41,null,null,"Other Liabilities",46,5,-16,-103,-163]
[null,"Other Liabilities",-103,25,-139,124,100,null,null,"Cash from Operating Activities",null,2975,2336,1052,5271,2852]
[null,"Other Operating Cash Flow",0,0,160,-79,0]
[null,"Cash from Operating Activities",null,5271,5881,4430,4125,4862,null,"Capital Expenditures",null,-3750,-2379,-632,-2129,-1607]
[null,null,null,null,null,null,null,null,null,"Purchase of Fixed Assets",-3750,-2379,-632,-2129,-1607]
[null,"Capital Expenditures",null,-2129,-1729,-3547,-4369,-3928,null,"Other Investing Cash Flow Items, Total",null,146,244,262,385,291]
[null,"Purchase of Fixed Assets",-2129,-1729,-3547,-4369,-3928,null,null,"Sale of Fixed Assets",7,2,1,69,36]
[null,"Other Investing Cash Flow Items, Total",null,385,26,-826,-1826,-765,null,"Other Investing Cash Flow",139,242,261,316,255]
[null,"Sale of Fixed Assets",69,33,39,95,62,null,null,"Cash from Investing Activities",null,-3604,-2135,-370,-1744,-1316]
[null,"Other Investing Cash Flow",316,-7,-865,-1921,-827]
[null,"Cash from Investing Activities",null,-1744,-1703,-4373,-6195,-4693,null,"Financing Cash Flow Items",null,1,20,0,0,7]
[null,null,null,null,null,null,null,null,null,"Other Financing Cash Flow",1,20,0,0,7]
[null,"Financing Cash Flow Items",null,0,0,-8,-375,-5,null,"Total Cash Dividends Paid",null,-549,-346,-174,-609,-432]
[null,"Other Financing Cash Flow",0,0,-8,-375,-5,null,null,"Issuance (Retirement) of Stock, Net",null,-1627,-1459,-796,-2158,-1922]
[null,"Total Cash Dividends Paid",null,-609,-496,-465,-442,-380,null,"Issuance (Retirement) of Debt, Net",null,1939,762,0,-1248,-453]
[null,"Issuance (Retirement) of Stock, Net",null,-2158,-376,-2772,-2267,-720,null,"Cash from Financing Activities",null,-236,-1023,-970,-4015,-2800]
[null,"Issuance (Retirement) of Debt, Net",null,-1248,-1970,1602,6791,101]
[null,"Cash from Financing Activities",null,-4015,-2842,-1643,3707,-1004,null,"Foreign Exchange Effects",null,-26,0,0,0,0]
[null,null,null,null,null,null,null,null,null,"Net Change in Cash",null,-891,-822,-288,-488,-1264]
[null,"Foreign Exchange Effects",null,0,0,0,0,0]
[null,"Net Change in Cash",null,-488,1336,-1586,1637,-835]
[null,null,null,null,null,null,null,null,null,"Net Cash - Beginning Balance",null,1712,1712,1712,2200,2200]
[null,null,null,null,null,null,null,null,null,"Net Cash - Ending Balance",null,821,890,1424,1712,936]
[null,"Net Cash - Beginning Balance",null,2200,864,2450,813,1648]
[null,"Net Cash - Ending Balance",null,1712,2200,864,2450,813,null,"Financial data in U.S. Dollars"]
[null,null,null,null,null,null,null,null,null,"Values in Millions (Except for per share items)"]
[null,"Financial data in U.S. Dollars"]
[null,"Values in Millions (Except for per share items)",null,null,null,null,null,null,null,"Business Type: Industry"]
[]
[null,"Business Type: Industry",null,null,null,null,null,null,null,"Financial statements are prepared in this standard format to allow direct comparisons of all companies and industries across multiple time frames."]
[]
[null,"Financial statements are prepared in this standard format to allow direct comparisons of all companies and industries across multiple time frames.",null,null,null,null,null,null,null,"See 10K and 10Q SEC Filings for as reported statements"]
[]
[null,"See 10K and 10Q SEC Filings for as reported statements",null,null,null,null,null,null,null,"DATA PROVIDERS"]
[]
[null,"DATA PROVIDERS",null,null,null,null,null,null,null,"Copyright © 2011 Microsoft. All rights reserved."]
[]
[null,"Copyright © 2011 Microsoft. All rights reserved.",null,null,null,null,null,null,null,"Quotes are real-time for NASDAQ, NYSE and AMEX. See delay times for other exchanges."]
[]
[null,"Quotes are real-time for NASDAQ, NYSE and AMEX. See delay times for other exchanges.",null,null,null,null,null,null,null,"Fundamental company data and historical chart data provided by Thomson Reuters (click for restrictions). Real-time quotes provided by BATS Exchange. Real-time index quotes and delayed quotes supplied by Interactive Data Real-Time Services. Fund summary, fund performance and dividend data provided by Morningstar Inc. Analyst recommendations provided by Zacks Investment Research. StockScouter data provided by Verus Analytics. IPO data provided by Hoover's Inc. Index membership data provided by SIX Telekurs."]
[]
[null,"Fundamental company data and historical chart data provided by Thomson Reuters (click for restrictions). Real-time quotes provided by BATS Exchange. Real-time index quotes and delayed quotes supplied by Interactive Data Real-Time Services. Fund summary, fund performance and dividend data provided by Morningstar Inc. Analyst recommendations provided by Zacks Investment Research. StockScouter data provided by Verus Analytics. IPO data provided by Hoover's Inc. Index membership data provided by SIX Telekurs.",null,null,null,null,null,null,null,"Japanese stock price data provided by Nomura Research Institute Ltd.; quotes delayed 20 minutes. Canadian fund data provided by CANNEX Financial Exchanges Ltd."]
[]
[null,"Japanese stock price data provided by Nomura Research Institute Ltd.; quotes delayed 20 minutes. Canadian fund data provided by CANNEX Financial Exchanges Ltd.",null,null,null,null,null,null,null,"Privacy"]
[null,null,null,null,null,null,null,null,null,"Legal"]
[null,"Privacy",null,null,null,null,null,null,null,"Advertise"]
[null,"Legal",null,null,null,null,null,null,null,"MSN Worldwide"]
[null,"Advertise",null,null,null,null,null,null,null,"Help"]
[null,"MSN Worldwide",null,null,null,null,null,null,null,"About our ads"]
[null,"Help",null,null,null,null,null,null,null,"Feedback"]
[null,"About our ads",null,null,null,null,null,null,null,"Site map"]
[null,"Feedback",null,null,null,null,null,null,null,"RSS"]
[null,"Site map",null,null,null,null,null,null,null,"© 2011 Microsoft "]
[null,"RSS"]
[null,"© 2011 Microsoft "]

{"sheet":"BS","index":11,"n_rows":212,"n_cols":16,"rows_kept":212,"cut":false,"hidden":false,"merged":[]}
[null,"Annual",null,null,null,null,null,null,null,"Interim"]
[null,"More",null,null,null,null,null,null,null,"More"]
[]
[null,"Autos",null,null,null,null,null,null,null,"Autos"]
[null,"Entertainment",null,null,null,null,null,null,null,"Entertainment"]
[null,"Lifestyle",null,null,null,null,null,null,null,"Lifestyle"]
[null,"Online dating",null,null,null,null,null,null,null,"Online dating"]
[null,"Video",null,null,null,null,null,null,null,"Video"]
[]
[null,"Careers & Jobs",null,null,null,null,null,null,null,"Careers & Jobs"]
[null,"Games",null,null,null,null,null,null,null,"Games"]
[null,"Local Edition",null,null,null,null,null,null,null,"Local Edition"]
[null,"Real Estate & Rentals",null,null,null,null,null,null,null,"Real Estate & Rentals"]
[null,"Weather",null,null,null,null,null,null,null,"Weather"]
[]
[null,"Celebrities",null,null,null,null,null,null,null,"Celebrities"]
[null,"Glo",null,null,null,null,null,null,null,"Glo"]
[null,"Money",null,null,null,null,null,null,null,"Money"]
[null,"Sports",null,null,null,null,null,null,null,"Sports"]
[null,"White Pages",null,null,null,null,null,null,null,"White Pages"]
[]
[null,"Delish",null,null,null,null,null,null,null,"Delish"]
[null,"Health, Diet & Fitness",null,null,null,null,null,null,null,"Health, Diet & Fitness"]
[null,"News",null,null,null,null,null,null,null,"News"]
[null,"Travel",null,null,null,null,null,null,null,"Travel"]
[null,"Full MSN Index",null,null,null,null,null,null,null,"Full MSN Index"]
[null,"Hotmail",null,null,null,null,null,null,null,"Hotmail"]
[]
[null,"Inbox",null,null,null,null,null,null,null,"Inbox"]
[null,"Calendar",null,null,null,null,null,null,null,"Calendar"]
[null,"Contacts",null,null,null,null,null,null,null,"Contacts"]
[null,"Send e-mail",null,null,null,null,null,null,null,"Send e-mail"]
[null,"Messenger",null,null,null,null,null,null,null,"Messenger"]
[null,"Bing",null,null,null,null,null,null,null,"Bing"]
[null,"Make MSN your homepage Make Bing your decision engine",null,null,null,null,null,null,null,"Make MSN your homepage Make Bing your decision engine"]
[null,"Welcome",null,null,null,null,null,null,null,"Welcome"]
[null,"Money",null,null,null,null,null,null,null,"Money"]
[null,"Bing Search:",null,null,null,null,null,null,null,"Bing Search:"]
[null,"Money",null,null,null,null,null,null,null,"Money"]
[null,"|",null,null,null,null,null,null,null,"|"]
[null,"Web",null,null,null,null,null,null,null,"Web"]
[null,"Bing search:",null,null,null,null,null,null,null,"Bing search:"]
[null,"Page options",null,null,null,null,null,null,null,"Page options"]
[]
[null,"Make text larger",null,null,null,null,null,null,null,"Make text larger"]
[null,"enabledShow search suggestions",null,null,null,null,null,null,null,"enabledShow search suggestions"]
[null,"Help",null,null,null,null,null,null,null,"Help"]
[null,"|",null,null,null,null,null,null,null,"|"]
[null,"Sign in",null,null,null,null,null,null,null,"Sign in"]
[null,"Home",null,null,null,null,null,null,null,"Home"]
[]
[null,"News",null,null,null,null,null,null,null,"News"]
[]
[null,"Headlines",null,null,null,null,null,null,null,"Headlines"]
[null,"Video",null,null,null,null,null,null,null,"Video"]
[null,"Investing",null,null,null,null,null,null,null,"Investing"]
[]
[null,"portfolio manager",null,null,null,null,null,null,null,"portfolio manager"]
[null,"markets",null,null,null,null,null,null,null,"markets"]
[null,"stocks",null,null,null,null,null,null,null,"stocks"]
[null,"mutual funds",null,null,null,null,null,null,null,"mutual funds"]
[null,"etfs",null,null,null,null,null,null,null,"etfs"]
[null,"broker center",null,null,null,null,null,null,null,"broker center"]
[null,"investor pro",null,null,null,null,null,null,null,"investor pro"]
[null,"Personal Finance",null,null,null,null,null,null,null,"Personal Finance"]
[]
[null,"Saving & Budgeting",null,null,null,null,null,null,null,"Saving & Budgeting"]
[null,"Credit & Debt",null,null,null,null,null,null,null,"Credit & Debt"]
[null,"Loans",null,null,null,null,null,null,null,"Loans"]
[null,"Retirement",null,null,null,null,null,null,null,"Retirement"]
[null,"Insurance",null,null,null,null,null,null,null,"Insurance"]
[null,"Taxes",null,null,null,null,null,null,null,"Taxes"]
[null,"Your Money",null,null,null,null,null,null,null,"Your Money"]
[null,"My Money",null,null,null,null,null,null,null,"My Money"]
[]
[null,"Real Estate",null,null,null,null,null,null,null,"Real Estate"]
[]
[null,"Careers",null,null,null,null,null,null,null,"Careers"]
[]
[null,"Autos",null,null,null,null,null,null,null,"Autos"]
[]
[null,"Target Corp (NYSE : TGT)",null,null,null,null,null,null,null,"Target Corp (NYSE : TGT)"]
[null,"Trade now",null,null,null,null,null,null,null,"Trade now"]
[null,"Add to Watchlist",null,null,null,null,null,null,null,"Add to Watchlist"]
[null,"Get chart",null,null,null,null,null,null,null,"Get chart"]
[null,"Print report",null,null,null,null,null,null,null,"Print report"]
[null,"Find financial results for: 53.50Up+0.03+0.06%Delayed ",null,null,null,null,null,null,null,"Find financial results for: 53.50Up+0.03+0.06%Delayed "]
[null,"MORE ABOUT TGT",null,null,null,null,null,null,null,"MORE ABOUT TGT"]
[null,"SUMMARY",null,null,null,null,null,null,null,"SUMMARY"]
[null,"Quote",null,null,null,null,null,null,null,"Quote"]
[null,"Options",null,null,null,null,null,null,null,"Options"]
[null,"Historical Prices",null,null,null,null,null,null,null,"Historical Prices"]
[null,"CHARTS",null,null,null,null,null,null,null,"CHARTS"]
[null,"Basic",null,null,null,null,null,null,null,"Basic"]
[null,"NEWS",null,null,null,null,null,null,null,"NEWS"]
[null,"Headlines",null,null,null,null,null,null,null,"Headlines"]
[null,"Key Developments",null,null,null,null,null,null,null,"Key Developments"]
[null,"FUNDAMENTALS",null,null,null,null,null,null,null,"FUNDAMENTALS"]
[null,"Financial Highlights",null,null,null,null,null,null,null,"Financial Highlights"]
[null,"Profile",null,null,null,null,null,null,null,"Profile"]
[null,"Key Ratios",null,null,null,null,null,null,null,"Key Ratios"]
[null,"10-Year Summary",null,null,null,null,null,null,null,"10-Year Summary"]
[null,"Earnings",null,null,null,null,null,null,null,"Earnings"]
[null,"SEC Filings",null,null,null,null,null,null,null,"SEC Filings"]
[null,"RATINGS/ANALYSIS",null,null,null,null,null,null,null,"RATINGS/ANALYSIS"]
[null,"StockScouter Report",null,null,null,null,null,null,null,"StockScouter Report"]
[null,"Analyst Ratings",null,null,null,null,null,null,null,"Analyst Ratings"]
[null,"INSIDER ACTION",null,null,null,null,null,null,null,"INSIDER ACTION"]
[null,"Insider Trades",null,null,null,null,null,null,null,"Insider Trades"]
[null,"Ownership",null,null,null,null,null,null,null,"Ownership"]
[null,"FINANCIALS",null,null,null,null,null,null,null,"FINANCIALS"]
[null,"Income Statement",null,null,null,null,null,null,null,"Income Statement"]
[null,"Balance Sheet",null,null,null,null,null,null,null,"Balance Sheet"]
[null,"Cash Flow",null,null,null,null,null,null,null,"Cash Flow"]
[null,"10-Year Summary",null,null,null,null,null,null,null,"10-Year Summary"]
[]
[]
[null,"You can't view information about this ticker symbol because JavaScript is not enabled for your web browser. To enable JavaScript, consult online Help for your browser.",null,null,null,null,null,null,null,"You can't view information about this ticker symbol because JavaScript is not enabled for your web browser. To enable JavaScript, consult online Help for your browser."]
[]
[]
[]
[null,"Annual","Interim",null,null,null,null,null,null,"Annual","Interim"]
[null,null,null,2011,2010,2009,2008,2007,null,null,null,"2012 Q3","2012 Q2","2012 Q1","2011 Q4","2011 Q3"]
[null,"Period End Date",null,"2011-01-29","2010-01-30","2009-01-31","2008-02-02","2007-02-03",null,"Period End Date",null,"2011-10-29","2011-07-30","2011-04-30","2011-01-29","2010-10-30"]
[]
[null,"Stmt Source",null,"10-K","10-K","10-K","10-K","10-K",null,"Stmt Source",null,"10-Q","10-Q","10-Q","10-K","10-Q"]
[null,"Stmt Source Date",null,"2011-03-11","2010-03-12","2009-03-13","2009-03-13","2007-03-15",null,"Stmt Source Date",null,"2011-11-23","2011-08-25","2011-05-26","2011-03-11","2010-12-03"]
[null,"Stmt Update Type",null,"Updated","Updated","Updated","Reclassified","Updated",null,"Stmt Update Type",null,"Updated","Updated","Updated","Updated","Updated"]
[]
[null,"Assets",null,null,null,null,null,null,null,"Assets"]
[null,"Cash and Short Term Investments",null,"1904-09-07","1906-01-08","1902-05-13","1906-09-15","1902-03-23",null,"Cash and Short Term Investments",null,"1902-03-31","1902-06-08","1903-11-24","1904-09-07","1902-07-24"]
[null,"Cash & Equivalents",583,"1901-08-05","1901-07-15","1901-08-21","1902-03-23",null,null,"Cash & Equivalents",755,"1902-02-12","1901-07-05","1901-08-05","1901-08-09"]
[null,"Short Term Investments",1129,1617,302,1851,0,null,null,"Short Term Investments",66,116,872,1129,349]
[null,"Total Receivables, Net",null,"1919-05-15","1921-07-30","1923-12-18","1923-09-07","1918-07-01",null,"Total Receivables, Net",null,"1915-08-22","1915-08-31","1915-08-30","1916-11-04","1916-04-20"]
[null,"Accounts Receivable - Trade, Net",6153,"1919-01-26","1922-02-17","1922-01-18","1916-12-15",null,null,"Accounts Receivable - Trade, Net",5713,"1915-08-31","1915-08-30","1916-11-04","1916-04-20"]
[null,"Accounts Receivable - Trade, Gross",6843,7982,9094,8624,6711,null,null,"Accounts Receivable - Trade, Gross",6144,6202,6286,6843,6730]
[null,"Provision for Doubtful Accounts",-690,-1016,-1010,-570,-517,null,null,"Provision for Doubtful Accounts",-431,-480,-565,-690,-775]
[null,"Receivables - Other",922,916,669,597,563,null,null,"Total Inventory",null,9890,7926,7696,7596,9550]
[null,"Total Inventory",null,7596,7179,6705,6780,6254,null,"Prepaid Expenses",null,0,0,0,0,0]
[null,"Prepaid Expenses",null,0,0,0,0,0,null,"Other Current Assets, Total",null,1948,1521,1527,1752,1905]
[null,"Other Current Assets, Total",null,830,1163,1166,1025,882,null,"Total Current Assets",null,18372,16059,16368,17213,18346]
[null,"Total Current Assets",null,17213,18424,17488,18906,14706]
[null,null,null,null,null,null,null,null,null,"Property/Plant/Equipment, Total - Net",null,29040,28373,25648,25493,25590]
[null,"Property/Plant/Equipment, Total - Net",null,25493,25280,25756,24095,21431,null,"Goodwill, Net",null,0,0,0,0,0]
[null,"Goodwill, Net",null,59,59,60,60,60,null,"Intangibles, Net",null,0,0,0,0,0]
[null,"Intangibles, Net",null,164,180,171,148,152,null,"Long Term Investments",null,0,0,0,0,0]
[null,"Long Term Investments",null,0,0,0,0,0,null,"Note Receivable - Long Term",null,0,0,0,0,0]
[null,"Note Receivable - Long Term",null,0,0,0,0,0,null,"Other Long Term Assets, Total",null,1035,1067,980,999,1013]
[null,"Other Long Term Assets, Total",null,776,590,631,1351,1000,null,"Other Assets, Total",null,0,0,0,0,0]
[null,"Other Assets, Total",null,0,0,0,0,0,null,"Total Assets",null,48447,45499,42996,43705,44949]
[null,"Total Assets",null,43705,44533,44106,44560,37349]
[null,null,null,null,null,null,null,null,null,"Liabilities and Shareholders' Equity"]
[null,"Liabilities and Shareholders' Equity",null,null,null,null,null,null,null,"Accounts Payable",null,8053,6519,6296,6625,7761]
[null,"Accounts Payable",null,6625,6511,6337,6721,6575,null,"Payable/Accrued",null,0,0,0,0,0]
[null,"Payable/Accrued",null,0,0,0,0,0,null,"Accrued Expenses",null,3273,3721,3229,3326,3179]
[null,"Accrued Expenses",null,2481,2405,2100,2109,2004,null,"Notes Payable/Short Term Debt",null,0,0,0,0,0]
[null,"Notes Payable/Short Term Debt",null,0,0,0,0,0,null,"Current Port. of LT Debt/Capital Leases",null,2813,1380,1313,119,850]
[null,"Current Port. of LT Debt/Capital Leases",null,119,1696,1262,1964,1362,null,"Other Current Liabilities, Total",null,0,0,0,0,0]
[null,"Other Current Liabilities, Total",null,845,715,813,988,1176,null,"Total Current Liabilities",null,14139,11620,10838,10070,11790]
[null,"Total Current Liabilities",null,10070,11327,10512,11782,11117]
[null,null,null,null,null,null,null,null,null,"Total Long Term Debt",null,16156,16160,14416,15607,15680]
[null,"Total Long Term Debt",null,15607,15118,17490,15126,8675,null,"Long Term Debt",16156,16160,14416,15607,15680]
[null,"Long Term Debt",15607,15118,17490,15126,8528,null,null,"Deferred Income Tax",null,1199,969,916,934,814]
[null,"Capital Lease Obligations",0,0,0,0,147,null,null,"Minority Interest",null,0,0,0,0,0]
[null,"Deferred Income Tax",null,934,835,455,470,577,null,"Other Liabilities, Total",null,1689,1644,1596,1607,1786]
[null,"Minority Interest",null,0,0,0,0,0,null,"Total Liabilities",null,33183,30393,27766,28218,30070]
[null,"Other Liabilities, Total",null,1607,1906,1937,1875,1347]
[null,"Total Liabilities",null,28218,29186,30394,29253,21716,null,"Redeemable Preferred Stock",null,0,0,0,0,0]
[null,null,null,null,null,null,null,null,null,"Preferred Stock - Non Redeemable, Net",null,0,0,0,0,0]
[null,"Redeemable Preferred Stock",null,0,0,0,0,0,null,"Common Stock",null,56,56,57,59,59]
[null,"Preferred Stock - Non Redeemable, Net",null,0,0,0,0,0,null,"Additional Paid-In Capital",null,3431,3385,3345,3311,3128]
[null,"Common Stock",null,59,62,63,68,72,null,"Retained Earnings (Accumulated Deficit)",null,12340,12213,12398,12698,12254]
[null,"Additional Paid-In Capital",null,3311,2919,2762,2656,2387,null,"Other Equity, Total",null,-563,-548,-570,-581,-562]
[null,"Retained Earnings (Accumulated Deficit)",null,12698,12947,11443,12761,13417,null,"Total Equity",null,15264,15106,15230,15487,14879]
[null,"Other Equity, Total",null,-581,-581,-556,-178,-243]
[null,"Total Equity",null,15487,15347,13712,15307,15633,null,"Total Liabilities & Shareholdersâ€™ Equity",null,48447,45499,42996,43705,44949]
[]
[null,"Total Liabilities & Shareholdersâ€™ Equity",null,43705,44533,44106,44560,37349]
[null,null,null,null,null,null,null,null,null,"Total Common Shares Outstanding",null,671.4,675.2,689,704.04,707.9]
[null,null,null,null,null,null,null,null,null,"Total Preferred Shares Outstanding",null,0,0,0,0,0]
[null,"Total Common Shares Outstanding",null,704.04,744.64,752.71,818.74,859.77]
[null,"Total Preferred Shares Outstanding",null,0,0,0,0,0,null,"Financial data in U.S. Dollars"]
[null,null,null,null,null,null,null,null,null,"Values in Millions (Except for per share items)"]
[null,"Financial data in U.S. Dollars"]
[null,"Values in Millions (Except for per share items)",null,null,null,null,null,null,null,"Business Type: Industry"]
[]
[null,"Business Type: Industry",null,null,null,null,null,null,null,"Financial statements are prepared in this standard format to allow direct comparisons of all companies and industries across multiple time frames."]
[]
[null,"Financial statements are prepared in this standard format to allow direct comparisons of all companies and industries across multiple time frames.",null,null,null,null,null,null,null,"See 10K and 10Q SEC Filings for as reported statements"]
[]
[null,"See 10K and 10Q SEC Filings for as reported statements",null,null,null,null,null,null,null,"DATA PROVIDERS"]
[]
[null,"DATA PROVIDERS",null,null,null,null,null,null,null,"Copyright © 2011 Microsoft. All rights reserved."]
[]
[null,"Copyright © 2011 Microsoft. All rights reserved.",null,null,null,null,null,null,null,"Quotes are real-time for NASDAQ, NYSE and AMEX. See delay times for other exchanges."]
[]
[null,"Quotes are real-time for NASDAQ, NYSE and AMEX. See delay times for other exchanges.",null,null,null,null,null,null,null,"Fundamental company data and historical chart data provided by Thomson Reuters (click for restrictions). Real-time quotes provided by BATS Exchange. Real-time index quotes and delayed quotes supplied by Interactive Data Real-Time Services. Fund summary, fund performance and dividend data provided by Morningstar Inc. Analyst recommendations provided by Zacks Investment Research. StockScouter data provided by Verus Analytics. IPO data provided by Hoover's Inc. Index membership data provided by SIX Telekurs."]
[]
[null,"Fundamental company data and historical chart data provided by Thomson Reuters (click for restrictions). Real-time quotes provided by BATS Exchange. Real-time index quotes and delayed quotes supplied by Interactive Data Real-Time Services. Fund summary, fund performance and dividend data provided by Morningstar Inc. Analyst recommendations provided by Zacks Investment Research. StockScouter data provided by Verus Analytics. IPO data provided by Hoover's Inc. Index membership data provided by SIX Telekurs.",null,null,null,null,null,null,null,"Japanese stock price data provided by Nomura Research Institute Ltd.; quotes delayed 20 minutes. Canadian fund data provided by CANNEX Financial Exchanges Ltd."]
[]
[null,"Japanese stock price data provided by Nomura Research Institute Ltd.; quotes delayed 20 minutes. Canadian fund data provided by CANNEX Financial Exchanges Ltd.",null,null,null,null,null,null,null,"Privacy"]
[null,null,null,null,null,null,null,null,null,"Legal"]
[null,"Privacy",null,null,null,null,null,null,null,"Advertise"]
[null,"Legal",null,null,null,null,null,null,null,"MSN Worldwide"]
[null,"Advertise",null,null,null,null,null,null,null,"Help"]
[null,"MSN Worldwide",null,null,null,null,null,null,null,"About our ads"]
[null,"Help",null,null,null,null,null,null,null,"Feedback"]
[null,"About our ads",null,null,null,null,null,null,null,"Site map"]
[null,"Feedback",null,null,null,null,null,null,null,"RSS"]
[null,"Site map",null,null,null,null,null,null,null,"© 2011 Microsoft "]
[null,"RSS"]
[null,"© 2011 Microsoft "]

{"sheet":"Financials 10Y Summary","index":12,"n_rows":176,"n_cols":8,"rows_kept":176,"cut":false,"hidden":false,"merged":[]}
[]
[null,"More"]
[]
[null,"Autos"]
[null,"Entertainment"]
[null,"Lifestyle"]
[null,"Online dating"]
[null,"Video"]
[]
[null,"Careers & Jobs"]
[null,"Games"]
[null,"Local Edition"]
[null,"Real Estate & Rentals"]
[null,"Weather"]
[]
[null,"Celebrities"]
[null,"Glo"]
[null,"Money"]
[null,"Sports"]
[null,"White Pages"]
[]
[null,"Delish"]
[null,"Health, Diet & Fitness"]
[null,"News"]
[null,"Travel"]
[null,"Full MSN Index"]
[null,"Hotmail"]
[]
[null,"Inbox"]
[null,"Calendar"]
[null,"Contacts"]
[null,"Send e-mail"]
[null,"Messenger"]
[null,"Bing"]
[null,"Make MSN your homepage Make Bing your decision engine"]
[null,"Welcome"]
[null,"Money"]
[null,"Bing Search:"]
[null,"Money"]
[null,"|"]
[null,"Web"]
[null,"Bing search:"]
[null,"Page options"]
[]
[null,"Make text larger"]
[null,"enabledShow search suggestions"]
[null,"Help"]
[null,"|"]
[null,"Sign in"]
[null,"Home"]
[]
[null,"News"]
[]
[null,"Headlines"]
[null,"Video"]
[null,"Investing"]
[]
[null,"portfolio manager"]
[null,"markets"]
[null,"stocks"]
[null,"mutual funds"]
[null,"etfs"]
[null,"broker center"]
[null,"investor pro"]
[null,"Personal Finance"]
[]
[null,"Saving & Budgeting"]
[null,"Credit & Debt"]
[null,"Loans"]
[null,"Retirement"]
[null,"Insurance"]
[null,"Taxes"]
[null,"Your Money"]
[null,"My Money"]
[]
[null,"Real Estate"]
[]
[null,"Careers"]
[]
[null,"Autos"]
[]
[null,"Target Corp (NYSE : TGT)"]
[null,"Trade now"]
[null,"Add to Watchlist"]
[null,"Get chart"]
[null,"Print report"]
[null,"Find financial results for: 53.50Up+0.03+0.06%Delayed "]
[null,"MORE ABOUT TGT"]
[null,"SUMMARY"]
[null,"Quote"]
[null,"Options"]
[null,"Historical Prices"]
[null,"CHARTS"]
[null,"Basic"]
[null,"NEWS"]
[null,"Headlines"]
[null,"Key Developments"]
[null,"FUNDAMENTALS"]
[null,"Financial Highlights"]
[null,"Profile"]
[null,"Key Ratios"]
[null,"10-Year Summary"]
[null,"Earnings"]
[null,"SEC Filings"]
[null,"RATINGS/ANALYSIS"]
[null,"StockScouter Report"]
[null,"Analyst Ratings"]
[null,"INSIDER ACTION"]
[null,"Insider Trades"]
[null,"Ownership"]
[null,"FINANCIALS"]
[null,"Income Statement"]
[null,"Balance Sheet"]
[null,"Cash Flow"]
[null,"10-Year Summary"]
[]
[]
[null,"You can't view information about this ticker symbol because JavaScript is not enabled for your web browser. To enable JavaScript, consult online Help for your browser."]
[]
[]
[]
[]
[null,"Income Statement - 10 Year Summary (in Millions)"]
[null,null,"Sales","EBIT","Depreciation","Total Net Income","EPS","Tax Rate (%)"]
[null,"2011-01-11",67390,4495,2084,2920,4,35.04]
[null,"2011-01-10",65357,3872,2023,2488,3.3,35.74]
[null,"2011-01-09",64948,3536,1825,2214,2.86,37.39]
[null,"2011-02-08",63367,4625,1659,2849,3.35,38.4]
[null,"2011-02-07",59490,4497,1496,2787,3.21,38.03]
[null,"2011-01-06",52620,3860,1409,2408,2.71,37.619999999999997]
[null,"2011-01-05",46839,3031,1259,1885,2.0699999999999998,37.81]
[null,"2011-01-04",42025,2603,1098,1619,1.76,37.799999999999997]
[null,"2011-02-03",37410,2227,967,1376,1.5,38.21]
[null,"2011-02-02",39826,2207,1079,1368,1.5,38.020000000000003]
[null,"Balance Sheet - 10 Year Summary (in Millions)"]
[null,null,"Current Assets","Current Liabilities","Long Term Debt","Shares Outstanding"]
[null,"2011-01-11",43705,28218,15607,"704.0 Mil"]
[null,"2011-01-10",44533,29186,15118,"744.6 Mil"]
[null,"2011-01-09",44106,30394,17490,"752.7 Mil"]
[null,"2011-02-08",44560,29253,15126,"818.7 Mil"]
[null,"2011-02-07",37349,21716,8675,"859.8 Mil"]
[null,"2011-01-06",34995,20790,9119,"874.1 Mil"]
[null,"2011-01-05",32293,19264,9034,"890.6 Mil"]
[null,"2011-01-04",31416,20284,10155,"911.8 Mil"]
[null,"2011-02-03",28603,19160,10186,"909.8 Mil"]
[null,"2011-02-02",24154,16294,8088,"905.2 Mil"]
[]
[null,"Financial data in U.S. Dollars"]
[null,"Values in Millions (Except for per share items)"]
[]
[null,"Business Type: Industry"]
[]
[null,"Financial statements are prepared in this standard format to allow direct comparisons of all companies and industries across multiple time frames."]
[]
[null,"See 10K and 10Q SEC Filings for as reported statements"]
[]
[null,"DATA PROVIDERS"]
[]
[null,"Copyright © 2011 Microsoft. All rights reserved."]
[]
[null,"Quotes are real-time for NASDAQ, NYSE and AMEX. See delay times for other exchanges."]
[]
[null,"Fundamental company data and historical chart data provided by Thomson Reuters (click for restrictions). Real-time quotes provided by BATS Exchange. Real-time index quotes and delayed quotes supplied by Interactive Data Real-Time Services. Fund summary, fund performance and dividend data provided by Morningstar Inc. Analyst recommendations provided by Zacks Investment Research. StockScouter data provided by Verus Analytics. IPO data provided by Hoover's Inc. Index membership data provided by SIX Telekurs."]
[]
[null,"Japanese stock price data provided by Nomura Research Institute Ltd.; quotes delayed 20 minutes. Canadian fund data provided by CANNEX Financial Exchanges Ltd."]
[]
[null,"Privacy"]
[null,"Legal"]
[null,"Advertise"]
[null,"MSN Worldwide"]
[null,"Help"]
[null,"About our ads"]
[null,"Feedback"]
[null,"Site map"]
[null,"RSS"]
[null,"© 2011 Microsoft "]

{"sheet":"Assumptions","index":13,"n_rows":2,"n_cols":2,"rows_kept":2,"cut":false,"hidden":false,"merged":[]}
["Gordon Growth Rate:",0.03]
["WACC",0.15]